{"text_format":"1","workbook":"xlsx","n_sheets":4,"sheets":["Start11","Alle Spieler","Marktwertgewinner","Marktwertverlierer"],"not_rendered":{"charts":0,"images":0,"macros":1,"external_links":0,"defined_names":3,"comments":0,"pivot_tables":0},"unopened":[],"bounds":{"document_bytes":16777216,"sheet_cells":100000,"rows_first":2000,"rows_last":500,"rows_between":2000,"halvings":0,"cell_chars":16384,"cell_head_chars":4096},"cells_cut":0,"cells_raw":0,"read":"whole","date_system":"1900"}

{"sheet":"Start11","index":0,"n_rows":21,"n_cols":391,"rows_kept":21,"cut":false,"hidden":false,"merged":[]}
["Kader","Position","Verein","Marktwert","Marktwertentwicklung","Trend",null,"Datum","Gesamte Marktwertentwicklung",null,null,null,null,"Data Validation Prep"]
[null,{"$f":"_xlfn.XLOOKUP(A2,Alle_Spieler[Spieler],Alle_Spieler[Position],\"\")","v":""},{"$f":"_xlfn.XLOOKUP($A2,Alle_Spieler[Spieler],Alle_Spieler[Verein],\"\")","v":""},{"$f":"_xlfn.XLOOKUP($A2,Alle_Spieler[Spieler],Alle_Spieler[Marktwert],\"\")","v":""},{"$f":"_xlfn.XLOOKUP($A2,Alle_Spieler[Spieler],Alle_Spieler[Differenz],\"\")","v":""},{"$f":"IFERROR(Tabelle4[[#This Row],[Marktwertentwicklung]],\"\")","v":""},null,{"$f":"TODAY()","v":"2022-11-19"},{"$f":"SUM(Tabelle4[Marktwertentwicklung])","v":304920},null,null,null,null,{"$f":"TRANSPOSE(_xlfn._xlws.SORT(_xlfn._xlws.FILTER(Alle_Spieler[Spieler],ISNUMBER((SEARCH(A2,Alle_Spieler[Spieler],1))),\"not found\")))","v":"Aarón"},"Ádám Szalai","Admir Mehmedi","Ajdin Hrustić","Alassane Pléa","Alessandro Schöpf","Alexander Hack","Alexander Schwolow","Alfreð Finnbogason","Almamy Touré","Alphonso Davies","Amadou Haidara","Amine Adli","Amos Pieper","Anderson Lucoqui","Andi Zeqiri","André Hahn","André Silva","Andreas Luthe","Andreas Voglsammer","Andrej Kramarić","Angeliño","Angelo Stiller","Ansgar Knauff","Anthony Losilla","Anthony Modeste","Anton Stach","Armel Bella-Kotchap","Arne Maier","Aster Vranckx","Atakan Karazor","Axel Witsel","Aymen Barkok","Benjamin Henrichs","Benjamin Hübner","Benjamin Pavard","Benno Schmitz","Borna Sosa","Bouna Sarr","Branimir Hrgota","Breel Embolo","Brian Brobbey","Bryan Lasme","Carlos Gruezo","Cédric Brunner","Cedric Itten","Cedric Teuchert","Charles Aránguiz","Chris Führich","Chris Richards","Christian Günter","Christoph Baumgartner","Christoph Kramer","Christopher Antwi-Adjei","Christopher Lenz","Christopher Nkunku","Christopher Trimmel","Clinton Mola","Corentin Tolisso","Cristian Gamboa","Daichi Kamada","Daley Sinkgraven","Dan-Axel Zagadou","Dani Olmo","Daniel Brosinski","Daniel Caligiuri","Daniel Didavi","Danilo Soares","Danny da Costa","David Raum","Davie Selke","Dayot Upamecano","Dedryck Boyata","Dejan Ljubičić","Denis Zakaria","Dennis Geiger","Dennis Jastrzembski","Deyovaisio Zeefuik","Diadié Samassékou","Dickson Abiama","Djibril Sow","Dodi Lukébakio","Dominik Kohr","Dominik Szoboszlai","Dominique Heintz","Donyell Malen","E. Choupo-Moting","Edimilson Fernandes","Edmond Tapsoba","Eduard Löwen","Ellyes Skhiri","Elvis Rexhbeçaj","Emil Forsberg","Emre Can","Erhan Mašović","Erik Durm","Erik Thommy","Erling Braut Haaland","Ermedin Demirović","Evan N'Dicka","Exequiel Palacios","Fabian Bredlow","Fabian Klos","Fabian Kunze","Felix Nmecha","Felix Passlack","Felix Uduokhai","Filip Kostić","Florian Grillitsch","Florian Kainz","Florian Müller","Florian Neuhaus","Florian Niederlechner","Florian Schock","Florian Wirtz","Genki Haraguchi","Georginio Rutter","Gerrit Holtmann","Giovanni Reyna","Gonçalo Paciência","Gregor Kobel","Grischa Prömel","Hamadi Al Ghaddioui","Hannes Wolf","Hans Nunoo Sarpei","Håvard Nielsen","Hiroki Ito","Iago","Ihlas Bebou","Ilaix Moriba","Ishak Belfodil","Jacob Bruun Larsen","Jacob Laursen","Jae-sung Lee","Jamal Musiala","Jan Thielmann","Janik Haberer","Janni Serra","Jean-Paul Boëtius","Jeffrey Gouweleeuw","Jens Petter Hauge","Jeremiah St. Juste","Jeremie Frimpong","Jeremy Dudziak","Jérôme Roussillon","Jesper Lindstrøm","Jetro Willems","Joakim Nilsson","Joe Scally","John Anthony Brooks","Jonas Hector","Jonas Hofmann","Jonathan Burkardt","Jonathan Schmid","Jonathan Tah","Jordan Beyer","Jordan Torunarigha","Jorge Meré","Joshua Kimmich","Josip Stanišić","Joško Gvardiol","Josuha Guilavogui","Jude Bellingham","Julian Brandt","Julian Green","Julian Ryerson","Jurgen Ekkelenkamp","Justin Hoogma","Karim Bellarabi","Karim Onisiwo","Kerem Demirbay","Keven Schlotterbeck","Kevin Akpoguma","Kevin Behrens","Kevin Kampl","Kevin Mbabu","Kevin Möhwald","Kevin Schade","Kevin Stöger","Kevin Trapp","Kevin Vogt","Kevin-Prince Boateng","Kiliann Sildillia","Kingsley Coman","Kingsley Ehizibue","Kingsley Schindler","Koen Casteels","Konrad Laimer","Konstantinos Mavropanos","Konstantinos Stafylidis","Kristijan Jakić","Krzysztof Piątek","Lars Stindl","László Bénes","Leandro Barreiro","Lennart Czyborra","Leon Goretzka","Leroy Sané","Levin Öztunali","Linus Gechter","Louis Schaub","Luca Kilian","Luca Netz","Luca Waldschmidt","Lucas Alario","Lucas Hernández","Lucas Höler","Lucas Tousart","Lukáš Hrádecký","Lukas Klostermann","Lukas Kübler","Lukas Nmecha","Mads Pedersen","Mahmoud Dahoud","Makoto Hasebe","Manu Koné","Manuel Akanji","Manuel Gulde","Manuel Neuer","Manuel Prietl","Manuel Riemann","Marc Oliver Kempf","Marcel Halstenberg","Marcel Sabitzer","Marco Meyerhöfer","Marco Reus","Marco Richter","Marcus Ingvartsen","Marcus Thuram","Marin Pongračić","Marius Funk","Marius Wolf","Mark Flekken","Mark Uth","Martin Hinteregger","Márton Dárdai","Marvin Friedrich","Marvin Plattenhardt","Masaya Okugawa","Mateo Klimowicz","Mateu Morey","Mats Hummels","Matthias Ginter","Max Kruse","Maxence Lacroix","Maxim Leitsch","Maximilian Arnold","Maximilian Bauer","Maximilian Eggestein","Maximilian Mittelstädt","Maximilian Philipp","Mijat Gaćinović","Miloš Pantović","Mitchel Bakker","Mohamed Simakan","Moussa Diaby","Moussa Niakhaté","Munas Dabbur","Myziane Maolida","Nadiem Amiri","Nick Viergever","Nico Elvedi","Nico Schlotterbeck","Nico Schulz","Nicolas Höfler","Niklas Dorsch","Niklas Stark","Niklas Süle","Niklas Tauer","Niko Gießelmann","Nikolas Nartey","Nils Petersen","Noah Weißhaupt","Nordi Mukiele","Odilon Kossounou","Oliver Baumann","Omar Marmoush","Omar Richards","Ömer Faruk Beyaz","Ondrej Duda","Orel Mangala","Pascal Stenzel","Patrick Herrmann","Patrick Wimmer","Patrik Schick","Paul Jaeckel","Paul Seguin","Paulinho","Paulo Otávio","Pavel Kadeřábek","Péter Gulácsi","Peter Pekarík","Philipp Förster","Philipp Klement","Philipp Lienhart","Piero Hincapié","Rafael Czichos","Rafael Santos Borré","Rafał Gikiewicz","Ragnar Ache","Ramy Bensebaini","Rani Khedira","Raphael Framberger","Raphaël Guerreiro","Reece Oxford","Reinier","Renato Steffen","Ridle Baku","Robert Andrich","Robert Gumny","Robert Lewandowski","Robert Skov","Roberto Massimo","Robin Hack","Robin Knoche","Robin Zentner","Roland Sallai","Ruben Vargas","Salih Özcan","Sam Lammers","Santiago Ascacibar","Sargis Adamyan","Saša Kalajdžić","Sascha Burchert","Sebastiaan Bornauw","Sebastian Andersson","Sebastian Griesbeck","Sebastian Polter","Sebastian Rode","Sebastian Rudy","Sebastian Vasiliadis","Serge Gnabry","Sergio Córdova","Sheraldo Becker","Silas","Silvan Widmer","Simon Zoller","Stefan Bell","Stefan Ilsanker","Stefan Lainer","Stefan Ortega Moreno","Stefan Posch","Steffen Tigges","Stevan Jovetić","Suat Serdar","Taiwo Awoniyi","Tanguy Coulibaly","Tanguy Nianzou","Thomas Meunier","Thomas Müller","Thorgan Hazard","Tim Lemperle","Timo Baumgartl","Timo Horn","Timo Hübers","Timothy Chandler","Timothy Fosu-Mensah","Timothy Tillman","Tobias Strobl","Tomas Ostrak","Tony Jantschke","Tuta","Tyler Adams","Vasilios Lampropoulos","Vincenzo Grifo","Vladimír Darida","Wahid Faghir","Waldemar Anton","Wataru Endo","Willi Orbán","Woo-yeong Jeong","Wout Weghorst","Xaver Schlager","Yann Sommer","Yannick Gerhardt","Yannik Keitel","Youssoufa Moukoko","Yussuf Poulsen"]
[null,{"$f":"_xlfn.XLOOKUP(A3,Alle_Spieler[Spieler],Alle_Spieler[Position],\"\")","v":""},{"$f":"_xlfn.XLOOKUP($A3,Alle_Spieler[Spieler],Alle_Spieler[Verein],\"\")","v":""},{"$f":"_xlfn.XLOOKUP($A3,Alle_Spieler[Spieler],Alle_Spieler[Marktwert],\"\")","v":""},{"$f":"_xlfn.XLOOKUP($A3,Alle_Spieler[Spieler],Alle_Spieler[Differenz],\"\")","v":""},{"$f":"Tabelle4[[#This Row],[Marktwertentwicklung]]","v":""},null,null,null,null,null,null,null,{"$f":"TRANSPOSE(_xlfn._xlws.SORT(_xlfn._xlws.FILTER(Alle_Spieler[Spieler],ISNUMBER((SEARCH(A3,Alle_Spieler[Spieler],1))),\"not found\")))","v":"Aarón"},"Ádám Szalai","Admir Mehmedi","Ajdin Hrustić","Alassane Pléa","Alessandro Schöpf","Alexander Hack","Alexander Schwolow","Alfreð Finnbogason","Almamy Touré","Alphonso Davies","Amadou Haidara","Amine Adli","Amos Pieper","Anderson Lucoqui","Andi Zeqiri","André Hahn","André Silva","Andreas Luthe","Andreas Voglsammer","Andrej Kramarić","Angeliño","Angelo Stiller","Ansgar Knauff","Anthony Losilla","Anthony Modeste","Anton Stach","Armel Bella-Kotchap","Arne Maier","Aster Vranckx","Atakan Karazor","Axel Witsel","Aymen Barkok","Benjamin Henrichs","Benjamin Hübner","Benjamin Pavard","Benno Schmitz","Borna Sosa","Bouna Sarr","Branimir Hrgota","Breel Embolo","Brian Brobbey","Bryan Lasme","Carlos Gruezo","Cédric Brunner","Cedric Itten","Cedric Teuchert","Charles Aránguiz","Chris Führich","Chris Richards","Christian Günter","Christoph Baumgartner","Christoph Kramer","Christopher Antwi-Adjei","Christopher Lenz","Christopher Nkunku","Christopher Trimmel","Clinton Mola","Corentin Tolisso","Cristian Gamboa","Daichi Kamada","Daley Sinkgraven","Dan-Axel Zagadou","Dani Olmo","Daniel Brosinski","Daniel Caligiuri","Daniel Didavi","Danilo Soares","Danny da Costa","David Raum","Davie Selke","Dayot Upamecano","Dedryck Boyata","Dejan Ljubičić","Denis Zakaria","Dennis Geiger","Dennis Jastrzembski","Deyovaisio Zeefuik","Diadié Samassékou","Dickson Abiama","Djibril Sow","Dodi Lukébakio","Dominik Kohr","Dominik Szoboszlai","Dominique Heintz","Donyell Malen","E. Choupo-Moting","Edimilson Fernandes","Edmond Tapsoba","Eduard Löwen","Ellyes Skhiri","Elvis Rexhbeçaj","Emil Forsberg","Emre Can","Erhan Mašović","Erik Durm","Erik Thommy","Erling Braut Haaland","Ermedin Demirović","Evan N'Dicka","Exequiel Palacios","Fabian Bredlow","Fabian Klos","Fabian Kunze","Felix Nmecha","Felix Passlack","Felix Uduokhai","Filip Kostić","Florian Grillitsch","Florian Kainz","Florian Müller","Florian Neuhaus","Florian Niederlechner","Florian Schock","Florian Wirtz","Genki Haraguchi","Georginio Rutter","Gerrit Holtmann","Giovanni Reyna","Gonçalo Paciência","Gregor Kobel","Grischa Prömel","Hamadi Al Ghaddioui","Hannes Wolf","Hans Nunoo Sarpei","Håvard Nielsen","Hiroki Ito","Iago","Ihlas Bebou","Ilaix Moriba","Ishak Belfodil","Jacob Bruun Larsen","Jacob Laursen","Jae-sung Lee","Jamal Musiala","Jan Thielmann","Janik Haberer","Janni Serra","Jean-Paul Boëtius","Jeffrey Gouweleeuw","Jens Petter Hauge","Jeremiah St. Juste","Jeremie Frimpong","Jeremy Dudziak","Jérôme Roussillon","Jesper Lindstrøm","Jetro Willems","Joakim Nilsson","Joe Scally","John Anthony Brooks","Jonas Hector","Jonas Hofmann","Jonathan Burkardt","Jonathan Schmid","Jonathan Tah","Jordan Beyer","Jordan Torunarigha","Jorge Meré","Joshua Kimmich","Josip Stanišić","Joško Gvardiol","Josuha Guilavogui","Jude Bellingham","Julian Brandt","Julian Green","Julian Ryerson","Jurgen Ekkelenkamp","Justin Hoogma","Karim Bellarabi","Karim Onisiwo","Kerem Demirbay","Keven Schlotterbeck","Kevin Akpoguma","Kevin Behrens","Kevin Kampl","Kevin Mbabu","Kevin Möhwald","Kevin Schade","Kevin Stöger","Kevin Trapp","Kevin Vogt","Kevin-Prince Boateng","Kiliann Sildillia","Kingsley Coman","Kingsley Ehizibue","Kingsley Schindler","Koen Casteels","Konrad Laimer","Konstantinos Mavropanos","Konstantinos Stafylidis","Kristijan Jakić","Krzysztof Piątek","Lars Stindl","László Bénes","Leandro Barreiro","Lennart Czyborra","Leon Goretzka","Leroy Sané","Levin Öztunali","Linus Gechter","Louis Schaub","Luca Kilian","Luca Netz","Luca Waldschmidt","Lucas Alario","Lucas Hernández","Lucas Höler","Lucas Tousart","Lukáš Hrádecký","Lukas Klostermann","Lukas Kübler","Lukas Nmecha","Mads Pedersen","Mahmoud Dahoud","Makoto Hasebe","Manu Koné","Manuel Akanji","Manuel Gulde","Manuel Neuer","Manuel Prietl","Manuel Riemann","Marc Oliver Kempf","Marcel Halstenberg","Marcel Sabitzer","Marco Meyerhöfer","Marco Reus","Marco Richter","Marcus Ingvartsen","Marcus Thuram","Marin Pongračić","Marius Funk","Marius Wolf","Mark Flekken","Mark Uth","Martin Hinteregger","Márton Dárdai","Marvin Friedrich","Marvin Plattenhardt","Masaya Okugawa","Mateo Klimowicz","Mateu Morey","Mats Hummels","Matthias Ginter","Max Kruse","Maxence Lacroix","Maxim Leitsch","Maximilian Arnold","Maximilian Bauer","Maximilian Eggestein","Maximilian Mittelstädt","Maximilian Philipp","Mijat Gaćinović","Miloš Pantović","Mitchel Bakker","Mohamed Simakan","Moussa Diaby","Moussa Niakhaté","Munas Dabbur","Myziane Maolida","Nadiem Amiri","Nick Viergever","Nico Elvedi","Nico Schlotterbeck","Nico Schulz","Nicolas Höfler","Niklas Dorsch","Niklas Stark","Niklas Süle","Niklas Tauer","Niko Gießelmann","Nikolas Nartey","Nils Petersen","Noah Weißhaupt","Nordi Mukiele","Odilon Kossounou","Oliver Baumann","Omar Marmoush","Omar Richards","Ömer Faruk Beyaz","Ondrej Duda","Orel Mangala","Pascal Stenzel","Patrick Herrmann","Patrick Wimmer","Patrik Schick","Paul Jaeckel","Paul Seguin","Paulinho","Paulo Otávio","Pavel Kadeřábek","Péter Gulácsi","Peter Pekarík","Philipp Förster","Philipp Klement","Philipp Lienhart","Piero Hincapié","Rafael Czichos","Rafael Santos Borré","Rafał Gikiewicz","Ragnar Ache","Ramy Bensebaini","Rani Khedira","Raphael Framberger","Raphaël Guerreiro","Reece Oxford","Reinier","Renato Steffen","Ridle Baku","Robert Andrich","Robert Gumny","Robert Lewandowski","Robert Skov","Roberto Massimo","Robin Hack","Robin Knoche","Robin Zentner","Roland Sallai","Ruben Vargas","Salih Özcan","Sam Lammers","Santiago Ascacibar","Sargis Adamyan","Saša Kalajdžić","Sascha Burchert","Sebastiaan Bornauw","Sebastian Andersson","Sebastian Griesbeck","Sebastian Polter","Sebastian Rode","Sebastian Rudy","Sebastian Vasiliadis","Serge Gnabry","Sergio Córdova","Sheraldo Becker","Silas","Silvan Widmer","Simon Zoller","Stefan Bell","Stefan Ilsanker","Stefan Lainer","Stefan Ortega Moreno","Stefan Posch","Steffen Tigges","Stevan Jovetić","Suat Serdar","Taiwo Awoniyi","Tanguy Coulibaly","Tanguy Nianzou","Thomas Meunier","Thomas Müller","Thorgan Hazard","Tim Lemperle","Timo Baumgartl","Timo Horn","Timo Hübers","Timothy Chandler","Timothy Fosu-Mensah","Timothy Tillman","Tobias Strobl","Tomas Ostrak","Tony Jantschke","Tuta","Tyler Adams","Vasilios Lampropoulos","Vincenzo Grifo","Vladimír Darida","Wahid Faghir","Waldemar Anton","Wataru Endo","Willi Orbán","Woo-yeong Jeong","Wout Weghorst","Xaver Schlager","Yann Sommer","Yannick Gerhardt","Yannik Keitel","Youssoufa Moukoko","Yussuf Poulsen"]
[null,{"$f":"_xlfn.XLOOKUP(A4,Alle_Spieler[Spieler],Alle_Spieler[Position],\"\")","v":""},{"$f":"_xlfn.XLOOKUP($A4,Alle_Spieler[Spieler],Alle_Spieler[Verein],\"\")","v":""},{"$f":"_xlfn.XLOOKUP($A4,Alle_Spieler[Spieler],Alle_Spieler[Marktwert],\"\")","v":""},{"$f":"_xlfn.XLOOKUP($A4,Alle_Spieler[Spieler],Alle_Spieler[Differenz],\"\")","v":""},{"$f":"Tabelle4[[#This Row],[Marktwertentwicklung]]","v":""},null,"Datum","Gesamte Marktwertentwicklung",null,null,null,null,{"$f":"TRANSPOSE(_xlfn._xlws.SORT(_xlfn._xlws.FILTER(Alle_Spieler[Spieler],ISNUMBER((SEARCH(A4,Alle_Spieler[Spieler],1))),\"not found\")))","v":"Aarón"},"Ádám Szalai","Admir Mehmedi","Ajdin Hrustić","Alassane Pléa","Alessandro Schöpf","Alexander Hack","Alexander Schwolow","Alfreð Finnbogason","Almamy Touré","Alphonso Davies","Amadou Haidara","Amine Adli","Amos Pieper","Anderson Lucoqui","Andi Zeqiri","André Hahn","André Silva","Andreas Luthe","Andreas Voglsammer","Andrej Kramarić","Angeliño","Angelo Stiller","Ansgar Knauff","Anthony Losilla","Anthony Modeste","Anton Stach","Armel Bella-Kotchap","Arne Maier","Aster Vranckx","Atakan Karazor","Axel Witsel","Aymen Barkok","Benjamin Henrichs","Benjamin Hübner","Benjamin Pavard","Benno Schmitz","Borna Sosa","Bouna Sarr","Branimir Hrgota","Breel Embolo","Brian Brobbey","Bryan Lasme","Carlos Gruezo","Cédric Brunner","Cedric Itten","Cedric Teuchert","Charles Aránguiz","Chris Führich","Chris Richards","Christian Günter","Christoph Baumgartner","Christoph Kramer","Christopher Antwi-Adjei","Christopher Lenz","Christopher Nkunku","Christopher Trimmel","Clinton Mola","Corentin Tolisso","Cristian Gamboa","Daichi Kamada","Daley Sinkgraven","Dan-Axel Zagadou","Dani Olmo","Daniel Brosinski","Daniel Caligiuri","Daniel Didavi","Danilo Soares","Danny da Costa","David Raum","Davie Selke","Dayot Upamecano","Dedryck Boyata","Dejan Ljubičić","Denis Zakaria","Dennis Geiger","Dennis Jastrzembski","Deyovaisio Zeefuik","Diadié Samassékou","Dickson Abiama","Djibril Sow","Dodi Lukébakio","Dominik Kohr","Dominik Szoboszlai","Dominique Heintz","Donyell Malen","E. Choupo-Moting","Edimilson Fernandes","Edmond Tapsoba","Eduard Löwen","Ellyes Skhiri","Elvis Rexhbeçaj","Emil Forsberg","Emre Can","Erhan Mašović","Erik Durm","Erik Thommy","Erling Braut Haaland","Ermedin Demirović","Evan N'Dicka","Exequiel Palacios","Fabian Bredlow","Fabian Klos","Fabian Kunze","Felix Nmecha","Felix Passlack","Felix Uduokhai","Filip Kostić","Florian Grillitsch","Florian Kainz","Florian Müller","Florian Neuhaus","Florian Niederlechner","Florian Schock","Florian Wirtz","Genki Haraguchi","Georginio Rutter","Gerrit Holtmann","Giovanni Reyna","Gonçalo Paciência","Gregor Kobel","Grischa Prömel","Hamadi Al Ghaddioui","Hannes Wolf","Hans Nunoo Sarpei","Håvard Nielsen","Hiroki Ito","Iago","Ihlas Bebou","Ilaix Moriba","Ishak Belfodil","Jacob Bruun Larsen","Jacob Laursen","Jae-sung Lee","Jamal Musiala","Jan Thielmann","Janik Haberer","Janni Serra","Jean-Paul Boëtius","Jeffrey Gouweleeuw","Jens Petter Hauge","Jeremiah St. Juste","Jeremie Frimpong","Jeremy Dudziak","Jérôme Roussillon","Jesper Lindstrøm","Jetro Willems","Joakim Nilsson","Joe Scally","John Anthony Brooks","Jonas Hector","Jonas Hofmann","Jonathan Burkardt","Jonathan Schmid","Jonathan Tah","Jordan Beyer","Jordan Torunarigha","Jorge Meré","Joshua Kimmich","Josip Stanišić","Joško Gvardiol","Josuha Guilavogui","Jude Bellingham","Julian Brandt","Julian Green","Julian Ryerson","Jurgen Ekkelenkamp","Justin Hoogma","Karim Bellarabi","Karim Onisiwo","Kerem Demirbay","Keven Schlotterbeck","Kevin Akpoguma","Kevin Behrens","Kevin Kampl","Kevin Mbabu","Kevin Möhwald","Kevin Schade","Kevin Stöger","Kevin Trapp","Kevin Vogt","Kevin-Prince Boateng","Kiliann Sildillia","Kingsley Coman","Kingsley Ehizibue","Kingsley Schindler","Koen Casteels","Konrad Laimer","Konstantinos Mavropanos","Konstantinos Stafylidis","Kristijan Jakić","Krzysztof Piątek","Lars Stindl","László Bénes","Leandro Barreiro","Lennart Czyborra","Leon Goretzka","Leroy Sané","Levin Öztunali","Linus Gechter","Louis Schaub","Luca Kilian","Luca Netz","Luca Waldschmidt","Lucas Alario","Lucas Hernández","Lucas Höler","Lucas Tousart","Lukáš Hrádecký","Lukas Klostermann","Lukas Kübler","Lukas Nmecha","Mads Pedersen","Mahmoud Dahoud","Makoto Hasebe","Manu Koné","Manuel Akanji","Manuel Gulde","Manuel Neuer","Manuel Prietl","Manuel Riemann","Marc Oliver Kempf","Marcel Halstenberg","Marcel Sabitzer","Marco Meyerhöfer","Marco Reus","Marco Richter","Marcus Ingvartsen","Marcus Thuram","Marin Pongračić","Marius Funk","Marius Wolf","Mark Flekken","Mark Uth","Martin Hinteregger","Márton Dárdai","Marvin Friedrich","Marvin Plattenhardt","Masaya Okugawa","Mateo Klimowicz","Mateu Morey","Mats Hummels","Matthias Ginter","Max Kruse","Maxence Lacroix","Maxim Leitsch","Maximilian Arnold","Maximilian Bauer","Maximilian Eggestein","Maximilian Mittelstädt","Maximilian Philipp","Mijat Gaćinović","Miloš Pantović","Mitchel Bakker","Mohamed Simakan","Moussa Diaby","Moussa Niakhaté","Munas Dabbur","Myziane Maolida","Nadiem Amiri","Nick Viergever","Nico Elvedi","Nico Schlotterbeck","Nico Schulz","Nicolas Höfler","Niklas Dorsch","Niklas Stark","Niklas Süle","Niklas Tauer","Niko Gießelmann","Nikolas Nartey","Nils Petersen","Noah Weißhaupt","Nordi Mukiele","Odilon Kossounou","Oliver Baumann","Omar Marmoush","Omar Richards","Ömer Faruk Beyaz","Ondrej Duda","Orel Mangala","Pascal Stenzel","Patrick Herrmann","Patrick Wimmer","Patrik Schick","Paul Jaeckel","Paul Seguin","Paulinho","Paulo Otávio","Pavel Kadeřábek","Péter Gulácsi","Peter Pekarík","Philipp Förster","Philipp Klement","Philipp Lienhart","Piero Hincapié","Rafael Czichos","Rafael Santos Borré","Rafał Gikiewicz","Ragnar Ache","Ramy Bensebaini","Rani Khedira","Raphael Framberger","Raphaël Guerreiro","Reece Oxford","Reinier","Renato Steffen","Ridle Baku","Robert Andrich","Robert Gumny","Robert Lewandowski","Robert Skov","Roberto Massimo","Robin Hack","Robin Knoche","Robin Zentner","Roland Sallai","Ruben Vargas","Salih Özcan","Sam Lammers","Santiago Ascacibar","Sargis Adamyan","Saša Kalajdžić","Sascha Burchert","Sebastiaan Bornauw","Sebastian Andersson","Sebastian Griesbeck","Sebastian Polter","Sebastian Rode","Sebastian Rudy","Sebastian Vasiliadis","Serge Gnabry","Sergio Córdova","Sheraldo Becker","Silas","Silvan Widmer","Simon Zoller","Stefan Bell","Stefan Ilsanker","Stefan Lainer","Stefan Ortega Moreno","Stefan Posch","Steffen Tigges","Stevan Jovetić","Suat Serdar","Taiwo Awoniyi","Tanguy Coulibaly","Tanguy Nianzou","Thomas Meunier","Thomas Müller","Thorgan Hazard","Tim Lemperle","Timo Baumgartl","Timo Horn","Timo Hübers","Timothy Chandler","Timothy Fosu-Mensah","Timothy Tillman","Tobias Strobl","Tomas Ostrak","Tony Jantschke","Tuta","Tyler Adams","Vasilios Lampropoulos","Vincenzo Grifo","Vladimír Darida","Wahid Faghir","Waldemar Anton","Wataru Endo","Willi Orbán","Woo-yeong Jeong","Wout Weghorst","Xaver Schlager","Yann Sommer","Yannick Gerhardt","Yannik Keitel","Youssoufa Moukoko","Yussuf Poulsen"]
[null,{"$f":"_xlfn.XLOOKUP(A5,Alle_Spieler[Spieler],Alle_Spieler[Position],\"\")","v":""},{"$f":"_xlfn.XLOOKUP($A5,Alle_Spieler[Spieler],Alle_Spieler[Verein],\"\")","v":""},{"$f":"_xlfn.XLOOKUP($A5,Alle_Spieler[Spieler],Alle_Spieler[Marktwert],\"\")","v":""},{"$f":"_xlfn.XLOOKUP($A5,Alle_Spieler[Spieler],Alle_Spieler[Differenz],\"\")","v":""},{"$f":"IFERROR(Tabelle4[[#This Row],[Marktwertentwicklung]],\"\")","v":""},null,null,null,null,null,null,null,{"$f":"TRANSPOSE(_xlfn._xlws.SORT(_xlfn._xlws.FILTER(Alle_Spieler[Spieler],ISNUMBER((SEARCH(A5,Alle_Spieler[Spieler],1))),\"not found\")))","v":"Aarón"},"Ádám Szalai","Admir Mehmedi","Ajdin Hrustić","Alassane Pléa","Alessandro Schöpf","Alexander Hack","Alexander Schwolow","Alfreð Finnbogason","Almamy Touré","Alphonso Davies","Amadou Haidara","Amine Adli","Amos Pieper","Anderson Lucoqui","Andi Zeqiri","André Hahn","André Silva","Andreas Luthe","Andreas Voglsammer","Andrej Kramarić","Angeliño","Angelo Stiller","Ansgar Knauff","Anthony Losilla","Anthony Modeste","Anton Stach","Armel Bella-Kotchap","Arne Maier","Aster Vranckx","Atakan Karazor","Axel Witsel","Aymen Barkok","Benjamin Henrichs","Benjamin Hübner","Benjamin Pavard","Benno Schmitz","Borna Sosa","Bouna Sarr","Branimir Hrgota","Breel Embolo","Brian Brobbey","Bryan Lasme","Carlos Gruezo","Cédric Brunner","Cedric Itten","Cedric Teuchert","Charles Aránguiz","Chris Führich","Chris Richards","Christian Günter","Christoph Baumgartner","Christoph Kramer","Christopher Antwi-Adjei","Christopher Lenz","Christopher Nkunku","Christopher Trimmel","Clinton Mola","Corentin Tolisso","Cristian Gamboa","Daichi Kamada","Daley Sinkgraven","Dan-Axel Zagadou","Dani Olmo","Daniel Brosinski","Daniel Caligiuri","Daniel Didavi","Danilo Soares","Danny da Costa","David Raum","Davie Selke","Dayot Upamecano","Dedryck Boyata","Dejan Ljubičić","Denis Zakaria","Dennis Geiger","Dennis Jastrzembski","Deyovaisio Zeefuik","Diadié Samassékou","Dickson Abiama","Djibril Sow","Dodi Lukébakio","Dominik Kohr","Dominik Szoboszlai","Dominique Heintz","Donyell Malen","E. Choupo-Moting","Edimilson Fernandes","Edmond Tapsoba","Eduard Löwen","Ellyes Skhiri","Elvis Rexhbeçaj","Emil Forsberg","Emre Can","Erhan Mašović","Erik Durm","Erik Thommy","Erling Braut Haaland","Ermedin Demirović","Evan N'Dicka","Exequiel Palacios","Fabian Bredlow","Fabian Klos","Fabian Kunze","Felix Nmecha","Felix Passlack","Felix Uduokhai","Filip Kostić","Florian Grillitsch","Florian Kainz","Florian Müller","Florian Neuhaus","Florian Niederlechner","Florian Schock","Florian Wirtz","Genki Haraguchi","Georginio Rutter","Gerrit Holtmann","Giovanni Reyna","Gonçalo Paciência","Gregor Kobel","Grischa Prömel","Hamadi Al Ghaddioui","Hannes Wolf","Hans Nunoo Sarpei","Håvard Nielsen","Hiroki Ito","Iago","Ihlas Bebou","Ilaix Moriba","Ishak Belfodil","Jacob Bruun Larsen","Jacob Laursen","Jae-sung Lee","Jamal Musiala","Jan Thielmann","Janik Haberer","Janni Serra","Jean-Paul Boëtius","Jeffrey Gouweleeuw","Jens Petter Hauge","Jeremiah St. Juste","Jeremie Frimpong","Jeremy Dudziak","Jérôme Roussillon","Jesper Lindstrøm","Jetro Willems","Joakim Nilsson","Joe Scally","John Anthony Brooks","Jonas Hector","Jonas Hofmann","Jonathan Burkardt","Jonathan Schmid","Jonathan Tah","Jordan Beyer","Jordan Torunarigha","Jorge Meré","Joshua Kimmich","Josip Stanišić","Joško Gvardiol","Josuha Guilavogui","Jude Bellingham","Julian Brandt","Julian Green","Julian Ryerson","Jurgen Ekkelenkamp","Justin Hoogma","Karim Bellarabi","Karim Onisiwo","Kerem Demirbay","Keven Schlotterbeck","Kevin Akpoguma","Kevin Behrens","Kevin Kampl","Kevin Mbabu","Kevin Möhwald","Kevin Schade","Kevin Stöger","Kevin Trapp","Kevin Vogt","Kevin-Prince Boateng","Kiliann Sildillia","Kingsley Coman","Kingsley Ehizibue","Kingsley Schindler","Koen Casteels","Konrad Laimer","Konstantinos Mavropanos","Konstantinos Stafylidis","Kristijan Jakić","Krzysztof Piątek","Lars Stindl","László Bénes","Leandro Barreiro","Lennart Czyborra","Leon Goretzka","Leroy Sané","Levin Öztunali","Linus Gechter","Louis Schaub","Luca Kilian","Luca Netz","Luca Waldschmidt","Lucas Alario","Lucas Hernández","Lucas Höler","Lucas Tousart","Lukáš Hrádecký","Lukas Klostermann","Lukas Kübler","Lukas Nmecha","Mads Pedersen","Mahmoud Dahoud","Makoto Hasebe","Manu Koné","Manuel Akanji","Manuel Gulde","Manuel Neuer","Manuel Prietl","Manuel Riemann","Marc Oliver Kempf","Marcel Halstenberg","Marcel Sabitzer","Marco Meyerhöfer","Marco Reus","Marco Richter","Marcus Ingvartsen","Marcus Thuram","Marin Pongračić","Marius Funk","Marius Wolf","Mark Flekken","Mark Uth","Martin Hinteregger","Márton Dárdai","Marvin Friedrich","Marvin Plattenhardt","Masaya Okugawa","Mateo Klimowicz","Mateu Morey","Mats Hummels","Matthias Ginter","Max Kruse","Maxence Lacroix","Maxim Leitsch","Maximilian Arnold","Maximilian Bauer","Maximilian Eggestein","Maximilian Mittelstädt","Maximilian Philipp","Mijat Gaćinović","Miloš Pantović","Mitchel Bakker","Mohamed Simakan","Moussa Diaby","Moussa Niakhaté","Munas Dabbur","Myziane Maolida","Nadiem Amiri","Nick Viergever","Nico Elvedi","Nico Schlotterbeck","Nico Schulz","Nicolas Höfler","Niklas Dorsch","Niklas Stark","Niklas Süle","Niklas Tauer","Niko Gießelmann","Nikolas Nartey","Nils Petersen","Noah Weißhaupt","Nordi Mukiele","Odilon Kossounou","Oliver Baumann","Omar Marmoush","Omar Richards","Ömer Faruk Beyaz","Ondrej Duda","Orel Mangala","Pascal Stenzel","Patrick Herrmann","Patrick Wimmer","Patrik Schick","Paul Jaeckel","Paul Seguin","Paulinho","Paulo Otávio","Pavel Kadeřábek","Péter Gulácsi","Peter Pekarík","Philipp Förster","Philipp Klement","Philipp Lienhart","Piero Hincapié","Rafael Czichos","Rafael Santos Borré","Rafał Gikiewicz","Ragnar Ache","Ramy Bensebaini","Rani Khedira","Raphael Framberger","Raphaël Guerreiro","Reece Oxford","Reinier","Renato Steffen","Ridle Baku","Robert Andrich","Robert Gumny","Robert Lewandowski","Robert Skov","Roberto Massimo","Robin Hack","Robin Knoche","Robin Zentner","Roland Sallai","Ruben Vargas","Salih Özcan","Sam Lammers","Santiago Ascacibar","Sargis Adamyan","Saša Kalajdžić","Sascha Burchert","Sebastiaan Bornauw","Sebastian Andersson","Sebastian Griesbeck","Sebastian Polter","Sebastian Rode","Sebastian Rudy","Sebastian Vasiliadis","Serge Gnabry","Sergio Córdova","Sheraldo Becker","Silas","Silvan Widmer","Simon Zoller","Stefan Bell","Stefan Ilsanker","Stefan Lainer","Stefan Ortega Moreno","Stefan Posch","Steffen Tigges","Stevan Jovetić","Suat Serdar","Taiwo Awoniyi","Tanguy Coulibaly","Tanguy Nianzou","Thomas Meunier","Thomas Müller","Thorgan Hazard","Tim Lemperle","Timo Baumgartl","Timo Horn","Timo Hübers","Timothy Chandler","Timothy Fosu-Mensah","Timothy Tillman","Tobias Strobl","Tomas Ostrak","Tony Jantschke","Tuta","Tyler Adams","Vasilios Lampropoulos","Vincenzo Grifo","Vladimír Darida","Wahid Faghir","Waldemar Anton","Wataru Endo","Willi Orbán","Woo-yeong Jeong","Wout Weghorst","Xaver Schlager","Yann Sommer","Yannick Gerhardt","Yannik Keitel","Youssoufa Moukoko","Yussuf Poulsen"]
[null,{"$f":"_xlfn.XLOOKUP(A6,Alle_Spieler[Spieler],Alle_Spieler[Position],\"\")","v":""},{"$f":"_xlfn.XLOOKUP($A6,Alle_Spieler[Spieler],Alle_Spieler[Verein],\"\")","v":""},{"$f":"_xlfn.XLOOKUP($A6,Alle_Spieler[Spieler],Alle_Spieler[Marktwert],\"\")","v":""},{"$f":"_xlfn.XLOOKUP($A6,Alle_Spieler[Spieler],Alle_Spieler[Differenz],\"\")","v":""},{"$f":"IFERROR(Tabelle4[[#This Row],[Marktwertentwicklung]],\"\")","v":""},null,null,null,null,null,null,null,{"$f":"TRANSPOSE(_xlfn._xlws.SORT(_xlfn._xlws.FILTER(Alle_Spieler[Spieler],ISNUMBER((SEARCH(A6,Alle_Spieler[Spieler],1))),\"not found\")))","v":"Aarón"},"Ádám Szalai","Admir Mehmedi","Ajdin Hrustić","Alassane Pléa","Alessandro Schöpf","Alexander Hack","Alexander Schwolow","Alfreð Finnbogason","Almamy Touré","Alphonso Davies","Amadou Haidara","Amine Adli","Amos Pieper","Anderson Lucoqui","Andi Zeqiri","André Hahn","André Silva","Andreas Luthe","Andreas Voglsammer","Andrej Kramarić","Angeliño","Angelo Stiller","Ansgar Knauff","Anthony Losilla","Anthony Modeste","Anton Stach","Armel Bella-Kotchap","Arne Maier","Aster Vranckx","Atakan Karazor","Axel Witsel","Aymen Barkok","Benjamin Henrichs","Benjamin Hübner","Benjamin Pavard","Benno Schmitz","Borna Sosa","Bouna Sarr","Branimir Hrgota","Breel Embolo","Brian Brobbey","Bryan Lasme","Carlos Gruezo","Cédric Brunner","Cedric Itten","Cedric Teuchert","Charles Aránguiz","Chris Führich","Chris Richards","Christian Günter","Christoph Baumgartner","Christoph Kramer","Christopher Antwi-Adjei","Christopher Lenz","Christopher Nkunku","Christopher Trimmel","Clinton Mola","Corentin Tolisso","Cristian Gamboa","Daichi Kamada","Daley Sinkgraven","Dan-Axel Zagadou","Dani Olmo","Daniel Brosinski","Daniel Caligiuri","Daniel Didavi","Danilo Soares","Danny da Costa","David Raum","Davie Selke","Dayot Upamecano","Dedryck Boyata","Dejan Ljubičić","Denis Zakaria","Dennis Geiger","Dennis Jastrzembski","Deyovaisio Zeefuik","Diadié Samassékou","Dickson Abiama","Djibril Sow","Dodi Lukébakio","Dominik Kohr","Dominik Szoboszlai","Dominique Heintz","Donyell Malen","E. Choupo-Moting","Edimilson Fernandes","Edmond Tapsoba","Eduard Löwen","Ellyes Skhiri","Elvis Rexhbeçaj","Emil Forsberg","Emre Can","Erhan Mašović","Erik Durm","Erik Thommy","Erling Braut Haaland","Ermedin Demirović","Evan N'Dicka","Exequiel Palacios","Fabian Bredlow","Fabian Klos","Fabian Kunze","Felix Nmecha","Felix Passlack","Felix Uduokhai","Filip Kostić","Florian Grillitsch","Florian Kainz","Florian Müller","Florian Neuhaus","Florian Niederlechner","Florian Schock","Florian Wirtz","Genki Haraguchi","Georginio Rutter","Gerrit Holtmann","Giovanni Reyna","Gonçalo Paciência","Gregor Kobel","Grischa Prömel","Hamadi Al Ghaddioui","Hannes Wolf","Hans Nunoo Sarpei","Håvard Nielsen","Hiroki Ito","Iago","Ihlas Bebou","Ilaix Moriba","Ishak Belfodil","Jacob Bruun Larsen","Jacob Laursen","Jae-sung Lee","Jamal Musiala","Jan Thielmann","Janik Haberer","Janni Serra","Jean-Paul Boëtius","Jeffrey Gouweleeuw","Jens Petter Hauge","Jeremiah St. Juste","Jeremie Frimpong","Jeremy Dudziak","Jérôme Roussillon","Jesper Lindstrøm","Jetro Willems","Joakim Nilsson","Joe Scally","John Anthony Brooks","Jonas Hector","Jonas Hofmann","Jonathan Burkardt","Jonathan Schmid","Jonathan Tah","Jordan Beyer","Jordan Torunarigha","Jorge Meré","Joshua Kimmich","Josip Stanišić","Joško Gvardiol","Josuha Guilavogui","Jude Bellingham","Julian Brandt","Julian Green","Julian Ryerson","Jurgen Ekkelenkamp","Justin Hoogma","Karim Bellarabi","Karim Onisiwo","Kerem Demirbay","Keven Schlotterbeck","Kevin Akpoguma","Kevin Behrens","Kevin Kampl","Kevin Mbabu","Kevin Möhwald","Kevin Schade","Kevin Stöger","Kevin Trapp","Kevin Vogt","Kevin-Prince Boateng","Kiliann Sildillia","Kingsley Coman","Kingsley Ehizibue","Kingsley Schindler","Koen Casteels","Konrad Laimer","Konstantinos Mavropanos","Konstantinos Stafylidis","Kristijan Jakić","Krzysztof Piątek","Lars Stindl","László Bénes","Leandro Barreiro","Lennart Czyborra","Leon Goretzka","Leroy Sané","Levin Öztunali","Linus Gechter","Louis Schaub","Luca Kilian","Luca Netz","Luca Waldschmidt","Lucas Alario","Lucas Hernández","Lucas Höler","Lucas Tousart","Lukáš Hrádecký","Lukas Klostermann","Lukas Kübler","Lukas Nmecha","Mads Pedersen","Mahmoud Dahoud","Makoto Hasebe","Manu Koné","Manuel Akanji","Manuel Gulde","Manuel Neuer","Manuel Prietl","Manuel Riemann","Marc Oliver Kempf","Marcel Halstenberg","Marcel Sabitzer","Marco Meyerhöfer","Marco Reus","Marco Richter","Marcus Ingvartsen","Marcus Thuram","Marin Pongračić","Marius Funk","Marius Wolf","Mark Flekken","Mark Uth","Martin Hinteregger","Márton Dárdai","Marvin Friedrich","Marvin Plattenhardt","Masaya Okugawa","Mateo Klimowicz","Mateu Morey","Mats Hummels","Matthias Ginter","Max Kruse","Maxence Lacroix","Maxim Leitsch","Maximilian Arnold","Maximilian Bauer","Maximilian Eggestein","Maximilian Mittelstädt","Maximilian Philipp","Mijat Gaćinović","Miloš Pantović","Mitchel Bakker","Mohamed Simakan","Moussa Diaby","Moussa Niakhaté","Munas Dabbur","Myziane Maolida","Nadiem Amiri","Nick Viergever","Nico Elvedi","Nico Schlotterbeck","Nico Schulz","Nicolas Höfler","Niklas Dorsch","Niklas Stark","Niklas Süle","Niklas Tauer","Niko Gießelmann","Nikolas Nartey","Nils Petersen","Noah Weißhaupt","Nordi Mukiele","Odilon Kossounou","Oliver Baumann","Omar Marmoush","Omar Richards","Ömer Faruk Beyaz","Ondrej Duda","Orel Mangala","Pascal Stenzel","Patrick Herrmann","Patrick Wimmer","Patrik Schick","Paul Jaeckel","Paul Seguin","Paulinho","Paulo Otávio","Pavel Kadeřábek","Péter Gulácsi","Peter Pekarík","Philipp Förster","Philipp Klement","Philipp Lienhart","Piero Hincapié","Rafael Czichos","Rafael Santos Borré","Rafał Gikiewicz","Ragnar Ache","Ramy Bensebaini","Rani Khedira","Raphael Framberger","Raphaël Guerreiro","Reece Oxford","Reinier","Renato Steffen","Ridle Baku","Robert Andrich","Robert Gumny","Robert Lewandowski","Robert Skov","Roberto Massimo","Robin Hack","Robin Knoche","Robin Zentner","Roland Sallai","Ruben Vargas","Salih Özcan","Sam Lammers","Santiago Ascacibar","Sargis Adamyan","Saša Kalajdžić","Sascha Burchert","Sebastiaan Bornauw","Sebastian Andersson","Sebastian Griesbeck","Sebastian Polter","Sebastian Rode","Sebastian Rudy","Sebastian Vasiliadis","Serge Gnabry","Sergio Córdova","Sheraldo Becker","Silas","Silvan Widmer","Simon Zoller","Stefan Bell","Stefan Ilsanker","Stefan Lainer","Stefan Ortega Moreno","Stefan Posch","Steffen Tigges","Stevan Jovetić","Suat Serdar","Taiwo Awoniyi","Tanguy Coulibaly","Tanguy Nianzou","Thomas Meunier","Thomas Müller","Thorgan Hazard","Tim Lemperle","Timo Baumgartl","Timo Horn","Timo Hübers","Timothy Chandler","Timothy Fosu-Mensah","Timothy Tillman","Tobias Strobl","Tomas Ostrak","Tony Jantschke","Tuta","Tyler Adams","Vasilios Lampropoulos","Vincenzo Grifo","Vladimír Darida","Wahid Faghir","Waldemar Anton","Wataru Endo","Willi Orbán","Woo-yeong Jeong","Wout Weghorst","Xaver Schlager","Yann Sommer","Yannick Gerhardt","Yannik Keitel","Youssoufa Moukoko","Yussuf Poulsen"]
[null,{"$f":"_xlfn.XLOOKUP(A7,Alle_Spieler[Spieler],Alle_Spieler[Position],\"\")","v":""},{"$f":"_xlfn.XLOOKUP($A7,Alle_Spieler[Spieler],Alle_Spieler[Verein],\"\")","v":""},{"$f":"_xlfn.XLOOKUP($A7,Alle_Spieler[Spieler],Alle_Spieler[Marktwert],\"\")","v":""},{"$f":"_xlfn.XLOOKUP($A7,Alle_Spieler[Spieler],Alle_Spieler[Differenz],\"\")","v":""},{"$f":"Tabelle4[[#This Row],[Marktwertentwicklung]]","v":""},null,null,null,null,null,null,null,{"$f":"TRANSPOSE(_xlfn._xlws.SORT(_xlfn._xlws.FILTER(Alle_Spieler[Spieler],ISNUMBER((SEARCH(A7,Alle_Spieler[Spieler],1))),\"not found\")))","v":"Aarón"},"Ádám Szalai","Admir Mehmedi","Ajdin Hrustić","Alassane Pléa","Alessandro Schöpf","Alexander Hack","Alexander Schwolow","Alfreð Finnbogason","Almamy Touré","Alphonso Davies","Amadou Haidara","Amine Adli","Amos Pieper","Anderson Lucoqui","Andi Zeqiri","André Hahn","André Silva","Andreas Luthe","Andreas Voglsammer","Andrej Kramarić","Angeliño","Angelo Stiller","Ansgar Knauff","Anthony Losilla","Anthony Modeste","Anton Stach","Armel Bella-Kotchap","Arne Maier","Aster Vranckx","Atakan Karazor","Axel Witsel","Aymen Barkok","Benjamin Henrichs","Benjamin Hübner","Benjamin Pavard","Benno Schmitz","Borna Sosa","Bouna Sarr","Branimir Hrgota","Breel Embolo","Brian Brobbey","Bryan Lasme","Carlos Gruezo","Cédric Brunner","Cedric Itten","Cedric Teuchert","Charles Aránguiz","Chris Führich","Chris Richards","Christian Günter","Christoph Baumgartner","Christoph Kramer","Christopher Antwi-Adjei","Christopher Lenz","Christopher Nkunku","Christopher Trimmel","Clinton Mola","Corentin Tolisso","Cristian Gamboa","Daichi Kamada","Daley Sinkgraven","Dan-Axel Zagadou","Dani Olmo","Daniel Brosinski","Daniel Caligiuri","Daniel Didavi","Danilo Soares","Danny da Costa","David Raum","Davie Selke","Dayot Upamecano","Dedryck Boyata","Dejan Ljubičić","Denis Zakaria","Dennis Geiger","Dennis Jastrzembski","Deyovaisio Zeefuik","Diadié Samassékou","Dickson Abiama","Djibril Sow","Dodi Lukébakio","Dominik Kohr","Dominik Szoboszlai","Dominique Heintz","Donyell Malen","E. Choupo-Moting","Edimilson Fernandes","Edmond Tapsoba","Eduard Löwen","Ellyes Skhiri","Elvis Rexhbeçaj","Emil Forsberg","Emre Can","Erhan Mašović","Erik Durm","Erik Thommy","Erling Braut Haaland","Ermedin Demirović","Evan N'Dicka","Exequiel Palacios","Fabian Bredlow","Fabian Klos","Fabian Kunze","Felix Nmecha","Felix Passlack","Felix Uduokhai","Filip Kostić","Florian Grillitsch","Florian Kainz","Florian Müller","Florian Neuhaus","Florian Niederlechner","Florian Schock","Florian Wirtz","Genki Haraguchi","Georginio Rutter","Gerrit Holtmann","Giovanni Reyna","Gonçalo Paciência","Gregor Kobel","Grischa Prömel","Hamadi Al Ghaddioui","Hannes Wolf","Hans Nunoo Sarpei","Håvard Nielsen","Hiroki Ito","Iago","Ihlas Bebou","Ilaix Moriba","Ishak Belfodil","Jacob Bruun Larsen","Jacob Laursen","Jae-sung Lee","Jamal Musiala","Jan Thielmann","Janik Haberer","Janni Serra","Jean-Paul Boëtius","Jeffrey Gouweleeuw","Jens Petter Hauge","Jeremiah St. Juste","Jeremie Frimpong","Jeremy Dudziak","Jérôme Roussillon","Jesper Lindstrøm","Jetro Willems","Joakim Nilsson","Joe Scally","John Anthony Brooks","Jonas Hector","Jonas Hofmann","Jonathan Burkardt","Jonathan Schmid","Jonathan Tah","Jordan Beyer","Jordan Torunarigha","Jorge Meré","Joshua Kimmich","Josip Stanišić","Joško Gvardiol","Josuha Guilavogui","Jude Bellingham","Julian Brandt","Julian Green","Julian Ryerson","Jurgen Ekkelenkamp","Justin Hoogma","Karim Bellarabi","Karim Onisiwo","Kerem Demirbay","Keven Schlotterbeck","Kevin Akpoguma","Kevin Behrens","Kevin Kampl","Kevin Mbabu","Kevin Möhwald","Kevin Schade","Kevin Stöger","Kevin Trapp","Kevin Vogt","Kevin-Prince Boateng","Kiliann Sildillia","Kingsley Coman","Kingsley Ehizibue","Kingsley Schindler","Koen Casteels","Konrad Laimer","Konstantinos Mavropanos","Konstantinos Stafylidis","Kristijan Jakić","Krzysztof Piątek","Lars Stindl","László Bénes","Leandro Barreiro","Lennart Czyborra","Leon Goretzka","Leroy Sané","Levin Öztunali","Linus Gechter","Louis Schaub","Luca Kilian","Luca Netz","Luca Waldschmidt","Lucas Alario","Lucas Hernández","Lucas Höler","Lucas Tousart","Lukáš Hrádecký","Lukas Klostermann","Lukas Kübler","Lukas Nmecha","Mads Pedersen","Mahmoud Dahoud","Makoto Hasebe","Manu Koné","Manuel Akanji","Manuel Gulde","Manuel Neuer","Manuel Prietl","Manuel Riemann","Marc Oliver Kempf","Marcel Halstenberg","Marcel Sabitzer","Marco Meyerhöfer","Marco Reus","Marco Richter","Marcus Ingvartsen","Marcus Thuram","Marin Pongračić","Marius Funk","Marius Wolf","Mark Flekken","Mark Uth","Martin Hinteregger","Márton Dárdai","Marvin Friedrich","Marvin Plattenhardt","Masaya Okugawa","Mateo Klimowicz","Mateu Morey","Mats Hummels","Matthias Ginter","Max Kruse","Maxence Lacroix","Maxim Leitsch","Maximilian Arnold","Maximilian Bauer","Maximilian Eggestein","Maximilian Mittelstädt","Maximilian Philipp","Mijat Gaćinović","Miloš Pantović","Mitchel Bakker","Mohamed Simakan","Moussa Diaby","Moussa Niakhaté","Munas Dabbur","Myziane Maolida","Nadiem Amiri","Nick Viergever","Nico Elvedi","Nico Schlotterbeck","Nico Schulz","Nicolas Höfler","Niklas Dorsch","Niklas Stark","Niklas Süle","Niklas Tauer","Niko Gießelmann","Nikolas Nartey","Nils Petersen","Noah Weißhaupt","Nordi Mukiele","Odilon Kossounou","Oliver Baumann","Omar Marmoush","Omar Richards","Ömer Faruk Beyaz","Ondrej Duda","Orel Mangala","Pascal Stenzel","Patrick Herrmann","Patrick Wimmer","Patrik Schick","Paul Jaeckel","Paul Seguin","Paulinho","Paulo Otávio","Pavel Kadeřábek","Péter Gulácsi","Peter Pekarík","Philipp Förster","Philipp Klement","Philipp Lienhart","Piero Hincapié","Rafael Czichos","Rafael Santos Borré","Rafał Gikiewicz","Ragnar Ache","Ramy Bensebaini","Rani Khedira","Raphael Framberger","Raphaël Guerreiro","Reece Oxford","Reinier","Renato Steffen","Ridle Baku","Robert Andrich","Robert Gumny","Robert Lewandowski","Robert Skov","Roberto Massimo","Robin Hack","Robin Knoche","Robin Zentner","Roland Sallai","Ruben Vargas","Salih Özcan","Sam Lammers","Santiago Ascacibar","Sargis Adamyan","Saša Kalajdžić","Sascha Burchert","Sebastiaan Bornauw","Sebastian Andersson","Sebastian Griesbeck","Sebastian Polter","Sebastian Rode","Sebastian Rudy","Sebastian Vasiliadis","Serge Gnabry","Sergio Córdova","Sheraldo Becker","Silas","Silvan Widmer","Simon Zoller","Stefan Bell","Stefan Ilsanker","Stefan Lainer","Stefan Ortega Moreno","Stefan Posch","Steffen Tigges","Stevan Jovetić","Suat Serdar","Taiwo Awoniyi","Tanguy Coulibaly","Tanguy Nianzou","Thomas Meunier","Thomas Müller","Thorgan Hazard","Tim Lemperle","Timo Baumgartl","Timo Horn","Timo Hübers","Timothy Chandler","Timothy Fosu-Mensah","Timothy Tillman","Tobias Strobl","Tomas Ostrak","Tony Jantschke","Tuta","Tyler Adams","Vasilios Lampropoulos","Vincenzo Grifo","Vladimír Darida","Wahid Faghir","Waldemar Anton","Wataru Endo","Willi Orbán","Woo-yeong Jeong","Wout Weghorst","Xaver Schlager","Yann Sommer","Yannick Gerhardt","Yannik Keitel","Youssoufa Moukoko","Yussuf Poulsen"]
[null,{"$f":"_xlfn.XLOOKUP(A8,Alle_Spieler[Spieler],Alle_Spieler[Position],\"\")","v":""},{"$f":"_xlfn.XLOOKUP($A8,Alle_Spieler[Spieler],Alle_Spieler[Verein],\"\")","v":""},{"$f":"_xlfn.XLOOKUP($A8,Alle_Spieler[Spieler],Alle_Spieler[Marktwert],\"\")","v":""},{"$f":"_xlfn.XLOOKUP($A8,Alle_Spieler[Spieler],Alle_Spieler[Differenz],\"\")","v":""},{"$f":"Tabelle4[[#This Row],[Marktwertentwicklung]]","v":""},null,null,null,null,null,null,null,{"$f":"TRANSPOSE(_xlfn._xlws.SORT(_xlfn._xlws.FILTER(Alle_Spieler[Spieler],ISNUMBER((SEARCH(A8,Alle_Spieler[Spieler],1))),\"not found\")))","v":"Aarón"},"Ádám Szalai","Admir Mehmedi","Ajdin Hrustić","Alassane Pléa","Alessandro Schöpf","Alexander Hack","Alexander Schwolow","Alfreð Finnbogason","Almamy Touré","Alphonso Davies","Amadou Haidara","Amine Adli","Amos Pieper","Anderson Lucoqui","Andi Zeqiri","André Hahn","André Silva","Andreas Luthe","Andreas Voglsammer","Andrej Kramarić","Angeliño","Angelo Stiller","Ansgar Knauff","Anthony Losilla","Anthony Modeste","Anton Stach","Armel Bella-Kotchap","Arne Maier","Aster Vranckx","Atakan Karazor","Axel Witsel","Aymen Barkok","Benjamin Henrichs","Benjamin Hübner","Benjamin Pavard","Benno Schmitz","Borna Sosa","Bouna Sarr","Branimir Hrgota","Breel Embolo","Brian Brobbey","Bryan Lasme","Carlos Gruezo","Cédric Brunner","Cedric Itten","Cedric Teuchert","Charles Aránguiz","Chris Führich","Chris Richards","Christian Günter","Christoph Baumgartner","Christoph Kramer","Christopher Antwi-Adjei","Christopher Lenz","Christopher Nkunku","Christopher Trimmel","Clinton Mola","Corentin Tolisso","Cristian Gamboa","Daichi Kamada","Daley Sinkgraven","Dan-Axel Zagadou","Dani Olmo","Daniel Brosinski","Daniel Caligiuri","Daniel Didavi","Danilo Soares","Danny da Costa","David Raum","Davie Selke","Dayot Upamecano","Dedryck Boyata","Dejan Ljubičić","Denis Zakaria","Dennis Geiger","Dennis Jastrzembski","Deyovaisio Zeefuik","Diadié Samassékou","Dickson Abiama","Djibril Sow","Dodi Lukébakio","Dominik Kohr","Dominik Szoboszlai","Dominique Heintz","Donyell Malen","E. Choupo-Moting","Edimilson Fernandes","Edmond Tapsoba","Eduard Löwen","Ellyes Skhiri","Elvis Rexhbeçaj","Emil Forsberg","Emre Can","Erhan Mašović","Erik Durm","Erik Thommy","Erling Braut Haaland","Ermedin Demirović","Evan N'Dicka","Exequiel Palacios","Fabian Bredlow","Fabian Klos","Fabian Kunze","Felix Nmecha","Felix Passlack","Felix Uduokhai","Filip Kostić","Florian Grillitsch","Florian Kainz","Florian Müller","Florian Neuhaus","Florian Niederlechner","Florian Schock","Florian Wirtz","Genki Haraguchi","Georginio Rutter","Gerrit Holtmann","Giovanni Reyna","Gonçalo Paciência","Gregor Kobel","Grischa Prömel","Hamadi Al Ghaddioui","Hannes Wolf","Hans Nunoo Sarpei","Håvard Nielsen","Hiroki Ito","Iago","Ihlas Bebou","Ilaix Moriba","Ishak Belfodil","Jacob Bruun Larsen","Jacob Laursen","Jae-sung Lee","Jamal Musiala","Jan Thielmann","Janik Haberer","Janni Serra","Jean-Paul Boëtius","Jeffrey Gouweleeuw","Jens Petter Hauge","Jeremiah St. Juste","Jeremie Frimpong","Jeremy Dudziak","Jérôme Roussillon","Jesper Lindstrøm","Jetro Willems","Joakim Nilsson","Joe Scally","John Anthony Brooks","Jonas Hector","Jonas Hofmann","Jonathan Burkardt","Jonathan Schmid","Jonathan Tah","Jordan Beyer","Jordan Torunarigha","Jorge Meré","Joshua Kimmich","Josip Stanišić","Joško Gvardiol","Josuha Guilavogui","Jude Bellingham","Julian Brandt","Julian Green","Julian Ryerson","Jurgen Ekkelenkamp","Justin Hoogma","Karim Bellarabi","Karim Onisiwo","Kerem Demirbay","Keven Schlotterbeck","Kevin Akpoguma","Kevin Behrens","Kevin Kampl","Kevin Mbabu","Kevin Möhwald","Kevin Schade","Kevin Stöger","Kevin Trapp","Kevin Vogt","Kevin-Prince Boateng","Kiliann Sildillia","Kingsley Coman","Kingsley Ehizibue","Kingsley Schindler","Koen Casteels","Konrad Laimer","Konstantinos Mavropanos","Konstantinos Stafylidis","Kristijan Jakić","Krzysztof Piątek","Lars Stindl","László Bénes","Leandro Barreiro","Lennart Czyborra","Leon Goretzka","Leroy Sané","Levin Öztunali","Linus Gechter","Louis Schaub","Luca Kilian","Luca Netz","Luca Waldschmidt","Lucas Alario","Lucas Hernández","Lucas Höler","Lucas Tousart","Lukáš Hrádecký","Lukas Klostermann","Lukas Kübler","Lukas Nmecha","Mads Pedersen","Mahmoud Dahoud","Makoto Hasebe","Manu Koné","Manuel Akanji","Manuel Gulde","Manuel Neuer","Manuel Prietl","Manuel Riemann","Marc Oliver Kempf","Marcel Halstenberg","Marcel Sabitzer","Marco Meyerhöfer","Marco Reus","Marco Richter","Marcus Ingvartsen","Marcus Thuram","Marin Pongračić","Marius Funk","Marius Wolf","Mark Flekken","Mark Uth","Martin Hinteregger","Márton Dárdai","Marvin Friedrich","Marvin Plattenhardt","Masaya Okugawa","Mateo Klimowicz","Mateu Morey","Mats Hummels","Matthias Ginter","Max Kruse","Maxence Lacroix","Maxim Leitsch","Maximilian Arnold","Maximilian Bauer","Maximilian Eggestein","Maximilian Mittelstädt","Maximilian Philipp","Mijat Gaćinović","Miloš Pantović","Mitchel Bakker","Mohamed Simakan","Moussa Diaby","Moussa Niakhaté","Munas Dabbur","Myziane Maolida","Nadiem Amiri","Nick Viergever","Nico Elvedi","Nico Schlotterbeck","Nico Schulz","Nicolas Höfler","Niklas Dorsch","Niklas Stark","Niklas Süle","Niklas Tauer","Niko Gießelmann","Nikolas Nartey","Nils Petersen","Noah Weißhaupt","Nordi Mukiele","Odilon Kossounou","Oliver Baumann","Omar Marmoush","Omar Richards","Ömer Faruk Beyaz","Ondrej Duda","Orel Mangala","Pascal Stenzel","Patrick Herrmann","Patrick Wimmer","Patrik Schick","Paul Jaeckel","Paul Seguin","Paulinho","Paulo Otávio","Pavel Kadeřábek","Péter Gulácsi","Peter Pekarík","Philipp Förster","Philipp Klement","Philipp Lienhart","Piero Hincapié","Rafael Czichos","Rafael Santos Borré","Rafał Gikiewicz","Ragnar Ache","Ramy Bensebaini","Rani Khedira","Raphael Framberger","Raphaël Guerreiro","Reece Oxford","Reinier","Renato Steffen","Ridle Baku","Robert Andrich","Robert Gumny","Robert Lewandowski","Robert Skov","Roberto Massimo","Robin Hack","Robin Knoche","Robin Zentner","Roland Sallai","Ruben Vargas","Salih Özcan","Sam Lammers","Santiago Ascacibar","Sargis Adamyan","Saša Kalajdžić","Sascha Burchert","Sebastiaan Bornauw","Sebastian Andersson","Sebastian Griesbeck","Sebastian Polter","Sebastian Rode","Sebastian Rudy","Sebastian Vasiliadis","Serge Gnabry","Sergio Córdova","Sheraldo Becker","Silas","Silvan Widmer","Simon Zoller","Stefan Bell","Stefan Ilsanker","Stefan Lainer","Stefan Ortega Moreno","Stefan Posch","Steffen Tigges","Stevan Jovetić","Suat Serdar","Taiwo Awoniyi","Tanguy Coulibaly","Tanguy Nianzou","Thomas Meunier","Thomas Müller","Thorgan Hazard","Tim Lemperle","Timo Baumgartl","Timo Horn","Timo Hübers","Timothy Chandler","Timothy Fosu-Mensah","Timothy Tillman","Tobias Strobl","Tomas Ostrak","Tony Jantschke","Tuta","Tyler Adams","Vasilios Lampropoulos","Vincenzo Grifo","Vladimír Darida","Wahid Faghir","Waldemar Anton","Wataru Endo","Willi Orbán","Woo-yeong Jeong","Wout Weghorst","Xaver Schlager","Yann Sommer","Yannick Gerhardt","Yannik Keitel","Youssoufa Moukoko","Yussuf Poulsen"]
[null,{"$f":"_xlfn.XLOOKUP(A9,Alle_Spieler[Spieler],Alle_Spieler[Position],\"\")","v":""},{"$f":"_xlfn.XLOOKUP($A9,Alle_Spieler[Spieler],Alle_Spieler[Verein],\"\")","v":""},{"$f":"_xlfn.XLOOKUP($A9,Alle_Spieler[Spieler],Alle_Spieler[Marktwert],\"\")","v":""},{"$f":"_xlfn.XLOOKUP($A9,Alle_Spieler[Spieler],Alle_Spieler[Differenz],\"\")","v":""},{"$f":"Tabelle4[[#This Row],[Marktwertentwicklung]]","v":""},null,null,null,null,null,null,null,{"$f":"TRANSPOSE(_xlfn._xlws.SORT(_xlfn._xlws.FILTER(Alle_Spieler[Spieler],ISNUMBER((SEARCH(A9,Alle_Spieler[Spieler],1))),\"not found\")))","v":"Aarón"},"Ádám Szalai","Admir Mehmedi","Ajdin Hrustić","Alassane Pléa","Alessandro Schöpf","Alexander Hack","Alexander Schwolow","Alfreð Finnbogason","Almamy Touré","Alphonso Davies","Amadou Haidara","Amine Adli","Amos Pieper","Anderson Lucoqui","Andi Zeqiri","André Hahn","André Silva","Andreas Luthe","Andreas Voglsammer","Andrej Kramarić","Angeliño","Angelo Stiller","Ansgar Knauff","Anthony Losilla","Anthony Modeste","Anton Stach","Armel Bella-Kotchap","Arne Maier","Aster Vranckx","Atakan Karazor","Axel Witsel","Aymen Barkok","Benjamin Henrichs","Benjamin Hübner","Benjamin Pavard","Benno Schmitz","Borna Sosa","Bouna Sarr","Branimir Hrgota","Breel Embolo","Brian Brobbey","Bryan Lasme","Carlos Gruezo","Cédric Brunner","Cedric Itten","Cedric Teuchert","Charles Aránguiz","Chris Führich","Chris Richards","Christian Günter","Christoph Baumgartner","Christoph Kramer","Christopher Antwi-Adjei","Christopher Lenz","Christopher Nkunku","Christopher Trimmel","Clinton Mola","Corentin Tolisso","Cristian Gamboa","Daichi Kamada","Daley Sinkgraven","Dan-Axel Zagadou","Dani Olmo","Daniel Brosinski","Daniel Caligiuri","Daniel Didavi","Danilo Soares","Danny da Costa","David Raum","Davie Selke","Dayot Upamecano","Dedryck Boyata","Dejan Ljubičić","Denis Zakaria","Dennis Geiger","Dennis Jastrzembski","Deyovaisio Zeefuik","Diadié Samassékou","Dickson Abiama","Djibril Sow","Dodi Lukébakio","Dominik Kohr","Dominik Szoboszlai","Dominique Heintz","Donyell Malen","E. Choupo-Moting","Edimilson Fernandes","Edmond Tapsoba","Eduard Löwen","Ellyes Skhiri","Elvis Rexhbeçaj","Emil Forsberg","Emre Can","Erhan Mašović","Erik Durm","Erik Thommy","Erling Braut Haaland","Ermedin Demirović","Evan N'Dicka","Exequiel Palacios","Fabian Bredlow","Fabian Klos","Fabian Kunze","Felix Nmecha","Felix Passlack","Felix Uduokhai","Filip Kostić","Florian Grillitsch","Florian Kainz","Florian Müller","Florian Neuhaus","Florian Niederlechner","Florian Schock","Florian Wirtz","Genki Haraguchi","Georginio Rutter","Gerrit Holtmann","Giovanni Reyna","Gonçalo Paciência","Gregor Kobel","Grischa Prömel","Hamadi Al Ghaddioui","Hannes Wolf","Hans Nunoo Sarpei","Håvard Nielsen","Hiroki Ito","Iago","Ihlas Bebou","Ilaix Moriba","Ishak Belfodil","Jacob Bruun Larsen","Jacob Laursen","Jae-sung Lee","Jamal Musiala","Jan Thielmann","Janik Haberer","Janni Serra","Jean-Paul Boëtius","Jeffrey Gouweleeuw","Jens Petter Hauge","Jeremiah St. Juste","Jeremie Frimpong","Jeremy Dudziak","Jérôme Roussillon","Jesper Lindstrøm","Jetro Willems","Joakim Nilsson","Joe Scally","John Anthony Brooks","Jonas Hector","Jonas Hofmann","Jonathan Burkardt","Jonathan Schmid","Jonathan Tah","Jordan Beyer","Jordan Torunarigha","Jorge Meré","Joshua Kimmich","Josip Stanišić","Joško Gvardiol","Josuha Guilavogui","Jude Bellingham","Julian Brandt","Julian Green","Julian Ryerson","Jurgen Ekkelenkamp","Justin Hoogma","Karim Bellarabi","Karim Onisiwo","Kerem Demirbay","Keven Schlotterbeck","Kevin Akpoguma","Kevin Behrens","Kevin Kampl","Kevin Mbabu","Kevin Möhwald","Kevin Schade","Kevin Stöger","Kevin Trapp","Kevin Vogt","Kevin-Prince Boateng","Kiliann Sildillia","Kingsley Coman","Kingsley Ehizibue","Kingsley Schindler","Koen Casteels","Konrad Laimer","Konstantinos Mavropanos","Konstantinos Stafylidis","Kristijan Jakić","Krzysztof Piątek","Lars Stindl","László Bénes","Leandro Barreiro","Lennart Czyborra","Leon Goretzka","Leroy Sané","Levin Öztunali","Linus Gechter","Louis Schaub","Luca Kilian","Luca Netz","Luca Waldschmidt","Lucas Alario","Lucas Hernández","Lucas Höler","Lucas Tousart","Lukáš Hrádecký","Lukas Klostermann","Lukas Kübler","Lukas Nmecha","Mads Pedersen","Mahmoud Dahoud","Makoto Hasebe","Manu Koné","Manuel Akanji","Manuel Gulde","Manuel Neuer","Manuel Prietl","Manuel Riemann","Marc Oliver Kempf","Marcel Halstenberg","Marcel Sabitzer","Marco Meyerhöfer","Marco Reus","Marco Richter","Marcus Ingvartsen","Marcus Thuram","Marin Pongračić","Marius Funk","Marius Wolf","Mark Flekken","Mark Uth","Martin Hinteregger","Márton Dárdai","Marvin Friedrich","Marvin Plattenhardt","Masaya Okugawa","Mateo Klimowicz","Mateu Morey","Mats Hummels","Matthias Ginter","Max Kruse","Maxence Lacroix","Maxim Leitsch","Maximilian Arnold","Maximilian Bauer","Maximilian Eggestein","Maximilian Mittelstädt","Maximilian Philipp","Mijat Gaćinović","Miloš Pantović","Mitchel Bakker","Mohamed Simakan","Moussa Diaby","Moussa Niakhaté","Munas Dabbur","Myziane Maolida","Nadiem Amiri","Nick Viergever","Nico Elvedi","Nico Schlotterbeck","Nico Schulz","Nicolas Höfler","Niklas Dorsch","Niklas Stark","Niklas Süle","Niklas Tauer","Niko Gießelmann","Nikolas Nartey","Nils Petersen","Noah Weißhaupt","Nordi Mukiele","Odilon Kossounou","Oliver Baumann","Omar Marmoush","Omar Richards","Ömer Faruk Beyaz","Ondrej Duda","Orel Mangala","Pascal Stenzel","Patrick Herrmann","Patrick Wimmer","Patrik Schick","Paul Jaeckel","Paul Seguin","Paulinho","Paulo Otávio","Pavel Kadeřábek","Péter Gulácsi","Peter Pekarík","Philipp Förster","Philipp Klement","Philipp Lienhart","Piero Hincapié","Rafael Czichos","Rafael Santos Borré","Rafał Gikiewicz","Ragnar Ache","Ramy Bensebaini","Rani Khedira","Raphael Framberger","Raphaël Guerreiro","Reece Oxford","Reinier","Renato Steffen","Ridle Baku","Robert Andrich","Robert Gumny","Robert Lewandowski","Robert Skov","Roberto Massimo","Robin Hack","Robin Knoche","Robin Zentner","Roland Sallai","Ruben Vargas","Salih Özcan","Sam Lammers","Santiago Ascacibar","Sargis Adamyan","Saša Kalajdžić","Sascha Burchert","Sebastiaan Bornauw","Sebastian Andersson","Sebastian Griesbeck","Sebastian Polter","Sebastian Rode","Sebastian Rudy","Sebastian Vasiliadis","Serge Gnabry","Sergio Córdova","Sheraldo Becker","Silas","Silvan Widmer","Simon Zoller","Stefan Bell","Stefan Ilsanker","Stefan Lainer","Stefan Ortega Moreno","Stefan Posch","Steffen Tigges","Stevan Jovetić","Suat Serdar","Taiwo Awoniyi","Tanguy Coulibaly","Tanguy Nianzou","Thomas Meunier","Thomas Müller","Thorgan Hazard","Tim Lemperle","Timo Baumgartl","Timo Horn","Timo Hübers","Timothy Chandler","Timothy Fosu-Mensah","Timothy Tillman","Tobias Strobl","Tomas Ostrak","Tony Jantschke","Tuta","Tyler Adams","Vasilios Lampropoulos","Vincenzo Grifo","Vladimír Darida","Wahid Faghir","Waldemar Anton","Wataru Endo","Willi Orbán","Woo-yeong Jeong","Wout Weghorst","Xaver Schlager","Yann Sommer","Yannick Gerhardt","Yannik Keitel","Youssoufa Moukoko","Yussuf Poulsen"]
[null,{"$f":"_xlfn.XLOOKUP(A10,Alle_Spieler[Spieler],Alle_Spieler[Position],\"\")","v":""},{"$f":"_xlfn.XLOOKUP($A10,Alle_Spieler[Spieler],Alle_Spieler[Verein],\"\")","v":""},{"$f":"_xlfn.XLOOKUP($A10,Alle_Spieler[Spieler],Alle_Spieler[Marktwert],\"\")","v":""},{"$f":"_xlfn.XLOOKUP($A10,Alle_Spieler[Spieler],Alle_Spieler[Differenz],\"\")","v":""},{"$f":"IFERROR(Tabelle4[[#This Row],[Marktwertentwicklung]],\"\")","v":""},null,null,null,null,null,null,null,{"$f":"TRANSPOSE(_xlfn._xlws.SORT(_xlfn._xlws.FILTER(Alle_Spieler[Spieler],ISNUMBER((SEARCH(A10,Alle_Spieler[Spieler],1))),\"not found\")))","v":"Aarón"},"Ádám Szalai","Admir Mehmedi","Ajdin Hrustić","Alassane Pléa","Alessandro Schöpf","Alexander Hack","Alexander Schwolow","Alfreð Finnbogason","Almamy Touré","Alphonso Davies","Amadou Haidara","Amine Adli","Amos Pieper","Anderson Lucoqui","Andi Zeqiri","André Hahn","André Silva","Andreas Luthe","Andreas Voglsammer","Andrej Kramarić","Angeliño","Angelo Stiller","Ansgar Knauff","Anthony Losilla","Anthony Modeste","Anton Stach","Armel Bella-Kotchap","Arne Maier","Aster Vranckx","Atakan Karazor","Axel Witsel","Aymen Barkok","Benjamin Henrichs","Benjamin Hübner","Benjamin Pavard","Benno Schmitz","Borna Sosa","Bouna Sarr","Branimir Hrgota","Breel Embolo","Brian Brobbey","Bryan Lasme","Carlos Gruezo","Cédric Brunner","Cedric Itten","Cedric Teuchert","Charles Aránguiz","Chris Führich","Chris Richards","Christian Günter","Christoph Baumgartner","Christoph Kramer","Christopher Antwi-Adjei","Christopher Lenz","Christopher Nkunku","Christopher Trimmel","Clinton Mola","Corentin Tolisso","Cristian Gamboa","Daichi Kamada","Daley Sinkgraven","Dan-Axel Zagadou","Dani Olmo","Daniel Brosinski","Daniel Caligiuri","Daniel Didavi","Danilo Soares","Danny da Costa","David Raum","Davie Selke","Dayot Upamecano","Dedryck Boyata","Dejan Ljubičić","Denis Zakaria","Dennis Geiger","Dennis Jastrzembski","Deyovaisio Zeefuik","Diadié Samassékou","Dickson Abiama","Djibril Sow","Dodi Lukébakio","Dominik Kohr","Dominik Szoboszlai","Dominique Heintz","Donyell Malen","E. Choupo-Moting","Edimilson Fernandes","Edmond Tapsoba","Eduard Löwen","Ellyes Skhiri","Elvis Rexhbeçaj","Emil Forsberg","Emre Can","Erhan Mašović","Erik Durm","Erik Thommy","Erling Braut Haaland","Ermedin Demirović","Evan N'Dicka","Exequiel Palacios","Fabian Bredlow","Fabian Klos","Fabian Kunze","Felix Nmecha","Felix Passlack","Felix Uduokhai","Filip Kostić","Florian Grillitsch","Florian Kainz","Florian Müller","Florian Neuhaus","Florian Niederlechner","Florian Schock","Florian Wirtz","Genki Haraguchi","Georginio Rutter","Gerrit Holtmann","Giovanni Reyna","Gonçalo Paciência","Gregor Kobel","Grischa Prömel","Hamadi Al Ghaddioui","Hannes Wolf","Hans Nunoo Sarpei","Håvard Nielsen","Hiroki Ito","Iago","Ihlas Bebou","Ilaix Moriba","Ishak Belfodil","Jacob Bruun Larsen","Jacob Laursen","Jae-sung Lee","Jamal Musiala","Jan Thielmann","Janik Haberer","Janni Serra","Jean-Paul Boëtius","Jeffrey Gouweleeuw","Jens Petter Hauge","Jeremiah St. Juste","Jeremie Frimpong","Jeremy Dudziak","Jérôme Roussillon","Jesper Lindstrøm","Jetro Willems","Joakim Nilsson","Joe Scally","John Anthony Brooks","Jonas Hector","Jonas Hofmann","Jonathan Burkardt","Jonathan Schmid","Jonathan Tah","Jordan Beyer","Jordan Torunarigha","Jorge Meré","Joshua Kimmich","Josip Stanišić","Joško Gvardiol","Josuha Guilavogui","Jude Bellingham","Julian Brandt","Julian Green","Julian Ryerson","Jurgen Ekkelenkamp","Justin Hoogma","Karim Bellarabi","Karim Onisiwo","Kerem Demirbay","Keven Schlotterbeck","Kevin Akpoguma","Kevin Behrens","Kevin Kampl","Kevin Mbabu","Kevin Möhwald","Kevin Schade","Kevin Stöger","Kevin Trapp","Kevin Vogt","Kevin-Prince Boateng","Kiliann Sildillia","Kingsley Coman","Kingsley Ehizibue","Kingsley Schindler","Koen Casteels","Konrad Laimer","Konstantinos Mavropanos","Konstantinos Stafylidis","Kristijan Jakić","Krzysztof Piątek","Lars Stindl","László Bénes","Leandro Barreiro","Lennart Czyborra","Leon Goretzka","Leroy Sané","Levin Öztunali","Linus Gechter","Louis Schaub","Luca Kilian","Luca Netz","Luca Waldschmidt","Lucas Alario","Lucas Hernández","Lucas Höler","Lucas Tousart","Lukáš Hrádecký","Lukas Klostermann","Lukas Kübler","Lukas Nmecha","Mads Pedersen","Mahmoud Dahoud","Makoto Hasebe","Manu Koné","Manuel Akanji","Manuel Gulde","Manuel Neuer","Manuel Prietl","Manuel Riemann","Marc Oliver Kempf","Marcel Halstenberg","Marcel Sabitzer","Marco Meyerhöfer","Marco Reus","Marco Richter","Marcus Ingvartsen","Marcus Thuram","Marin Pongračić","Marius Funk","Marius Wolf","Mark Flekken","Mark Uth","Martin Hinteregger","Márton Dárdai","Marvin Friedrich","Marvin Plattenhardt","Masaya Okugawa","Mateo Klimowicz","Mateu Morey","Mats Hummels","Matthias Ginter","Max Kruse","Maxence Lacroix","Maxim Leitsch","Maximilian Arnold","Maximilian Bauer","Maximilian Eggestein","Maximilian Mittelstädt","Maximilian Philipp","Mijat Gaćinović","Miloš Pantović","Mitchel Bakker","Mohamed Simakan","Moussa Diaby","Moussa Niakhaté","Munas Dabbur","Myziane Maolida","Nadiem Amiri","Nick Viergever","Nico Elvedi","Nico Schlotterbeck","Nico Schulz","Nicolas Höfler","Niklas Dorsch","Niklas Stark","Niklas Süle","Niklas Tauer","Niko Gießelmann","Nikolas Nartey","Nils Petersen","Noah Weißhaupt","Nordi Mukiele","Odilon Kossounou","Oliver Baumann","Omar Marmoush","Omar Richards","Ömer Faruk Beyaz","Ondrej Duda","Orel Mangala","Pascal Stenzel","Patrick Herrmann","Patrick Wimmer","Patrik Schick","Paul Jaeckel","Paul Seguin","Paulinho","Paulo Otávio","Pavel Kadeřábek","Péter Gulácsi","Peter Pekarík","Philipp Förster","Philipp Klement","Philipp Lienhart","Piero Hincapié","Rafael Czichos","Rafael Santos Borré","Rafał Gikiewicz","Ragnar Ache","Ramy Bensebaini","Rani Khedira","Raphael Framberger","Raphaël Guerreiro","Reece Oxford","Reinier","Renato Steffen","Ridle Baku","Robert Andrich","Robert Gumny","Robert Lewandowski","Robert Skov","Roberto Massimo","Robin Hack","Robin Knoche","Robin Zentner","Roland Sallai","Ruben Vargas","Salih Özcan","Sam Lammers","Santiago Ascacibar","Sargis Adamyan","Saša Kalajdžić","Sascha Burchert","Sebastiaan Bornauw","Sebastian Andersson","Sebastian Griesbeck","Sebastian Polter","Sebastian Rode","Sebastian Rudy","Sebastian Vasiliadis","Serge Gnabry","Sergio Córdova","Sheraldo Becker","Silas","Silvan Widmer","Simon Zoller","Stefan Bell","Stefan Ilsanker","Stefan Lainer","Stefan Ortega Moreno","Stefan Posch","Steffen Tigges","Stevan Jovetić","Suat Serdar","Taiwo Awoniyi","Tanguy Coulibaly","Tanguy Nianzou","Thomas Meunier","Thomas Müller","Thorgan Hazard","Tim Lemperle","Timo Baumgartl","Timo Horn","Timo Hübers","Timothy Chandler","Timothy Fosu-Mensah","Timothy Tillman","Tobias Strobl","Tomas Ostrak","Tony Jantschke","Tuta","Tyler Adams","Vasilios Lampropoulos","Vincenzo Grifo","Vladimír Darida","Wahid Faghir","Waldemar Anton","Wataru Endo","Willi Orbán","Woo-yeong Jeong","Wout Weghorst","Xaver Schlager","Yann Sommer","Yannick Gerhardt","Yannik Keitel","Youssoufa Moukoko","Yussuf Poulsen"]
[null,{"$f":"_xlfn.XLOOKUP(A11,Alle_Spieler[Spieler],Alle_Spieler[Position],\"\")","v":""},{"$f":"_xlfn.XLOOKUP($A11,Alle_Spieler[Spieler],Alle_Spieler[Verein],\"\")","v":""},{"$f":"_xlfn.XLOOKUP($A11,Alle_Spieler[Spieler],Alle_Spieler[Marktwert],\"\")","v":""},{"$f":"_xlfn.XLOOKUP($A11,Alle_Spieler[Spieler],Alle_Spieler[Differenz],\"\")","v":""},{"$f":"Tabelle4[[#This Row],[Marktwertentwicklung]]","v":""},null,null,null,null,null,null,null,{"$f":"TRANSPOSE(_xlfn._xlws.SORT(_xlfn._xlws.FILTER(Alle_Spieler[Spieler],ISNUMBER((SEARCH(A11,Alle_Spieler[Spieler],1))),\"not found\")))","v":"Aarón"},"Ádám Szalai","Admir Mehmedi","Ajdin Hrustić","Alassane Pléa","Alessandro Schöpf","Alexander Hack","Alexander Schwolow","Alfreð Finnbogason","Almamy Touré","Alphonso Davies","Amadou Haidara","Amine Adli","Amos Pieper","Anderson Lucoqui","Andi Zeqiri","André Hahn","André Silva","Andreas Luthe","Andreas Voglsammer","Andrej Kramarić","Angeliño","Angelo Stiller","Ansgar Knauff","Anthony Losilla","Anthony Modeste","Anton Stach","Armel Bella-Kotchap","Arne Maier","Aster Vranckx","Atakan Karazor","Axel Witsel","Aymen Barkok","Benjamin Henrichs","Benjamin Hübner","Benjamin Pavard","Benno Schmitz","Borna Sosa","Bouna Sarr","Branimir Hrgota","Breel Embolo","Brian Brobbey","Bryan Lasme","Carlos Gruezo","Cédric Brunner","Cedric Itten","Cedric Teuchert","Charles Aránguiz","Chris Führich","Chris Richards","Christian Günter","Christoph Baumgartner","Christoph Kramer","Christopher Antwi-Adjei","Christopher Lenz","Christopher Nkunku","Christopher Trimmel","Clinton Mola","Corentin Tolisso","Cristian Gamboa","Daichi Kamada","Daley Sinkgraven","Dan-Axel Zagadou","Dani Olmo","Daniel Brosinski","Daniel Caligiuri","Daniel Didavi","Danilo Soares","Danny da Costa","David Raum","Davie Selke","Dayot Upamecano","Dedryck Boyata","Dejan Ljubičić","Denis Zakaria","Dennis Geiger","Dennis Jastrzembski","Deyovaisio Zeefuik","Diadié Samassékou","Dickson Abiama","Djibril Sow","Dodi Lukébakio","Dominik Kohr","Dominik Szoboszlai","Dominique Heintz","Donyell Malen","E. Choupo-Moting","Edimilson Fernandes","Edmond Tapsoba","Eduard Löwen","Ellyes Skhiri","Elvis Rexhbeçaj","Emil Forsberg","Emre Can","Erhan Mašović","Erik Durm","Erik Thommy","Erling Braut Haaland","Ermedin Demirović","Evan N'Dicka","Exequiel Palacios","Fabian Bredlow","Fabian Klos","Fabian Kunze","Felix Nmecha","Felix Passlack","Felix Uduokhai","Filip Kostić","Florian Grillitsch","Florian Kainz","Florian Müller","Florian Neuhaus","Florian Niederlechner","Florian Schock","Florian Wirtz","Genki Haraguchi","Georginio Rutter","Gerrit Holtmann","Giovanni Reyna","Gonçalo Paciência","Gregor Kobel","Grischa Prömel","Hamadi Al Ghaddioui","Hannes Wolf","Hans Nunoo Sarpei","Håvard Nielsen","Hiroki Ito","Iago","Ihlas Bebou","Ilaix Moriba","Ishak Belfodil","Jacob Bruun Larsen","Jacob Laursen","Jae-sung Lee","Jamal Musiala","Jan Thielmann","Janik Haberer","Janni Serra","Jean-Paul Boëtius","Jeffrey Gouweleeuw","Jens Petter Hauge","Jeremiah St. Juste","Jeremie Frimpong","Jeremy Dudziak","Jérôme Roussillon","Jesper Lindstrøm","Jetro Willems","Joakim Nilsson","Joe Scally","John Anthony Brooks","Jonas Hector","Jonas Hofmann","Jonathan Burkardt","Jonathan Schmid","Jonathan Tah","Jordan Beyer","Jordan Torunarigha","Jorge Meré","Joshua Kimmich","Josip Stanišić","Joško Gvardiol","Josuha Guilavogui","Jude Bellingham","Julian Brandt","Julian Green","Julian Ryerson","Jurgen Ekkelenkamp","Justin Hoogma","Karim Bellarabi","Karim Onisiwo","Kerem Demirbay","Keven Schlotterbeck","Kevin Akpoguma","Kevin Behrens","Kevin Kampl","Kevin Mbabu","Kevin Möhwald","Kevin Schade","Kevin Stöger","Kevin Trapp","Kevin Vogt","Kevin-Prince Boateng","Kiliann Sildillia","Kingsley Coman","Kingsley Ehizibue","Kingsley Schindler","Koen Casteels","Konrad Laimer","Konstantinos Mavropanos","Konstantinos Stafylidis","Kristijan Jakić","Krzysztof Piątek","Lars Stindl","László Bénes","Leandro Barreiro","Lennart Czyborra","Leon Goretzka","Leroy Sané","Levin Öztunali","Linus Gechter","Louis Schaub","Luca Kilian","Luca Netz","Luca Waldschmidt","Lucas Alario","Lucas Hernández","Lucas Höler","Lucas Tousart","Lukáš Hrádecký","Lukas Klostermann","Lukas Kübler","Lukas Nmecha","Mads Pedersen","Mahmoud Dahoud","Makoto Hasebe","Manu Koné","Manuel Akanji","Manuel Gulde","Manuel Neuer","Manuel Prietl","Manuel Riemann","Marc Oliver Kempf","Marcel Halstenberg","Marcel Sabitzer","Marco Meyerhöfer","Marco Reus","Marco Richter","Marcus Ingvartsen","Marcus Thuram","Marin Pongračić","Marius Funk","Marius Wolf","Mark Flekken","Mark Uth","Martin Hinteregger","Márton Dárdai","Marvin Friedrich","Marvin Plattenhardt","Masaya Okugawa","Mateo Klimowicz","Mateu Morey","Mats Hummels","Matthias Ginter","Max Kruse","Maxence Lacroix","Maxim Leitsch","Maximilian Arnold","Maximilian Bauer","Maximilian Eggestein","Maximilian Mittelstädt","Maximilian Philipp","Mijat Gaćinović","Miloš Pantović","Mitchel Bakker","Mohamed Simakan","Moussa Diaby","Moussa Niakhaté","Munas Dabbur","Myziane Maolida","Nadiem Amiri","Nick Viergever","Nico Elvedi","Nico Schlotterbeck","Nico Schulz","Nicolas Höfler","Niklas Dorsch","Niklas Stark","Niklas Süle","Niklas Tauer","Niko Gießelmann","Nikolas Nartey","Nils Petersen","Noah Weißhaupt","Nordi Mukiele","Odilon Kossounou","Oliver Baumann","Omar Marmoush","Omar Richards","Ömer Faruk Beyaz","Ondrej Duda","Orel Mangala","Pascal Stenzel","Patrick Herrmann","Patrick Wimmer","Patrik Schick","Paul Jaeckel","Paul Seguin","Paulinho","Paulo Otávio","Pavel Kadeřábek","Péter Gulácsi","Peter Pekarík","Philipp Förster","Philipp Klement","Philipp Lienhart","Piero Hincapié","Rafael Czichos","Rafael Santos Borré","Rafał Gikiewicz","Ragnar Ache","Ramy Bensebaini","Rani Khedira","Raphael Framberger","Raphaël Guerreiro","Reece Oxford","Reinier","Renato Steffen","Ridle Baku","Robert Andrich","Robert Gumny","Robert Lewandowski","Robert Skov","Roberto Massimo","Robin Hack","Robin Knoche","Robin Zentner","Roland Sallai","Ruben Vargas","Salih Özcan","Sam Lammers","Santiago Ascacibar","Sargis Adamyan","Saša Kalajdžić","Sascha Burchert","Sebastiaan Bornauw","Sebastian Andersson","Sebastian Griesbeck","Sebastian Polter","Sebastian Rode","Sebastian Rudy","Sebastian Vasiliadis","Serge Gnabry","Sergio Córdova","Sheraldo Becker","Silas","Silvan Widmer","Simon Zoller","Stefan Bell","Stefan Ilsanker","Stefan Lainer","Stefan Ortega Moreno","Stefan Posch","Steffen Tigges","Stevan Jovetić","Suat Serdar","Taiwo Awoniyi","Tanguy Coulibaly","Tanguy Nianzou","Thomas Meunier","Thomas Müller","Thorgan Hazard","Tim Lemperle","Timo Baumgartl","Timo Horn","Timo Hübers","Timothy Chandler","Timothy Fosu-Mensah","Timothy Tillman","Tobias Strobl","Tomas Ostrak","Tony Jantschke","Tuta","Tyler Adams","Vasilios Lampropoulos","Vincenzo Grifo","Vladimír Darida","Wahid Faghir","Waldemar Anton","Wataru Endo","Willi Orbán","Woo-yeong Jeong","Wout Weghorst","Xaver Schlager","Yann Sommer","Yannick Gerhardt","Yannik Keitel","Youssoufa Moukoko","Yussuf Poulsen"]
[null,{"$f":"_xlfn.XLOOKUP(A12,Alle_Spieler[Spieler],Alle_Spieler[Position],\"\")","v":""},{"$f":"_xlfn.XLOOKUP($A12,Alle_Spieler[Spieler],Alle_Spieler[Verein],\"\")","v":""},{"$f":"_xlfn.XLOOKUP($A12,Alle_Spieler[Spieler],Alle_Spieler[Marktwert],\"\")","v":""},{"$f":"_xlfn.XLOOKUP($A12,Alle_Spieler[Spieler],Alle_Spieler[Differenz],\"\")","v":""},{"$f":"Tabelle4[[#This Row],[Marktwertentwicklung]]","v":""},null,null,null,null,null,null,null,{"$f":"TRANSPOSE(_xlfn._xlws.SORT(_xlfn._xlws.FILTER(Alle_Spieler[Spieler],ISNUMBER((SEARCH(A12,Alle_Spieler[Spieler],1))),\"not found\")))","v":"Aarón"},"Ádám Szalai","Admir Mehmedi","Ajdin Hrustić","Alassane Pléa","Alessandro Schöpf","Alexander Hack","Alexander Schwolow","Alfreð Finnbogason","Almamy Touré","Alphonso Davies","Amadou Haidara","Amine Adli","Amos Pieper","Anderson Lucoqui","Andi Zeqiri","André Hahn","André Silva","Andreas Luthe","Andreas Voglsammer","Andrej Kramarić","Angeliño","Angelo Stiller","Ansgar Knauff","Anthony Losilla","Anthony Modeste","Anton Stach","Armel Bella-Kotchap","Arne Maier","Aster Vranckx","Atakan Karazor","Axel Witsel","Aymen Barkok","Benjamin Henrichs","Benjamin Hübner","Benjamin Pavard","Benno Schmitz","Borna Sosa","Bouna Sarr","Branimir Hrgota","Breel Embolo","Brian Brobbey","Bryan Lasme","Carlos Gruezo","Cédric Brunner","Cedric Itten","Cedric Teuchert","Charles Aránguiz","Chris Führich","Chris Richards","Christian Günter","Christoph Baumgartner","Christoph Kramer","Christopher Antwi-Adjei","Christopher Lenz","Christopher Nkunku","Christopher Trimmel","Clinton Mola","Corentin Tolisso","Cristian Gamboa","Daichi Kamada","Daley Sinkgraven","Dan-Axel Zagadou","Dani Olmo","Daniel Brosinski","Daniel Caligiuri","Daniel Didavi","Danilo Soares","Danny da Costa","David Raum","Davie Selke","Dayot Upamecano","Dedryck Boyata","Dejan Ljubičić","Denis Zakaria","Dennis Geiger","Dennis Jastrzembski","Deyovaisio Zeefuik","Diadié Samassékou","Dickson Abiama","Djibril Sow","Dodi Lukébakio","Dominik Kohr","Dominik Szoboszlai","Dominique Heintz","Donyell Malen","E. Choupo-Moting","Edimilson Fernandes","Edmond Tapsoba","Eduard Löwen","Ellyes Skhiri","Elvis Rexhbeçaj","Emil Forsberg","Emre Can","Erhan Mašović","Erik Durm","Erik Thommy","Erling Braut Haaland","Ermedin Demirović","Evan N'Dicka","Exequiel Palacios","Fabian Bredlow","Fabian Klos","Fabian Kunze","Felix Nmecha","Felix Passlack","Felix Uduokhai","Filip Kostić","Florian Grillitsch","Florian Kainz","Florian Müller","Florian Neuhaus","Florian Niederlechner","Florian Schock","Florian Wirtz","Genki Haraguchi","Georginio Rutter","Gerrit Holtmann","Giovanni Reyna","Gonçalo Paciência","Gregor Kobel","Grischa Prömel","Hamadi Al Ghaddioui","Hannes Wolf","Hans Nunoo Sarpei","Håvard Nielsen","Hiroki Ito","Iago","Ihlas Bebou","Ilaix Moriba","Ishak Belfodil","Jacob Bruun Larsen","Jacob Laursen","Jae-sung Lee","Jamal Musiala","Jan Thielmann","Janik Haberer","Janni Serra","Jean-Paul Boëtius","Jeffrey Gouweleeuw","Jens Petter Hauge","Jeremiah St. Juste","Jeremie Frimpong","Jeremy Dudziak","Jérôme Roussillon","Jesper Lindstrøm","Jetro Willems","Joakim Nilsson","Joe Scally","John Anthony Brooks","Jonas Hector","Jonas Hofmann","Jonathan Burkardt","Jonathan Schmid","Jonathan Tah","Jordan Beyer","Jordan Torunarigha","Jorge Meré","Joshua Kimmich","Josip Stanišić","Joško Gvardiol","Josuha Guilavogui","Jude Bellingham","Julian Brandt","Julian Green","Julian Ryerson","Jurgen Ekkelenkamp","Justin Hoogma","Karim Bellarabi","Karim Onisiwo","Kerem Demirbay","Keven Schlotterbeck","Kevin Akpoguma","Kevin Behrens","Kevin Kampl","Kevin Mbabu","Kevin Möhwald","Kevin Schade","Kevin Stöger","Kevin Trapp","Kevin Vogt","Kevin-Prince Boateng","Kiliann Sildillia","Kingsley Coman","Kingsley Ehizibue","Kingsley Schindler","Koen Casteels","Konrad Laimer","Konstantinos Mavropanos","Konstantinos Stafylidis","Kristijan Jakić","Krzysztof Piątek","Lars Stindl","László Bénes","Leandro Barreiro","Lennart Czyborra","Leon Goretzka","Leroy Sané","Levin Öztunali","Linus Gechter","Louis Schaub","Luca Kilian","Luca Netz","Luca Waldschmidt","Lucas Alario","Lucas Hernández","Lucas Höler","Lucas Tousart","Lukáš Hrádecký","Lukas Klostermann","Lukas Kübler","Lukas Nmecha","Mads Pedersen","Mahmoud Dahoud","Makoto Hasebe","Manu Koné","Manuel Akanji","Manuel Gulde","Manuel Neuer","Manuel Prietl","Manuel Riemann","Marc Oliver Kempf","Marcel Halstenberg","Marcel Sabitzer","Marco Meyerhöfer","Marco Reus","Marco Richter","Marcus Ingvartsen","Marcus Thuram","Marin Pongračić","Marius Funk","Marius Wolf","Mark Flekken","Mark Uth","Martin Hinteregger","Márton Dárdai","Marvin Friedrich","Marvin Plattenhardt","Masaya Okugawa","Mateo Klimowicz","Mateu Morey","Mats Hummels","Matthias Ginter","Max Kruse","Maxence Lacroix","Maxim Leitsch","Maximilian Arnold","Maximilian Bauer","Maximilian Eggestein","Maximilian Mittelstädt","Maximilian Philipp","Mijat Gaćinović","Miloš Pantović","Mitchel Bakker","Mohamed Simakan","Moussa Diaby","Moussa Niakhaté","Munas Dabbur","Myziane Maolida","Nadiem Amiri","Nick Viergever","Nico Elvedi","Nico Schlotterbeck","Nico Schulz","Nicolas Höfler","Niklas Dorsch","Niklas Stark","Niklas Süle","Niklas Tauer","Niko Gießelmann","Nikolas Nartey","Nils Petersen","Noah Weißhaupt","Nordi Mukiele","Odilon Kossounou","Oliver Baumann","Omar Marmoush","Omar Richards","Ömer Faruk Beyaz","Ondrej Duda","Orel Mangala","Pascal Stenzel","Patrick Herrmann","Patrick Wimmer","Patrik Schick","Paul Jaeckel","Paul Seguin","Paulinho","Paulo Otávio","Pavel Kadeřábek","Péter Gulácsi","Peter Pekarík","Philipp Förster","Philipp Klement","Philipp Lienhart","Piero Hincapié","Rafael Czichos","Rafael Santos Borré","Rafał Gikiewicz","Ragnar Ache","Ramy Bensebaini","Rani Khedira","Raphael Framberger","Raphaël Guerreiro","Reece Oxford","Reinier","Renato Steffen","Ridle Baku","Robert Andrich","Robert Gumny","Robert Lewandowski","Robert Skov","Roberto Massimo","Robin Hack","Robin Knoche","Robin Zentner","Roland Sallai","Ruben Vargas","Salih Özcan","Sam Lammers","Santiago Ascacibar","Sargis Adamyan","Saša Kalajdžić","Sascha Burchert","Sebastiaan Bornauw","Sebastian Andersson","Sebastian Griesbeck","Sebastian Polter","Sebastian Rode","Sebastian Rudy","Sebastian Vasiliadis","Serge Gnabry","Sergio Córdova","Sheraldo Becker","Silas","Silvan Widmer","Simon Zoller","Stefan Bell","Stefan Ilsanker","Stefan Lainer","Stefan Ortega Moreno","Stefan Posch","Steffen Tigges","Stevan Jovetić","Suat Serdar","Taiwo Awoniyi","Tanguy Coulibaly","Tanguy Nianzou","Thomas Meunier","Thomas Müller","Thorgan Hazard","Tim Lemperle","Timo Baumgartl","Timo Horn","Timo Hübers","Timothy Chandler","Timothy Fosu-Mensah","Timothy Tillman","Tobias Strobl","Tomas Ostrak","Tony Jantschke","Tuta","Tyler Adams","Vasilios Lampropoulos","Vincenzo Grifo","Vladimír Darida","Wahid Faghir","Waldemar Anton","Wataru Endo","Willi Orbán","Woo-yeong Jeong","Wout Weghorst","Xaver Schlager","Yann Sommer","Yannick Gerhardt","Yannik Keitel","Youssoufa Moukoko","Yussuf Poulsen"]
["Lukas Nmecha",{"$f":"_xlfn.XLOOKUP(A13,Alle_Spieler[Spieler],Alle_Spieler[Position],\"\")","v":"Stürmer"},{"$f":"_xlfn.XLOOKUP($A13,Alle_Spieler[Spieler],Alle_Spieler[Verein],\"\")","v":"VfL Wolfsburg"},{"$f":"_xlfn.XLOOKUP($A13,Alle_Spieler[Spieler],Alle_Spieler[Marktwert],\"\")","v":12236517},{"$f":"_xlfn.XLOOKUP($A13,Alle_Spieler[Spieler],Alle_Spieler[Differenz],\"\")","v":213489},{"$f":"Tabelle4[[#This Row],[Marktwertentwicklung]]","v":213489},null,null,null,null,null,null,null,{"$f":"TRANSPOSE(_xlfn._xlws.SORT(_xlfn._xlws.FILTER(Alle_Spieler[Spieler],ISNUMBER((SEARCH(A13,Alle_Spieler[Spieler],1))),\"not found\")))","v":"Lukas Nmecha"}]
["Christopher Nkunku",{"$f":"_xlfn.XLOOKUP(A14,Alle_Spieler[Spieler],Alle_Spieler[Position],\"\")","v":"Mittelfeldspieler"},{"$f":"_xlfn.XLOOKUP($A14,Alle_Spieler[Spieler],Alle_Spieler[Verein],\"\")","v":"RB Leipzig"},{"$f":"_xlfn.XLOOKUP($A14,Alle_Spieler[Spieler],Alle_Spieler[Marktwert],\"\")","v":33210081},{"$f":"_xlfn.XLOOKUP($A14,Alle_Spieler[Spieler],Alle_Spieler[Differenz],\"\")","v":80233},{"$f":"IFERROR(Tabelle4[[#This Row],[Marktwertentwicklung]],\"\")","v":80233},null,null,null,null,null,null,null,{"$f":"TRANSPOSE(_xlfn._xlws.SORT(_xlfn._xlws.FILTER(Alle_Spieler[Spieler],ISNUMBER((SEARCH(A14,Alle_Spieler[Spieler],1))),\"not found\")))","v":"Christopher Nkunku"}]
["Florian Wirtz",{"$f":"_xlfn.XLOOKUP(A15,Alle_Spieler[Spieler],Alle_Spieler[Position],\"\")","v":"Mittelfeldspieler"},{"$f":"_xlfn.XLOOKUP($A15,Alle_Spieler[Spieler],Alle_Spieler[Verein],\"\")","v":"Bayer 04 Leverkusen"},{"$f":"_xlfn.XLOOKUP($A15,Alle_Spieler[Spieler],Alle_Spieler[Marktwert],\"\")","v":33402284},{"$f":"_xlfn.XLOOKUP($A15,Alle_Spieler[Spieler],Alle_Spieler[Differenz],\"\")","v":51409},{"$f":"Tabelle4[[#This Row],[Marktwertentwicklung]]","v":51409},null,null,null,null,null,null,null,{"$f":"TRANSPOSE(_xlfn._xlws.SORT(_xlfn._xlws.FILTER(Alle_Spieler[Spieler],ISNUMBER((SEARCH(A15,Alle_Spieler[Spieler],1))),\"not found\")))","v":"Florian Wirtz"}]
["Robert Lewandowski",{"$f":"_xlfn.XLOOKUP(A16,Alle_Spieler[Spieler],Alle_Spieler[Position],\"\")","v":"Stürmer"},{"$f":"_xlfn.XLOOKUP($A16,Alle_Spieler[Spieler],Alle_Spieler[Verein],\"\")","v":"FC Bayern München"},{"$f":"_xlfn.XLOOKUP($A16,Alle_Spieler[Spieler],Alle_Spieler[Marktwert],\"\")","v":63069004},{"$f":"_xlfn.XLOOKUP($A16,Alle_Spieler[Spieler],Alle_Spieler[Differenz],\"\")","v":14965},{"$f":"Tabelle4[[#This Row],[Marktwertentwicklung]]","v":14965},null,null,null,null,null,null,null,{"$f":"TRANSPOSE(_xlfn._xlws.SORT(_xlfn._xlws.FILTER(Alle_Spieler[Spieler],ISNUMBER((SEARCH(A16,Alle_Spieler[Spieler],1))),\"not found\")))","v":"Robert Lewandowski"}]
["Yannick Gerhardt",{"$f":"_xlfn.XLOOKUP(A17,Alle_Spieler[Spieler],Alle_Spieler[Position],\"\")","v":"Mittelfeldspieler"},{"$f":"_xlfn.XLOOKUP($A17,Alle_Spieler[Spieler],Alle_Spieler[Verein],\"\")","v":"VfL Wolfsburg"},{"$f":"_xlfn.XLOOKUP($A17,Alle_Spieler[Spieler],Alle_Spieler[Marktwert],\"\")","v":4445548},{"$f":"_xlfn.XLOOKUP($A17,Alle_Spieler[Spieler],Alle_Spieler[Differenz],\"\")","v":-55176},{"$f":"Tabelle4[[#This Row],[Marktwertentwicklung]]","v":-55176},null,null,null,null,null,null,null,{"$f":"TRANSPOSE(_xlfn._xlws.SORT(_xlfn._xlws.FILTER(Alle_Spieler[Spieler],ISNUMBER((SEARCH(A17,Alle_Spieler[Spieler],1))),\"not found\")))","v":"Yannick Gerhardt"}]
[null,{"$f":"_xlfn.XLOOKUP(A18,Alle_Spieler[Spieler],Alle_Spieler[Position],\"\")","v":""},{"$f":"_xlfn.XLOOKUP($A18,Alle_Spieler[Spieler],Alle_Spieler[Verein],\"\")","v":""},{"$f":"_xlfn.XLOOKUP($A18,Alle_Spieler[Spieler],Alle_Spieler[Marktwert],\"\")","v":""},{"$f":"_xlfn.XLOOKUP($A18,Alle_Spieler[Spieler],Alle_Spieler[Differenz],\"\")","v":""},{"$f":"IFERROR(Tabelle4[[#This Row],[Marktwertentwicklung]],\"\")","v":""},null,null,null,null,null,null,null,{"$f":"TRANSPOSE(_xlfn._xlws.SORT(_xlfn._xlws.FILTER(Alle_Spieler[Spieler],ISNUMBER((SEARCH(A18,Alle_Spieler[Spieler],1))),\"not found\")))","v":"Aarón"},"Ádám Szalai","Admir Mehmedi","Ajdin Hrustić","Alassane Pléa","Alessandro Schöpf","Alexander Hack","Alexander Schwolow","Alfreð Finnbogason","Almamy Touré","Alphonso Davies","Amadou Haidara","Amine Adli","Amos Pieper","Anderson Lucoqui","Andi Zeqiri","André Hahn","André Silva","Andreas Luthe","Andreas Voglsammer","Andrej Kramarić","Angeliño","Angelo Stiller","Ansgar Knauff","Anthony Losilla","Anthony Modeste","Anton Stach","Armel Bella-Kotchap","Arne Maier","Aster Vranckx","Atakan Karazor","Axel Witsel","Aymen Barkok","Benjamin Henrichs","Benjamin Hübner","Benjamin Pavard","Benno Schmitz","Borna Sosa","Bouna Sarr","Branimir Hrgota","Breel Embolo","Brian Brobbey","Bryan Lasme","Carlos Gruezo","Cédric Brunner","Cedric Itten","Cedric Teuchert","Charles Aránguiz","Chris Führich","Chris Richards","Christian Günter","Christoph Baumgartner","Christoph Kramer","Christopher Antwi-Adjei","Christopher Lenz","Christopher Nkunku","Christopher Trimmel","Clinton Mola","Corentin Tolisso","Cristian Gamboa","Daichi Kamada","Daley Sinkgraven","Dan-Axel Zagadou","Dani Olmo","Daniel Brosinski","Daniel Caligiuri","Daniel Didavi","Danilo Soares","Danny da Costa","David Raum","Davie Selke","Dayot Upamecano","Dedryck Boyata","Dejan Ljubičić","Denis Zakaria","Dennis Geiger","Dennis Jastrzembski","Deyovaisio Zeefuik","Diadié Samassékou","Dickson Abiama","Djibril Sow","Dodi Lukébakio","Dominik Kohr","Dominik Szoboszlai","Dominique Heintz","Donyell Malen","E. Choupo-Moting","Edimilson Fernandes","Edmond Tapsoba","Eduard Löwen","Ellyes Skhiri","Elvis Rexhbeçaj","Emil Forsberg","Emre Can","Erhan Mašović","Erik Durm","Erik Thommy","Erling Braut Haaland","Ermedin Demirović","Evan N'Dicka","Exequiel Palacios","Fabian Bredlow","Fabian Klos","Fabian Kunze","Felix Nmecha","Felix Passlack","Felix Uduokhai","Filip Kostić","Florian Grillitsch","Florian Kainz","Florian Müller","Florian Neuhaus","Florian Niederlechner","Florian Schock","Florian Wirtz","Genki Haraguchi","Georginio Rutter","Gerrit Holtmann","Giovanni Reyna","Gonçalo Paciência","Gregor Kobel","Grischa Prömel","Hamadi Al Ghaddioui","Hannes Wolf","Hans Nunoo Sarpei","Håvard Nielsen","Hiroki Ito","Iago","Ihlas Bebou","Ilaix Moriba","Ishak Belfodil","Jacob Bruun Larsen","Jacob Laursen","Jae-sung Lee","Jamal Musiala","Jan Thielmann","Janik Haberer","Janni Serra","Jean-Paul Boëtius","Jeffrey Gouweleeuw","Jens Petter Hauge","Jeremiah St. Juste","Jeremie Frimpong","Jeremy Dudziak","Jérôme Roussillon","Jesper Lindstrøm","Jetro Willems","Joakim Nilsson","Joe Scally","John Anthony Brooks","Jonas Hector","Jonas Hofmann","Jonathan Burkardt","Jonathan Schmid","Jonathan Tah","Jordan Beyer","Jordan Torunarigha","Jorge Meré","Joshua Kimmich","Josip Stanišić","Joško Gvardiol","Josuha Guilavogui","Jude Bellingham","Julian Brandt","Julian Green","Julian Ryerson","Jurgen Ekkelenkamp","Justin Hoogma","Karim Bellarabi","Karim Onisiwo","Kerem Demirbay","Keven Schlotterbeck","Kevin Akpoguma","Kevin Behrens","Kevin Kampl","Kevin Mbabu","Kevin Möhwald","Kevin Schade","Kevin Stöger","Kevin Trapp","Kevin Vogt","Kevin-Prince Boateng","Kiliann Sildillia","Kingsley Coman","Kingsley Ehizibue","Kingsley Schindler","Koen Casteels","Konrad Laimer","Konstantinos Mavropanos","Konstantinos Stafylidis","Kristijan Jakić","Krzysztof Piątek","Lars Stindl","László Bénes","Leandro Barreiro","Lennart Czyborra","Leon Goretzka","Leroy Sané","Levin Öztunali","Linus Gechter","Louis Schaub","Luca Kilian","Luca Netz","Luca Waldschmidt","Lucas Alario","Lucas Hernández","Lucas Höler","Lucas Tousart","Lukáš Hrádecký","Lukas Klostermann","Lukas Kübler","Lukas Nmecha","Mads Pedersen","Mahmoud Dahoud","Makoto Hasebe","Manu Koné","Manuel Akanji","Manuel Gulde","Manuel Neuer","Manuel Prietl","Manuel Riemann","Marc Oliver Kempf","Marcel Halstenberg","Marcel Sabitzer","Marco Meyerhöfer","Marco Reus","Marco Richter","Marcus Ingvartsen","Marcus Thuram","Marin Pongračić","Marius Funk","Marius Wolf","Mark Flekken","Mark Uth","Martin Hinteregger","Márton Dárdai","Marvin Friedrich","Marvin Plattenhardt","Masaya Okugawa","Mateo Klimowicz","Mateu Morey","Mats Hummels","Matthias Ginter","Max Kruse","Maxence Lacroix","Maxim Leitsch","Maximilian Arnold","Maximilian Bauer","Maximilian Eggestein","Maximilian Mittelstädt","Maximilian Philipp","Mijat Gaćinović","Miloš Pantović","Mitchel Bakker","Mohamed Simakan","Moussa Diaby","Moussa Niakhaté","Munas Dabbur","Myziane Maolida","Nadiem Amiri","Nick Viergever","Nico Elvedi","Nico Schlotterbeck","Nico Schulz","Nicolas Höfler","Niklas Dorsch","Niklas Stark","Niklas Süle","Niklas Tauer","Niko Gießelmann","Nikolas Nartey","Nils Petersen","Noah Weißhaupt","Nordi Mukiele","Odilon Kossounou","Oliver Baumann","Omar Marmoush","Omar Richards","Ömer Faruk Beyaz","Ondrej Duda","Orel Mangala","Pascal Stenzel","Patrick Herrmann","Patrick Wimmer","Patrik Schick","Paul Jaeckel","Paul Seguin","Paulinho","Paulo Otávio","Pavel Kadeřábek","Péter Gulácsi","Peter Pekarík","Philipp Förster","Philipp Klement","Philipp Lienhart","Piero Hincapié","Rafael Czichos","Rafael Santos Borré","Rafał Gikiewicz","Ragnar Ache","Ramy Bensebaini","Rani Khedira","Raphael Framberger","Raphaël Guerreiro","Reece Oxford","Reinier","Renato Steffen","Ridle Baku","Robert Andrich","Robert Gumny","Robert Lewandowski","Robert Skov","Roberto Massimo","Robin Hack","Robin Knoche","Robin Zentner","Roland Sallai","Ruben Vargas","Salih Özcan","Sam Lammers","Santiago Ascacibar","Sargis Adamyan","Saša Kalajdžić","Sascha Burchert","Sebastiaan Bornauw","Sebastian Andersson","Sebastian Griesbeck","Sebastian Polter","Sebastian Rode","Sebastian Rudy","Sebastian Vasiliadis","Serge Gnabry","Sergio Córdova","Sheraldo Becker","Silas","Silvan Widmer","Simon Zoller","Stefan Bell","Stefan Ilsanker","Stefan Lainer","Stefan Ortega Moreno","Stefan Posch","Steffen Tigges","Stevan Jovetić","Suat Serdar","Taiwo Awoniyi","Tanguy Coulibaly","Tanguy Nianzou","Thomas Meunier","Thomas Müller","Thorgan Hazard","Tim Lemperle","Timo Baumgartl","Timo Horn","Timo Hübers","Timothy Chandler","Timothy Fosu-Mensah","Timothy Tillman","Tobias Strobl","Tomas Ostrak","Tony Jantschke","Tuta","Tyler Adams","Vasilios Lampropoulos","Vincenzo Grifo","Vladimír Darida","Wahid Faghir","Waldemar Anton","Wataru Endo","Willi Orbán","Woo-yeong Jeong","Wout Weghorst","Xaver Schlager","Yann Sommer","Yannick Gerhardt","Yannik Keitel","Youssoufa Moukoko","Yussuf Poulsen"]
[null,{"$f":"_xlfn.XLOOKUP(A19,Alle_Spieler[Spieler],Alle_Spieler[Position],\"\")","v":""},{"$f":"_xlfn.XLOOKUP($A19,Alle_Spieler[Spieler],Alle_Spieler[Verein],\"\")","v":""},{"$f":"_xlfn.XLOOKUP($A19,Alle_Spieler[Spieler],Alle_Spieler[Marktwert],\"\")","v":""},{"$f":"_xlfn.XLOOKUP($A19,Alle_Spieler[Spieler],Alle_Spieler[Differenz],\"\")","v":""},{"$f":"IFERROR(Tabelle4[[#This Row],[Marktwertentwicklung]],\"\")","v":""},null,null,null,null,null,null,null,{"$f":"TRANSPOSE(_xlfn._xlws.SORT(_xlfn._xlws.FILTER(Alle_Spieler[Spieler],ISNUMBER((SEARCH(A19,Alle_Spieler[Spieler],1))),\"not found\")))","v":"Aarón"},"Ádám Szalai","Admir Mehmedi","Ajdin Hrustić","Alassane Pléa","Alessandro Schöpf","Alexander Hack","Alexander Schwolow","Alfreð Finnbogason","Almamy Touré","Alphonso Davies","Amadou Haidara","Amine Adli","Amos Pieper","Anderson Lucoqui","Andi Zeqiri","André Hahn","André Silva","Andreas Luthe","Andreas Voglsammer","Andrej Kramarić","Angeliño","Angelo Stiller","Ansgar Knauff","Anthony Losilla","Anthony Modeste","Anton Stach","Armel Bella-Kotchap","Arne Maier","Aster Vranckx","Atakan Karazor","Axel Witsel","Aymen Barkok","Benjamin Henrichs","Benjamin Hübner","Benjamin Pavard","Benno Schmitz","Borna Sosa","Bouna Sarr","Branimir Hrgota","Breel Embolo","Brian Brobbey","Bryan Lasme","Carlos Gruezo","Cédric Brunner","Cedric Itten","Cedric Teuchert","Charles Aránguiz","Chris Führich","Chris Richards","Christian Günter","Christoph Baumgartner","Christoph Kramer","Christopher Antwi-Adjei","Christopher Lenz","Christopher Nkunku","Christopher Trimmel","Clinton Mola","Corentin Tolisso","Cristian Gamboa","Daichi Kamada","Daley Sinkgraven","Dan-Axel Zagadou","Dani Olmo","Daniel Brosinski","Daniel Caligiuri","Daniel Didavi","Danilo Soares","Danny da Costa","David Raum","Davie Selke","Dayot Upamecano","Dedryck Boyata","Dejan Ljubičić","Denis Zakaria","Dennis Geiger","Dennis Jastrzembski","Deyovaisio Zeefuik","Diadié Samassékou","Dickson Abiama","Djibril Sow","Dodi Lukébakio","Dominik Kohr","Dominik Szoboszlai","Dominique Heintz","Donyell Malen","E. Choupo-Moting","Edimilson Fernandes","Edmond Tapsoba","Eduard Löwen","Ellyes Skhiri","Elvis Rexhbeçaj","Emil Forsberg","Emre Can","Erhan Mašović","Erik Durm","Erik Thommy","Erling Braut Haaland","Ermedin Demirović","Evan N'Dicka","Exequiel Palacios","Fabian Bredlow","Fabian Klos","Fabian Kunze","Felix Nmecha","Felix Passlack","Felix Uduokhai","Filip Kostić","Florian Grillitsch","Florian Kainz","Florian Müller","Florian Neuhaus","Florian Niederlechner","Florian Schock","Florian Wirtz","Genki Haraguchi","Georginio Rutter","Gerrit Holtmann","Giovanni Reyna","Gonçalo Paciência","Gregor Kobel","Grischa Prömel","Hamadi Al Ghaddioui","Hannes Wolf","Hans Nunoo Sarpei","Håvard Nielsen","Hiroki Ito","Iago","Ihlas Bebou","Ilaix Moriba","Ishak Belfodil","Jacob Bruun Larsen","Jacob Laursen","Jae-sung Lee","Jamal Musiala","Jan Thielmann","Janik Haberer","Janni Serra","Jean-Paul Boëtius","Jeffrey Gouweleeuw","Jens Petter Hauge","Jeremiah St. Juste","Jeremie Frimpong","Jeremy Dudziak","Jérôme Roussillon","Jesper Lindstrøm","Jetro Willems","Joakim Nilsson","Joe Scally","John Anthony Brooks","Jonas Hector","Jonas Hofmann","Jonathan Burkardt","Jonathan Schmid","Jonathan Tah","Jordan Beyer","Jordan Torunarigha","Jorge Meré","Joshua Kimmich","Josip Stanišić","Joško Gvardiol","Josuha Guilavogui","Jude Bellingham","Julian Brandt","Julian Green","Julian Ryerson","Jurgen Ekkelenkamp","Justin Hoogma","Karim Bellarabi","Karim Onisiwo","Kerem Demirbay","Keven Schlotterbeck","Kevin Akpoguma","Kevin Behrens","Kevin Kampl","Kevin Mbabu","Kevin Möhwald","Kevin Schade","Kevin Stöger","Kevin Trapp","Kevin Vogt","Kevin-Prince Boateng","Kiliann Sildillia","Kingsley Coman","Kingsley Ehizibue","Kingsley Schindler","Koen Casteels","Konrad Laimer","Konstantinos Mavropanos","Konstantinos Stafylidis","Kristijan Jakić","Krzysztof Piątek","Lars Stindl","László Bénes","Leandro Barreiro","Lennart Czyborra","Leon Goretzka","Leroy Sané","Levin Öztunali","Linus Gechter","Louis Schaub","Luca Kilian","Luca Netz","Luca Waldschmidt","Lucas Alario","Lucas Hernández","Lucas Höler","Lucas Tousart","Lukáš Hrádecký","Lukas Klostermann","Lukas Kübler","Lukas Nmecha","Mads Pedersen","Mahmoud Dahoud","Makoto Hasebe","Manu Koné","Manuel Akanji","Manuel Gulde","Manuel Neuer","Manuel Prietl","Manuel Riemann","Marc Oliver Kempf","Marcel Halstenberg","Marcel Sabitzer","Marco Meyerhöfer","Marco Reus","Marco Richter","Marcus Ingvartsen","Marcus Thuram","Marin Pongračić","Marius Funk","Marius Wolf","Mark Flekken","Mark Uth","Martin Hinteregger","Márton Dárdai","Marvin Friedrich","Marvin Plattenhardt","Masaya Okugawa","Mateo Klimowicz","Mateu Morey","Mats Hummels","Matthias Ginter","Max Kruse","Maxence Lacroix","Maxim Leitsch","Maximilian Arnold","Maximilian Bauer","Maximilian Eggestein","Maximilian Mittelstädt","Maximilian Philipp","Mijat Gaćinović","Miloš Pantović","Mitchel Bakker","Mohamed Simakan","Moussa Diaby","Moussa Niakhaté","Munas Dabbur","Myziane Maolida","Nadiem Amiri","Nick Viergever","Nico Elvedi","Nico Schlotterbeck","Nico Schulz","Nicolas Höfler","Niklas Dorsch","Niklas Stark","Niklas Süle","Niklas Tauer","Niko Gießelmann","Nikolas Nartey","Nils Petersen","Noah Weißhaupt","Nordi Mukiele","Odilon Kossounou","Oliver Baumann","Omar Marmoush","Omar Richards","Ömer Faruk Beyaz","Ondrej Duda","Orel Mangala","Pascal Stenzel","Patrick Herrmann","Patrick Wimmer","Patrik Schick","Paul Jaeckel","Paul Seguin","Paulinho","Paulo Otávio","Pavel Kadeřábek","Péter Gulácsi","Peter Pekarík","Philipp Förster","Philipp Klement","Philipp Lienhart","Piero Hincapié","Rafael Czichos","Rafael Santos Borré","Rafał Gikiewicz","Ragnar Ache","Ramy Bensebaini","Rani Khedira","Raphael Framberger","Raphaël Guerreiro","Reece Oxford","Reinier","Renato Steffen","Ridle Baku","Robert Andrich","Robert Gumny","Robert Lewandowski","Robert Skov","Roberto Massimo","Robin Hack","Robin Knoche","Robin Zentner","Roland Sallai","Ruben Vargas","Salih Özcan","Sam Lammers","Santiago Ascacibar","Sargis Adamyan","Saša Kalajdžić","Sascha Burchert","Sebastiaan Bornauw","Sebastian Andersson","Sebastian Griesbeck","Sebastian Polter","Sebastian Rode","Sebastian Rudy","Sebastian Vasiliadis","Serge Gnabry","Sergio Córdova","Sheraldo Becker","Silas","Silvan Widmer","Simon Zoller","Stefan Bell","Stefan Ilsanker","Stefan Lainer","Stefan Ortega Moreno","Stefan Posch","Steffen Tigges","Stevan Jovetić","Suat Serdar","Taiwo Awoniyi","Tanguy Coulibaly","Tanguy Nianzou","Thomas Meunier","Thomas Müller","Thorgan Hazard","Tim Lemperle","Timo Baumgartl","Timo Horn","Timo Hübers","Timothy Chandler","Timothy Fosu-Mensah","Timothy Tillman","Tobias Strobl","Tomas Ostrak","Tony Jantschke","Tuta","Tyler Adams","Vasilios Lampropoulos","Vincenzo Grifo","Vladimír Darida","Wahid Faghir","Waldemar Anton","Wataru Endo","Willi Orbán","Woo-yeong Jeong","Wout Weghorst","Xaver Schlager","Yann Sommer","Yannick Gerhardt","Yannik Keitel","Youssoufa Moukoko","Yussuf Poulsen"]
[null,{"$f":"_xlfn.XLOOKUP(A20,Alle_Spieler[Spieler],Alle_Spieler[Position],\"\")","v":""},{"$f":"_xlfn.XLOOKUP($A20,Alle_Spieler[Spieler],Alle_Spieler[Verein],\"\")","v":""},{"$f":"_xlfn.XLOOKUP($A20,Alle_Spieler[Spieler],Alle_Spieler[Marktwert],\"\")","v":""},{"$f":"_xlfn.XLOOKUP($A20,Alle_Spieler[Spieler],Alle_Spieler[Differenz],\"\")","v":""},{"$f":"IFERROR(Tabelle4[[#This Row],[Marktwertentwicklung]],\"\")","v":""},null,null,null,null,null,null,null,{"$f":"TRANSPOSE(_xlfn._xlws.SORT(_xlfn._xlws.FILTER(Alle_Spieler[Spieler],ISNUMBER((SEARCH(A20,Alle_Spieler[Spieler],1))),\"not found\")))","v":"Aarón"},"Ádám Szalai","Admir Mehmedi","Ajdin Hrustić","Alassane Pléa","Alessandro Schöpf","Alexander Hack","Alexander Schwolow","Alfreð Finnbogason","Almamy Touré","Alphonso Davies","Amadou Haidara","Amine Adli","Amos Pieper","Anderson Lucoqui","Andi Zeqiri","André Hahn","André Silva","Andreas Luthe","Andreas Voglsammer","Andrej Kramarić","Angeliño","Angelo Stiller","Ansgar Knauff","Anthony Losilla","Anthony Modeste","Anton Stach","Armel Bella-Kotchap","Arne Maier","Aster Vranckx","Atakan Karazor","Axel Witsel","Aymen Barkok","Benjamin Henrichs","Benjamin Hübner","Benjamin Pavard","Benno Schmitz","Borna Sosa","Bouna Sarr","Branimir Hrgota","Breel Embolo","Brian Brobbey","Bryan Lasme","Carlos Gruezo","Cédric Brunner","Cedric Itten","Cedric Teuchert","Charles Aránguiz","Chris Führich","Chris Richards","Christian Günter","Christoph Baumgartner","Christoph Kramer","Christopher Antwi-Adjei","Christopher Lenz","Christopher Nkunku","Christopher Trimmel","Clinton Mola","Corentin Tolisso","Cristian Gamboa","Daichi Kamada","Daley Sinkgraven","Dan-Axel Zagadou","Dani Olmo","Daniel Brosinski","Daniel Caligiuri","Daniel Didavi","Danilo Soares","Danny da Costa","David Raum","Davie Selke","Dayot Upamecano","Dedryck Boyata","Dejan Ljubičić","Denis Zakaria","Dennis Geiger","Dennis Jastrzembski","Deyovaisio Zeefuik","Diadié Samassékou","Dickson Abiama","Djibril Sow","Dodi Lukébakio","Dominik Kohr","Dominik Szoboszlai","Dominique Heintz","Donyell Malen","E. Choupo-Moting","Edimilson Fernandes","Edmond Tapsoba","Eduard Löwen","Ellyes Skhiri","Elvis Rexhbeçaj","Emil Forsberg","Emre Can","Erhan Mašović","Erik Durm","Erik Thommy","Erling Braut Haaland","Ermedin Demirović","Evan N'Dicka","Exequiel Palacios","Fabian Bredlow","Fabian Klos","Fabian Kunze","Felix Nmecha","Felix Passlack","Felix Uduokhai","Filip Kostić","Florian Grillitsch","Florian Kainz","Florian Müller","Florian Neuhaus","Florian Niederlechner","Florian Schock","Florian Wirtz","Genki Haraguchi","Georginio Rutter","Gerrit Holtmann","Giovanni Reyna","Gonçalo Paciência","Gregor Kobel","Grischa Prömel","Hamadi Al Ghaddioui","Hannes Wolf","Hans Nunoo Sarpei","Håvard Nielsen","Hiroki Ito","Iago","Ihlas Bebou","Ilaix Moriba","Ishak Belfodil","Jacob Bruun Larsen","Jacob Laursen","Jae-sung Lee","Jamal Musiala","Jan Thielmann","Janik Haberer","Janni Serra","Jean-Paul Boëtius","Jeffrey Gouweleeuw","Jens Petter Hauge","Jeremiah St. Juste","Jeremie Frimpong","Jeremy Dudziak","Jérôme Roussillon","Jesper Lindstrøm","Jetro Willems","Joakim Nilsson","Joe Scally","John Anthony Brooks","Jonas Hector","Jonas Hofmann","Jonathan Burkardt","Jonathan Schmid","Jonathan Tah","Jordan Beyer","Jordan Torunarigha","Jorge Meré","Joshua Kimmich","Josip Stanišić","Joško Gvardiol","Josuha Guilavogui","Jude Bellingham","Julian Brandt","Julian Green","Julian Ryerson","Jurgen Ekkelenkamp","Justin Hoogma","Karim Bellarabi","Karim Onisiwo","Kerem Demirbay","Keven Schlotterbeck","Kevin Akpoguma","Kevin Behrens","Kevin Kampl","Kevin Mbabu","Kevin Möhwald","Kevin Schade","Kevin Stöger","Kevin Trapp","Kevin Vogt","Kevin-Prince Boateng","Kiliann Sildillia","Kingsley Coman","Kingsley Ehizibue","Kingsley Schindler","Koen Casteels","Konrad Laimer","Konstantinos Mavropanos","Konstantinos Stafylidis","Kristijan Jakić","Krzysztof Piątek","Lars Stindl","László Bénes","Leandro Barreiro","Lennart Czyborra","Leon Goretzka","Leroy Sané","Levin Öztunali","Linus Gechter","Louis Schaub","Luca Kilian","Luca Netz","Luca Waldschmidt","Lucas Alario","Lucas Hernández","Lucas Höler","Lucas Tousart","Lukáš Hrádecký","Lukas Klostermann","Lukas Kübler","Lukas Nmecha","Mads Pedersen","Mahmoud Dahoud","Makoto Hasebe","Manu Koné","Manuel Akanji","Manuel Gulde","Manuel Neuer","Manuel Prietl","Manuel Riemann","Marc Oliver Kempf","Marcel Halstenberg","Marcel Sabitzer","Marco Meyerhöfer","Marco Reus","Marco Richter","Marcus Ingvartsen","Marcus Thuram","Marin Pongračić","Marius Funk","Marius Wolf","Mark Flekken","Mark Uth","Martin Hinteregger","Márton Dárdai","Marvin Friedrich","Marvin Plattenhardt","Masaya Okugawa","Mateo Klimowicz","Mateu Morey","Mats Hummels","Matthias Ginter","Max Kruse","Maxence Lacroix","Maxim Leitsch","Maximilian Arnold","Maximilian Bauer","Maximilian Eggestein","Maximilian Mittelstädt","Maximilian Philipp","Mijat Gaćinović","Miloš Pantović","Mitchel Bakker","Mohamed Simakan","Moussa Diaby","Moussa Niakhaté","Munas Dabbur","Myziane Maolida","Nadiem Amiri","Nick Viergever","Nico Elvedi","Nico Schlotterbeck","Nico Schulz","Nicolas Höfler","Niklas Dorsch","Niklas Stark","Niklas Süle","Niklas Tauer","Niko Gießelmann","Nikolas Nartey","Nils Petersen","Noah Weißhaupt","Nordi Mukiele","Odilon Kossounou","Oliver Baumann","Omar Marmoush","Omar Richards","Ömer Faruk Beyaz","Ondrej Duda","Orel Mangala","Pascal Stenzel","Patrick Herrmann","Patrick Wimmer","Patrik Schick","Paul Jaeckel","Paul Seguin","Paulinho","Paulo Otávio","Pavel Kadeřábek","Péter Gulácsi","Peter Pekarík","Philipp Förster","Philipp Klement","Philipp Lienhart","Piero Hincapié","Rafael Czichos","Rafael Santos Borré","Rafał Gikiewicz","Ragnar Ache","Ramy Bensebaini","Rani Khedira","Raphael Framberger","Raphaël Guerreiro","Reece Oxford","Reinier","Renato Steffen","Ridle Baku","Robert Andrich","Robert Gumny","Robert Lewandowski","Robert Skov","Roberto Massimo","Robin Hack","Robin Knoche","Robin Zentner","Roland Sallai","Ruben Vargas","Salih Özcan","Sam Lammers","Santiago Ascacibar","Sargis Adamyan","Saša Kalajdžić","Sascha Burchert","Sebastiaan Bornauw","Sebastian Andersson","Sebastian Griesbeck","Sebastian Polter","Sebastian Rode","Sebastian Rudy","Sebastian Vasiliadis","Serge Gnabry","Sergio Córdova","Sheraldo Becker","Silas","Silvan Widmer","Simon Zoller","Stefan Bell","Stefan Ilsanker","Stefan Lainer","Stefan Ortega Moreno","Stefan Posch","Steffen Tigges","Stevan Jovetić","Suat Serdar","Taiwo Awoniyi","Tanguy Coulibaly","Tanguy Nianzou","Thomas Meunier","Thomas Müller","Thorgan Hazard","Tim Lemperle","Timo Baumgartl","Timo Horn","Timo Hübers","Timothy Chandler","Timothy Fosu-Mensah","Timothy Tillman","Tobias Strobl","Tomas Ostrak","Tony Jantschke","Tuta","Tyler Adams","Vasilios Lampropoulos","Vincenzo Grifo","Vladimír Darida","Wahid Faghir","Waldemar Anton","Wataru Endo","Willi Orbán","Woo-yeong Jeong","Wout Weghorst","Xaver Schlager","Yann Sommer","Yannick Gerhardt","Yannik Keitel","Youssoufa Moukoko","Yussuf Poulsen"]
[null,{"$f":"_xlfn.XLOOKUP(A21,Alle_Spieler[Spieler],Alle_Spieler[Position],\"\")","v":""},{"$f":"_xlfn.XLOOKUP($A21,Alle_Spieler[Spieler],Alle_Spieler[Verein],\"\")","v":""},{"$f":"_xlfn.XLOOKUP($A21,Alle_Spieler[Spieler],Alle_Spieler[Marktwert],\"\")","v":""},{"$f":"_xlfn.XLOOKUP($A21,Alle_Spieler[Spieler],Alle_Spieler[Differenz],\"\")","v":""},{"$f":"IFERROR(Tabelle4[[#This Row],[Marktwertentwicklung]],\"\")","v":""},null,null,null,null,null,null,null,{"$f":"TRANSPOSE(_xlfn._xlws.SORT(_xlfn._xlws.FILTER(Alle_Spieler[Spieler],ISNUMBER((SEARCH(A21,Alle_Spieler[Spieler],1))),\"not found\")))","v":"Aarón"},"Ádám Szalai","Admir Mehmedi","Ajdin Hrustić","Alassane Pléa","Alessandro Schöpf","Alexander Hack","Alexander Schwolow","Alfreð Finnbogason","Almamy Touré","Alphonso Davies","Amadou Haidara","Amine Adli","Amos Pieper","Anderson Lucoqui","Andi Zeqiri","André Hahn","André Silva","Andreas Luthe","Andreas Voglsammer","Andrej Kramarić","Angeliño","Angelo Stiller","Ansgar Knauff","Anthony Losilla","Anthony Modeste","Anton Stach","Armel Bella-Kotchap","Arne Maier","Aster Vranckx","Atakan Karazor","Axel Witsel","Aymen Barkok","Benjamin Henrichs","Benjamin Hübner","Benjamin Pavard","Benno Schmitz","Borna Sosa","Bouna Sarr","Branimir Hrgota","Breel Embolo","Brian Brobbey","Bryan Lasme","Carlos Gruezo","Cédric Brunner","Cedric Itten","Cedric Teuchert","Charles Aránguiz","Chris Führich","Chris Richards","Christian Günter","Christoph Baumgartner","Christoph Kramer","Christopher Antwi-Adjei","Christopher Lenz","Christopher Nkunku","Christopher Trimmel","Clinton Mola","Corentin Tolisso","Cristian Gamboa","Daichi Kamada","Daley Sinkgraven","Dan-Axel Zagadou","Dani Olmo","Daniel Brosinski","Daniel Caligiuri","Daniel Didavi","Danilo Soares","Danny da Costa","David Raum","Davie Selke","Dayot Upamecano","Dedryck Boyata","Dejan Ljubičić","Denis Zakaria","Dennis Geiger","Dennis Jastrzembski","Deyovaisio Zeefuik","Diadié Samassékou","Dickson Abiama","Djibril Sow","Dodi Lukébakio","Dominik Kohr","Dominik Szoboszlai","Dominique Heintz","Donyell Malen","E. Choupo-Moting","Edimilson Fernandes","Edmond Tapsoba","Eduard Löwen","Ellyes Skhiri","Elvis Rexhbeçaj","Emil Forsberg","Emre Can","Erhan Mašović","Erik Durm","Erik Thommy","Erling Braut Haaland","Ermedin Demirović","Evan N'Dicka","Exequiel Palacios","Fabian Bredlow","Fabian Klos","Fabian Kunze","Felix Nmecha","Felix Passlack","Felix Uduokhai","Filip Kostić","Florian Grillitsch","Florian Kainz","Florian Müller","Florian Neuhaus","Florian Niederlechner","Florian Schock","Florian Wirtz","Genki Haraguchi","Georginio Rutter","Gerrit Holtmann","Giovanni Reyna","Gonçalo Paciência","Gregor Kobel","Grischa Prömel","Hamadi Al Ghaddioui","Hannes Wolf","Hans Nunoo Sarpei","Håvard Nielsen","Hiroki Ito","Iago","Ihlas Bebou","Ilaix Moriba","Ishak Belfodil","Jacob Bruun Larsen","Jacob Laursen","Jae-sung Lee","Jamal Musiala","Jan Thielmann","Janik Haberer","Janni Serra","Jean-Paul Boëtius","Jeffrey Gouweleeuw","Jens Petter Hauge","Jeremiah St. Juste","Jeremie Frimpong","Jeremy Dudziak","Jérôme Roussillon","Jesper Lindstrøm","Jetro Willems","Joakim Nilsson","Joe Scally","John Anthony Brooks","Jonas Hector","Jonas Hofmann","Jonathan Burkardt","Jonathan Schmid","Jonathan Tah","Jordan Beyer","Jordan Torunarigha","Jorge Meré","Joshua Kimmich","Josip Stanišić","Joško Gvardiol","Josuha Guilavogui","Jude Bellingham","Julian Brandt","Julian Green","Julian Ryerson","Jurgen Ekkelenkamp","Justin Hoogma","Karim Bellarabi","Karim Onisiwo","Kerem Demirbay","Keven Schlotterbeck","Kevin Akpoguma","Kevin Behrens","Kevin Kampl","Kevin Mbabu","Kevin Möhwald","Kevin Schade","Kevin Stöger","Kevin Trapp","Kevin Vogt","Kevin-Prince Boateng","Kiliann Sildillia","Kingsley Coman","Kingsley Ehizibue","Kingsley Schindler","Koen Casteels","Konrad Laimer","Konstantinos Mavropanos","Konstantinos Stafylidis","Kristijan Jakić","Krzysztof Piątek","Lars Stindl","László Bénes","Leandro Barreiro","Lennart Czyborra","Leon Goretzka","Leroy Sané","Levin Öztunali","Linus Gechter","Louis Schaub","Luca Kilian","Luca Netz","Luca Waldschmidt","Lucas Alario","Lucas Hernández","Lucas Höler","Lucas Tousart","Lukáš Hrádecký","Lukas Klostermann","Lukas Kübler","Lukas Nmecha","Mads Pedersen","Mahmoud Dahoud","Makoto Hasebe","Manu Koné","Manuel Akanji","Manuel Gulde","Manuel Neuer","Manuel Prietl","Manuel Riemann","Marc Oliver Kempf","Marcel Halstenberg","Marcel Sabitzer","Marco Meyerhöfer","Marco Reus","Marco Richter","Marcus Ingvartsen","Marcus Thuram","Marin Pongračić","Marius Funk","Marius Wolf","Mark Flekken","Mark Uth","Martin Hinteregger","Márton Dárdai","Marvin Friedrich","Marvin Plattenhardt","Masaya Okugawa","Mateo Klimowicz","Mateu Morey","Mats Hummels","Matthias Ginter","Max Kruse","Maxence Lacroix","Maxim Leitsch","Maximilian Arnold","Maximilian Bauer","Maximilian Eggestein","Maximilian Mittelstädt","Maximilian Philipp","Mijat Gaćinović","Miloš Pantović","Mitchel Bakker","Mohamed Simakan","Moussa Diaby","Moussa Niakhaté","Munas Dabbur","Myziane Maolida","Nadiem Amiri","Nick Viergever","Nico Elvedi","Nico Schlotterbeck","Nico Schulz","Nicolas Höfler","Niklas Dorsch","Niklas Stark","Niklas Süle","Niklas Tauer","Niko Gießelmann","Nikolas Nartey","Nils Petersen","Noah Weißhaupt","Nordi Mukiele","Odilon Kossounou","Oliver Baumann","Omar Marmoush","Omar Richards","Ömer Faruk Beyaz","Ondrej Duda","Orel Mangala","Pascal Stenzel","Patrick Herrmann","Patrick Wimmer","Patrik Schick","Paul Jaeckel","Paul Seguin","Paulinho","Paulo Otávio","Pavel Kadeřábek","Péter Gulácsi","Peter Pekarík","Philipp Förster","Philipp Klement","Philipp Lienhart","Piero Hincapié","Rafael Czichos","Rafael Santos Borré","Rafał Gikiewicz","Ragnar Ache","Ramy Bensebaini","Rani Khedira","Raphael Framberger","Raphaël Guerreiro","Reece Oxford","Reinier","Renato Steffen","Ridle Baku","Robert Andrich","Robert Gumny","Robert Lewandowski","Robert Skov","Roberto Massimo","Robin Hack","Robin Knoche","Robin Zentner","Roland Sallai","Ruben Vargas","Salih Özcan","Sam Lammers","Santiago Ascacibar","Sargis Adamyan","Saša Kalajdžić","Sascha Burchert","Sebastiaan Bornauw","Sebastian Andersson","Sebastian Griesbeck","Sebastian Polter","Sebastian Rode","Sebastian Rudy","Sebastian Vasiliadis","Serge Gnabry","Sergio Córdova","Sheraldo Becker","Silas","Silvan Widmer","Simon Zoller","Stefan Bell","Stefan Ilsanker","Stefan Lainer","Stefan Ortega Moreno","Stefan Posch","Steffen Tigges","Stevan Jovetić","Suat Serdar","Taiwo Awoniyi","Tanguy Coulibaly","Tanguy Nianzou","Thomas Meunier","Thomas Müller","Thorgan Hazard","Tim Lemperle","Timo Baumgartl","Timo Horn","Timo Hübers","Timothy Chandler","Timothy Fosu-Mensah","Timothy Tillman","Tobias Strobl","Tomas Ostrak","Tony Jantschke","Tuta","Tyler Adams","Vasilios Lampropoulos","Vincenzo Grifo","Vladimír Darida","Wahid Faghir","Waldemar Anton","Wataru Endo","Willi Orbán","Woo-yeong Jeong","Wout Weghorst","Xaver Schlager","Yann Sommer","Yannick Gerhardt","Yannik Keitel","Youssoufa Moukoko","Yussuf Poulsen"]

{"sheet":"Alle Spieler","index":1,"n_rows":379,"n_cols":7,"rows_kept":379,"cut":false,"hidden":false,"merged":[]}
["Spieler","Verein","Position","Punkte Gesamt","Marktwert","Wachstum","Differenz"]
["Linus Gechter","Hertha BSC","Abwehrspieler",141,1914204,0.34300000000000003,489079]
["Kiliann Sildillia","SC Freiburg","Abwehrspieler",63,3557765,0.154,474279]
["Jonathan Burkardt","1. FSV Mainz 05","Stürmer",758,8882540,5.0999999999999997E-2,432177]
["Karim Onisiwo","1. FSV Mainz 05","Stürmer",566,5214397,8.7999999999999995E-2,422748]
["Kevin Möhwald","1. FC Union Berlin","Mittelfeldspieler",39,3648974,0.11700000000000001,382002]
["Janni Serra","Arminia Bielefeld","Stürmer",37,1617862,0.30099999999999999,374176]
["Peter Pekarík","Hertha BSC","Abwehrspieler",273,3774008,0.109,369917]
["Dominik Kohr","1. FSV Mainz 05","Mittelfeldspieler",425,5299574,7.4999999999999997E-2,369009]
["Vasilios Lampropoulos","VfL Bochum","Abwehrspieler",329,4706076,8.3000000000000004E-2,361358]
["Aarón","1. FSV Mainz 05","Abwehrspieler",332,1643103,0.26900000000000002,348344]
["Kevin Akpoguma","TSG 1899 Hoffenheim","Abwehrspieler",487,9833929,3.5999999999999997E-2,342051]
["Jacob Laursen","Arminia Bielefeld","Abwehrspieler",495,4975382,7.3999999999999996E-2,340719]
["Miloš Pantović","VfL Bochum","Mittelfeldspieler",167,3180080,0.115,327943]
["Alfreð Finnbogason","FC Augsburg","Stürmer",5,3034885,0.12,326016]
["Genki Haraguchi","1. FC Union Berlin","Mittelfeldspieler",408,5123997,6.8000000000000005E-2,325722]
["Andi Zeqiri","FC Augsburg","Stürmer",249,6338510,5.2999999999999999E-2,317253]
["Alexander Hack","1. FSV Mainz 05","Abwehrspieler",434,4839556,7.0000000000000007E-2,315548]
["Makoto Hasebe","Eintracht Frankfurt","Abwehrspieler",36,3961354,8.5999999999999993E-2,314028]
["Timo Baumgartl","1. FC Union Berlin","Abwehrspieler",301,6606108,4.9000000000000002E-2,308027]
["Jurgen Ekkelenkamp","Hertha BSC","Mittelfeldspieler",294,6838503,4.7E-2,304044]
["Stefan Posch","TSG 1899 Hoffenheim","Abwehrspieler",487,6971887,4.4999999999999998E-2,302827]
["Robert Andrich","Bayer 04 Leverkusen","Mittelfeldspieler",230,6760398,4.5999999999999999E-2,298587]
["Daniel Caligiuri","FC Augsburg","Mittelfeldspieler",565,8201403,3.7999999999999999E-2,298501]
["Exequiel Palacios","Bayer 04 Leverkusen","Mittelfeldspieler",254,8474100,3.5999999999999997E-2,293874]
["Daichi Kamada","Eintracht Frankfurt","Mittelfeldspieler",250,9271216,3.3000000000000002E-2,292453]
["Fabian Kunze","Arminia Bielefeld","Mittelfeldspieler",248,1656749,0.214,291539]
["Tobias Strobl","FC Augsburg","Mittelfeldspieler",90,1399635,0.26100000000000001,289456]
["Konrad Laimer","RB Leipzig","Mittelfeldspieler",242,6684428,4.2999999999999997E-2,275875]
["Niklas Stark","Hertha BSC","Abwehrspieler",430,7434155,3.7999999999999999E-2,272822]
["Josip Stanišić","FC Bayern München","Abwehrspieler",460,8801824,3.2000000000000001E-2,270676]
["Taiwo Awoniyi","1. FC Union Berlin","Stürmer",928,18597989,1.4E-2,260855]
["Cristian Gamboa","VfL Bochum","Abwehrspieler",187,3378759,8.3000000000000004E-2,260002]
["Mohamed Simakan","RB Leipzig","Abwehrspieler",789,16797573,1.4999999999999999E-2,256035]
["Benjamin Pavard","FC Bayern München","Abwehrspieler",186,15963508,1.6E-2,251855]
["Maximilian Mittelstädt","Hertha BSC","Abwehrspieler",314,5399355,4.9000000000000002E-2,251100]
["Vladimír Darida","Hertha BSC","Mittelfeldspieler",323,6046474,4.2999999999999997E-2,249808]
["Gonçalo Paciência","Eintracht Frankfurt","Stürmer",152,5234475,0.05,249685]
["Santiago Ascacibar","Hertha BSC","Mittelfeldspieler",281,2557883,0.108,249261]
["Jean-Paul Boëtius","1. FSV Mainz 05","Mittelfeldspieler",476,5822484,4.4999999999999998E-2,248562]
["Ihlas Bebou","TSG 1899 Hoffenheim","Stürmer",367,11383859,2.1999999999999999E-2,245009]
["Kristijan Jakić","Eintracht Frankfurt","Mittelfeldspieler",257,6571091,3.7999999999999999E-2,240773]
["Jeffrey Gouweleeuw","FC Augsburg","Abwehrspieler",364,6256055,0.04,239886]
["André Hahn","FC Augsburg","Stürmer",341,4622339,5.3999999999999999E-2,238256]
["Fabian Bredlow","VfB Stuttgart","Torhüter",92,4428107,5.6000000000000001E-2,233806]
["Kingsley Coman","FC Bayern München","Mittelfeldspieler",270,23291574,0.01,231769]
["Woo-yeong Jeong","SC Freiburg","Mittelfeldspieler",734,9642592,2.4E-2,228449]
["Orel Mangala","VfB Stuttgart","Mittelfeldspieler",226,7427768,3.1E-2,226373]
["Silas","VfB Stuttgart","Mittelfeldspieler",0,9932247,2.3E-2,223897]
["Jonathan Schmid","SC Freiburg","Abwehrspieler",162,6209881,3.6999999999999998E-2,223643]
["Nadiem Amiri","Bayer 04 Leverkusen","Mittelfeldspieler",326,7816757,2.9000000000000001E-2,218801]
["Corentin Tolisso","FC Bayern München","Mittelfeldspieler",49,2548458,9.2999999999999999E-2,217659]
["Daniel Didavi","VfB Stuttgart","Mittelfeldspieler",91,988683,0.27800000000000002,215346]
["Stefan Bell","1. FSV Mainz 05","Abwehrspieler",829,8685513,2.5000000000000001E-2,213566]
["Lukas Nmecha","VfL Wolfsburg","Stürmer",415,12236517,1.7999999999999999E-2,213489]
["Sebastian Vasiliadis","Arminia Bielefeld","Mittelfeldspieler",0,3451305,6.6000000000000003E-2,212867]
["Mateu Morey","Borussia Dortmund","Abwehrspieler",0,3446225,6.3E-2,202819]
["Steffen Tigges","Borussia Dortmund","Stürmer",51,705930,0.40100000000000002,202225]
["Marvin Plattenhardt","Hertha BSC","Abwehrspieler",358,5189597,0.04,199137]
["Mahmoud Dahoud","Borussia Dortmund","Mittelfeldspieler",411,14018572,1.4E-2,192837]
["Alassane Pléa","Borussia Mönchengladbach","Stürmer",436,15734342,1.2E-2,191624]
["Jordan Beyer","Borussia Mönchengladbach","Abwehrspieler",486,11846667,1.6E-2,187865]
["Keven Schlotterbeck","SC Freiburg","Abwehrspieler",0,3130465,6.3E-2,186477]
["Marin Pongračić","Borussia Dortmund","Abwehrspieler",274,6172476,3.1E-2,185535]
["Maxence Lacroix","VfL Wolfsburg","Abwehrspieler",699,23552924,8.0000000000000002E-3,182927]
["Dominik Szoboszlai","RB Leipzig","Mittelfeldspieler",999,21312088,8.9999999999999993E-3,182546]
["Dennis Geiger","TSG 1899 Hoffenheim","Mittelfeldspieler",367,6470370,2.9000000000000001E-2,180120]
["Myziane Maolida","Hertha BSC","Stürmer",200,6776587,2.7E-2,175889]
["Aster Vranckx","VfL Wolfsburg","Mittelfeldspieler",46,803174,0.27800000000000002,174777]
["Rani Khedira","1. FC Union Berlin","Mittelfeldspieler",522,6765661,2.5999999999999999E-2,170403]
["Atakan Karazor","VfB Stuttgart","Mittelfeldspieler",388,8987092,1.9E-2,169069]
["Marcel Sabitzer","FC Bayern München","Mittelfeldspieler",393,21464183,8.0000000000000002E-3,168678]
["Marco Richter","Hertha BSC","Mittelfeldspieler",421,5244009,3.3000000000000002E-2,166085]
["Sergio Córdova","FC Augsburg","Stürmer",-30,2807324,6.3E-2,165218]
["Breel Embolo","Borussia Mönchengladbach","Stürmer",450,15579169,1.0999999999999999E-2,164625]
["Edmond Tapsoba","Bayer 04 Leverkusen","Abwehrspieler",1,12438615,1.2999999999999999E-2,164228]
["Stefan Lainer","Borussia Mönchengladbach","Abwehrspieler",103,3014786,5.7000000000000002E-2,162409]
["Ramy Bensebaini","Borussia Mönchengladbach","Abwehrspieler",162,8278771,0.02,161817]
["Suat Serdar","Hertha BSC","Mittelfeldspieler",672,10285997,1.4999999999999999E-2,156455]
["Rafael Santos Borré","Eintracht Frankfurt","Stürmer",295,9430375,1.7000000000000001E-2,154602]
["Wahid Faghir","VfB Stuttgart","Stürmer",-2,972774,0.189,154600]
["Paulinho","Bayer 04 Leverkusen","Mittelfeldspieler",307,7480398,2.1000000000000001E-2,151394]
["Emre Can","Borussia Dortmund","Abwehrspieler",403,13567962,1.0999999999999999E-2,147987]
["Marc Oliver Kempf","VfB Stuttgart","Abwehrspieler",922,21559430,7.0000000000000001E-3,143643]
["Sebastian Rode","Eintracht Frankfurt","Mittelfeldspieler",0,5819771,2.5000000000000001E-2,143089]
["Andreas Luthe","1. FC Union Berlin","Torhüter",724,8880564,1.6E-2,142516]
["Julian Brandt","Borussia Dortmund","Mittelfeldspieler",734,16990163,8.0000000000000002E-3,142202]
["Denis Zakaria","Borussia Mönchengladbach","Mittelfeldspieler",787,18728951,8.0000000000000002E-3,139911]
["Silvan Widmer","1. FSV Mainz 05","Abwehrspieler",672,7955301,1.7999999999999999E-2,138427]
["Moussa Niakhaté","1. FSV Mainz 05","Abwehrspieler",569,12206123,1.0999999999999999E-2,136189]
["Dedryck Boyata","Hertha BSC","Abwehrspieler",466,10080500,1.4E-2,136091]
["Carlos Gruezo","FC Augsburg","Mittelfeldspieler",81,4014049,3.5000000000000003E-2,136008]
["Leandro Barreiro","1. FSV Mainz 05","Mittelfeldspieler",526,7208538,1.9E-2,135576]
["Anthony Losilla","VfL Bochum","Mittelfeldspieler",625,7896151,1.7000000000000001E-2,133832]
["Jesper Lindstrøm","Eintracht Frankfurt","Mittelfeldspieler",324,8371594,1.6E-2,133724]
["Matthias Ginter","Borussia Mönchengladbach","Abwehrspieler",638,24146789,5.0000000000000001E-3,128909]
["Dayot Upamecano","FC Bayern München","Abwehrspieler",1056,31589233,4.0000000000000001E-3,128869]
["Konstantinos Mavropanos","VfB Stuttgart","Abwehrspieler",1141,19997030,6.0000000000000001E-3,128151]
["Tomas Ostrak","1. FC Köln","Mittelfeldspieler",88,624969,0.248,124039]
["Eduard Löwen","VfL Bochum","Mittelfeldspieler",338,5406879,2.3E-2,123963]
["Martin Hinteregger","Eintracht Frankfurt","Abwehrspieler",665,20452522,6.0000000000000001E-3,122846]
["Stefan Ortega Moreno","Arminia Bielefeld","Torhüter",745,10633072,1.0999999999999999E-2,116961]
["Lars Stindl","Borussia Mönchengladbach","Mittelfeldspieler",536,21872541,5.0000000000000001E-3,116931]
["Niklas Tauer","1. FSV Mainz 05","Stürmer",108,667518,0.21,115800]
["Nicolas Höfler","SC Freiburg","Mittelfeldspieler",668,12767695,8.9999999999999993E-3,115499]
["Manuel Akanji","Borussia Dortmund","Abwehrspieler",898,24689538,5.0000000000000001E-3,115068]
["Alexander Schwolow","Hertha BSC","Torhüter",444,5478068,2.1000000000000001E-2,114068]
["Elvis Rexhbeçaj","VfL Bochum","Mittelfeldspieler",414,6110811,1.7999999999999999E-2,109567]
["Thorgan Hazard","Borussia Dortmund","Mittelfeldspieler",415,14637615,7.0000000000000001E-3,106880]
["Evan N'Dicka","Eintracht Frankfurt","Abwehrspieler",490,13463530,8.0000000000000002E-3,105463]
["Serge Gnabry","FC Bayern München","Mittelfeldspieler",1387,45052522,2E-3,103577]
["Kerem Demirbay","Bayer 04 Leverkusen","Mittelfeldspieler",979,23263078,4.0000000000000001E-3,102991]
["Willi Orbán","RB Leipzig","Abwehrspieler",897,24500238,4.0000000000000001E-3,102334]
["Danilo Soares","VfL Bochum","Abwehrspieler",610,7846476,1.2999999999999999E-2,102050]
["Jude Bellingham","Borussia Dortmund","Mittelfeldspieler",1134,31290931,3.0000000000000001E-3,97502]
["Manu Koné","Borussia Mönchengladbach","Mittelfeldspieler",296,11665945,8.0000000000000002E-3,96988]
["André Silva","RB Leipzig","Stürmer",527,38128115,3.0000000000000001E-3,96919]
["Reece Oxford","FC Augsburg","Abwehrspieler",795,10323533,8.9999999999999993E-3,95634]
["Donyell Malen","Borussia Dortmund","Stürmer",581,26064377,4.0000000000000001E-3,94234]
["Leroy Sané","FC Bayern München","Mittelfeldspieler",1230,35684784,3.0000000000000001E-3,93704]
["Marco Reus","Borussia Dortmund","Mittelfeldspieler",1244,39913612,2E-3,93414]
["Filip Kostić","Eintracht Frankfurt","Mittelfeldspieler",763,29931632,3.0000000000000001E-3,92301]
["Jérôme Roussillon","VfL Wolfsburg","Abwehrspieler",423,10668703,8.9999999999999993E-3,91817]
["Erik Durm","Eintracht Frankfurt","Abwehrspieler",316,6337041,1.4999999999999999E-2,91559]
["Marcus Thuram","Borussia Mönchengladbach","Stürmer",3,12864312,7.0000000000000001E-3,90934]
["Manuel Riemann","VfL Bochum","Torhüter",814,9728327,8.9999999999999993E-3,90006]
["Hans Nunoo Sarpei","SpVgg Greuther Fürth","Mittelfeldspieler",66,590801,0.17499999999999999,87947]
["Luca Netz","Borussia Mönchengladbach","Abwehrspieler",285,9607396,8.9999999999999993E-3,87284]
["Jonas Hofmann","Borussia Mönchengladbach","Mittelfeldspieler",950,25491937,3.0000000000000001E-3,83271]
["Joe Scally","Borussia Mönchengladbach","Abwehrspieler",740,15472201,5.0000000000000001E-3,82451]
["Lucas Höler","SC Freiburg","Stürmer",976,15257750,5.0000000000000001E-3,81849]
["Patrik Schick","Bayer 04 Leverkusen","Stürmer",1054,32502376,3.0000000000000001E-3,81667]
["Christopher Nkunku","RB Leipzig","Mittelfeldspieler",1293,33210081,2E-3,80233]
["Jae-sung Lee","1. FSV Mainz 05","Mittelfeldspieler",213,2175052,3.6999999999999998E-2,76714]
["Salih Özcan","1. FC Köln","Mittelfeldspieler",192,5253729,1.4E-2,74601]
["Lucas Hernández","FC Bayern München","Abwehrspieler",660,22631764,3.0000000000000001E-3,74394]
["Jamal Musiala","FC Bayern München","Mittelfeldspieler",853,25150634,3.0000000000000001E-3,74282]
["Nico Schlotterbeck","SC Freiburg","Abwehrspieler",1148,20600371,4.0000000000000001E-3,71850]
["Robin Knoche","1. FC Union Berlin","Abwehrspieler",756,15830094,4.0000000000000001E-3,70257]
["Thomas Müller","FC Bayern München","Mittelfeldspieler",1447,49160948,1E-3,69274]
["Manuel Neuer","FC Bayern München","Torhüter",945,23325409,3.0000000000000001E-3,68483]
["Andrej Kramarić","TSG 1899 Hoffenheim","Stürmer",1291,40437231,2E-3,67510]
["Florian Neuhaus","Borussia Mönchengladbach","Mittelfeldspieler",314,18877922,4.0000000000000001E-3,66623]
["Nico Elvedi","Borussia Mönchengladbach","Abwehrspieler",665,19623955,3.0000000000000001E-3,64036]
["Robert Gumny","FC Augsburg","Abwehrspieler",300,3821680,1.7000000000000001E-2,63632]
["Amine Adli","Bayer 04 Leverkusen","Stürmer",223,10225188,6.0000000000000001E-3,63165]
["Emil Forsberg","RB Leipzig","Mittelfeldspieler",993,26053407,2E-3,62813]
["Jeremie Frimpong","Bayer 04 Leverkusen","Abwehrspieler",864,17836181,3.0000000000000001E-3,62173]
["Dani Olmo","RB Leipzig","Mittelfeldspieler",63,23574269,3.0000000000000001E-3,61483]
["Oliver Baumann","TSG 1899 Hoffenheim","Torhüter",763,10080792,6.0000000000000001E-3,61361]
["Niklas Süle","FC Bayern München","Abwehrspieler",1081,25727064,2E-3,61127]
["David Raum","TSG 1899 Hoffenheim","Abwehrspieler",819,14967434,4.0000000000000001E-3,59828]
["Jonathan Tah","Bayer 04 Leverkusen","Abwehrspieler",876,20705634,3.0000000000000001E-3,58711]
["Diadié Samassékou","TSG 1899 Hoffenheim","Mittelfeldspieler",341,8437118,7.0000000000000001E-3,58173]
["Mats Hummels","Borussia Dortmund","Abwehrspieler",695,28963544,2E-3,56966]
["Tyler Adams","RB Leipzig","Mittelfeldspieler",322,10963869,5.0000000000000001E-3,56888]
["Philipp Lienhart","SC Freiburg","Abwehrspieler",1148,19134450,3.0000000000000001E-3,55910]
["Gregor Kobel","Borussia Dortmund","Torhüter",686,14356603,4.0000000000000001E-3,55498]
["Kevin Kampl","RB Leipzig","Mittelfeldspieler",570,15103206,4.0000000000000001E-3,55270]
["Paulo Otávio","VfL Wolfsburg","Abwehrspieler",22,6895953,8.0000000000000002E-3,53688]
["Florian Wirtz","Bayer 04 Leverkusen","Mittelfeldspieler",1243,33402284,2E-3,51409]
["Max Kruse","1. FC Union Berlin","Stürmer",864,29793652,2E-3,51339]
["Kevin Mbabu","VfL Wolfsburg","Abwehrspieler",650,14943535,3.0000000000000001E-3,50664]
["Lukáš Hrádecký","Bayer 04 Leverkusen","Torhüter",952,18003670,3.0000000000000001E-3,50606]
["Julian Ryerson","1. FC Union Berlin","Abwehrspieler",318,5801484,8.9999999999999993E-3,50499]
["Christian Günter","SC Freiburg","Abwehrspieler",886,19564412,3.0000000000000001E-3,50383]
["Josuha Guilavogui","VfL Wolfsburg","Mittelfeldspieler",498,6974077,7.0000000000000001E-3,49390]
["Felix Passlack","Borussia Dortmund","Abwehrspieler",124,1004835,5.0999999999999997E-2,48932]
["Marius Wolf","Borussia Dortmund","Mittelfeldspieler",272,4620154,0.01,44812]
["Joško Gvardiol","RB Leipzig","Abwehrspieler",772,15738823,3.0000000000000001E-3,44678]
["Timothy Fosu-Mensah","Bayer 04 Leverkusen","Abwehrspieler",0,910472,5.0999999999999997E-2,44327]
["Florian Grillitsch","TSG 1899 Hoffenheim","Mittelfeldspieler",437,11327462,4.0000000000000001E-3,43743]
["Djibril Sow","Eintracht Frankfurt","Mittelfeldspieler",614,13527397,3.0000000000000001E-3,43230]
["Márton Dárdai","Hertha BSC","Abwehrspieler",372,4046172,0.01,40427]
["Cédric Brunner","Arminia Bielefeld","Abwehrspieler",473,6288703,6.0000000000000001E-3,37223]
["Sheraldo Becker","1. FC Union Berlin","Stürmer",192,5426175,7.0000000000000001E-3,35869]
["Chris Richards","TSG 1899 Hoffenheim","Abwehrspieler",583,12035317,3.0000000000000001E-3,34814]
["Omar Richards","FC Bayern München","Abwehrspieler",279,3496588,0.01,33125]
["Vincenzo Grifo","SC Freiburg","Mittelfeldspieler",987,25954661,1E-3,28415]
["Odilon Kossounou","Bayer 04 Leverkusen","Abwehrspieler",649,16418070,2E-3,27728]
["Tanguy Coulibaly","VfB Stuttgart","Mittelfeldspieler",232,7929806,3.0000000000000001E-3,23536]
["Benno Schmitz","1. FC Köln","Abwehrspieler",678,12727451,2E-3,22336]
["Moussa Diaby","Bayer 04 Leverkusen","Stürmer",998,33616513,1E-3,20414]
["Joshua Kimmich","FC Bayern München","Mittelfeldspieler",1845,54129912,0,20181]
["Kevin Trapp","Eintracht Frankfurt","Torhüter",557,11459674,2E-3,19204]
["Borna Sosa","VfB Stuttgart","Abwehrspieler",689,17573762,1E-3,16516]
["Nordi Mukiele","RB Leipzig","Abwehrspieler",455,12154778,1E-3,15328]
["Robert Lewandowski","FC Bayern München","Stürmer",1802,63069004,0,14965]
["Maximilian Arnold","VfL Wolfsburg","Mittelfeldspieler",831,26899679,1E-3,14335]
["Yann Sommer","Borussia Mönchengladbach","Torhüter",596,12949659,1E-3,13972]
["Marius Funk","SpVgg Greuther Fürth","Torhüter",180,6350756,2E-3,12189]
["Armel Bella-Kotchap","VfL Bochum","Abwehrspieler",342,6848242,1E-3,8628]
["Chris Führich","VfB Stuttgart","Mittelfeldspieler",198,7244634,1E-3,5142]
["Youssoufa Moukoko","Borussia Dortmund","Stürmer",38,5543609,1E-3,3157]
["Leon Goretzka","FC Bayern München","Mittelfeldspieler",1194,43274279,0,2018]
["Robert Skov","TSG 1899 Hoffenheim","Mittelfeldspieler",50,662520,-1E-3,-922]
["Julian Green","SpVgg Greuther Fürth","Mittelfeldspieler",120,500000,-3.0000000000000001E-3,-1589]
["Jordan Torunarigha","Hertha BSC","Abwehrspieler",47,2704661,-1E-3,-3502]
["Iago","FC Augsburg","Abwehrspieler",218,5087977,-1E-3,-7089]
["Joakim Nilsson","Arminia Bielefeld","Abwehrspieler",541,4611517,-2E-3,-8655]
["Omar Marmoush","VfB Stuttgart","Stürmer",505,11383022,-1E-3,-10923]
["Mijat Gaćinović","TSG 1899 Hoffenheim","Mittelfeldspieler",67,3490592,-4.0000000000000001E-3,-12337]
["Ruben Vargas","FC Augsburg","Mittelfeldspieler",374,6117069,-3.0000000000000001E-3,-16725]
["Hamadi Al Ghaddioui","VfB Stuttgart","Stürmer",356,4456968,-6.0000000000000001E-3,-24867]
["Jan Thielmann","1. FC Köln","Mittelfeldspieler",256,3948072,-7.0000000000000001E-3,-27715]
["E. Choupo-Moting","FC Bayern München","Stürmer",438,6811391,-5.0000000000000001E-3,-31027]
["Dominique Heintz","SC Freiburg","Abwehrspieler",15,4175215,-8.0000000000000002E-3,-32924]
["Ermedin Demirović","SC Freiburg","Stürmer",96,1402098,-2.3E-2,-33005]
["Ansgar Knauff","Borussia Dortmund","Mittelfeldspieler",-15,1445002,-2.4E-2,-35789]
["Christoph Baumgartner","TSG 1899 Hoffenheim","Mittelfeldspieler",699,15269110,-3.0000000000000001E-3,-39193]
["Manuel Prietl","Arminia Bielefeld","Mittelfeldspieler",495,4142955,-0.01,-41667]
["Clinton Mola","VfB Stuttgart","Mittelfeldspieler",20,3923651,-1.0999999999999999E-2,-41938]
["Branimir Hrgota","SpVgg Greuther Fürth","Stürmer",401,4561172,-8.9999999999999993E-3,-42971]
["Péter Gulácsi","RB Leipzig","Torhüter",841,16654980,-3.0000000000000001E-3,-43210]
["Marcus Ingvartsen","1. FSV Mainz 05","Mittelfeldspieler",315,7445980,-6.0000000000000001E-3,-45509]
["Philipp Förster","VfB Stuttgart","Mittelfeldspieler",288,4150974,-1.0999999999999999E-2,-47373]
["Rafał Gikiewicz","FC Augsburg","Torhüter",731,7905238,-6.0000000000000001E-3,-47452]
["Karim Bellarabi","Bayer 04 Leverkusen","Mittelfeldspieler",176,4568384,-0.01,-47959]
["Yussuf Poulsen","RB Leipzig","Stürmer",563,11952800,-4.0000000000000001E-3,-49625]
["Gerrit Holtmann","VfL Bochum","Mittelfeldspieler",360,3867418,-1.2999999999999999E-2,-49789]
["Kevin Schade","SC Freiburg","Stürmer",133,2848199,-1.7000000000000001E-2,-50362]
["Ádám Szalai","1. FSV Mainz 05","Stürmer",240,2200367,-2.3E-2,-50876]
["Lennart Czyborra","Arminia Bielefeld","Abwehrspieler",-53,1850056,-2.8000000000000001E-2,-52939]
["Tanguy Nianzou","FC Bayern München","Abwehrspieler",232,4092044,-1.2999999999999999E-2,-54325]
["Erhan Mašović","VfL Bochum","Abwehrspieler",250,3984206,-1.4E-2,-54574]
["Sebastian Griesbeck","SpVgg Greuther Fürth","Mittelfeldspieler",19,2182273,-2.4E-2,-54779]
["Yannick Gerhardt","VfL Wolfsburg","Mittelfeldspieler",258,4445548,-1.2E-2,-55176]
["Sam Lammers","Eintracht Frankfurt","Stürmer",243,7703391,-7.0000000000000001E-3,-55712]
["Patrick Herrmann","Borussia Mönchengladbach","Mittelfeldspieler",370,4797947,-1.2E-2,-57457]
["Georginio Rutter","TSG 1899 Hoffenheim","Stürmer",302,3069363,-1.9E-2,-60632]
["Angelo Stiller","TSG 1899 Hoffenheim","Mittelfeldspieler",236,4134932,-1.4999999999999999E-2,-61783]
["Philipp Klement","VfB Stuttgart","Mittelfeldspieler",458,4598386,-1.2999999999999999E-2,-62666]
["Hiroki Ito","VfB Stuttgart","Abwehrspieler",95,2970875,-2.1000000000000001E-2,-63628]
["Ajdin Hrustić","Eintracht Frankfurt","Mittelfeldspieler",299,3442436,-1.7999999999999999E-2,-64865]
["Mads Pedersen","FC Augsburg","Abwehrspieler",171,1743168,-3.6999999999999998E-2,-66722]
["Lucas Tousart","Hertha BSC","Mittelfeldspieler",361,4015629,-1.7000000000000001E-2,-68292]
["Waldemar Anton","VfB Stuttgart","Abwehrspieler",356,6579575,-1.0999999999999999E-2,-70645]
["Stevan Jovetić","Hertha BSC","Stürmer",140,4427929,-1.6E-2,-71547]
["Bouna Sarr","FC Bayern München","Abwehrspieler",115,3436031,-2.1000000000000001E-2,-72650]
["Mateo Klimowicz","VfB Stuttgart","Mittelfeldspieler",272,3427963,-2.1000000000000001E-2,-72831]
["Jetro Willems","SpVgg Greuther Fürth","Abwehrspieler",175,2863238,-2.5000000000000001E-2,-73652]
["Wataru Endo","VfB Stuttgart","Mittelfeldspieler",858,22223617,-3.0000000000000001E-3,-74302]
["Ishak Belfodil","Hertha BSC","Stürmer",135,1638753,-4.3999999999999997E-2,-74557]
["Koen Casteels","VfL Wolfsburg","Torhüter",777,17646694,-4.0000000000000001E-3,-75055]
["Grischa Prömel","1. FC Union Berlin","Mittelfeldspieler",226,4492804,-1.7000000000000001E-2,-76279]
["Deyovaisio Zeefuik","Hertha BSC","Abwehrspieler",124,1323730,-5.8000000000000003E-2,-80850]
["Kevin Behrens","1. FC Union Berlin","Stürmer",361,4788760,-1.7000000000000001E-2,-82181]
["Sascha Burchert","SpVgg Greuther Fürth","Torhüter",361,2872127,-2.8000000000000001E-2,-83803]
["Florian Müller","VfB Stuttgart","Torhüter",528,6230907,-1.2999999999999999E-2,-84882]
["László Bénes","Borussia Mönchengladbach","Mittelfeldspieler",58,3128887,-2.7E-2,-85405]
["Benjamin Henrichs","RB Leipzig","Abwehrspieler",95,3868297,-2.1999999999999999E-2,-85687]
["Cedric Itten","SpVgg Greuther Fürth","Stürmer",88,2003588,-4.1000000000000002E-2,-85762]
["Yannik Keitel","SC Freiburg","Mittelfeldspieler",225,3175517,-2.7E-2,-86534]
["Christoph Kramer","Borussia Mönchengladbach","Mittelfeldspieler",134,2745181,-3.1E-2,-86629]
["Maximilian Bauer","SpVgg Greuther Fürth","Abwehrspieler",274,2241772,-3.6999999999999998E-2,-86655]
["Saša Kalajdžić","VfB Stuttgart","Stürmer",-23,5658210,-1.4999999999999999E-2,-87119]
["Sebastian Polter","VfL Bochum","Stürmer",284,4613150,-1.9E-2,-88000]
["Jorge Meré","1. FC Köln","Abwehrspieler",354,4731255,-1.7999999999999999E-2,-88301]
["Munas Dabbur","TSG 1899 Hoffenheim","Stürmer",140,2041947,-4.2000000000000003E-2,-88463]
["Florian Niederlechner","FC Augsburg","Stürmer",243,4144112,-2.1000000000000001E-2,-88927]
["Lucas Alario","Bayer 04 Leverkusen","Stürmer",-5,4028242,-2.1999999999999999E-2,-89371]
["Masaya Okugawa","Arminia Bielefeld","Mittelfeldspieler",223,2961338,-2.9000000000000001E-2,-89614]
["Simon Zoller","VfL Bochum","Stürmer",431,3474602,-2.5000000000000001E-2,-90004]
["Paul Jaeckel","1. FC Union Berlin","Abwehrspieler",404,6443056,-1.4E-2,-90070]
["Luca Kilian","1. FC Köln","Abwehrspieler",209,4160455,-2.1000000000000001E-2,-91046]
["Noah Weißhaupt","SC Freiburg","Stürmer",35,2528758,-3.5000000000000003E-2,-91561]
["Hannes Wolf","Borussia Mönchengladbach","Mittelfeldspieler",193,2798754,-3.2000000000000001E-2,-91582]
["Paul Seguin","SpVgg Greuther Fürth","Mittelfeldspieler",332,3166306,-2.8000000000000001E-2,-91782]
["Kevin Stöger","1. FSV Mainz 05","Mittelfeldspieler",156,794460,-0.104,-92194]
["Mitchel Bakker","Bayer 04 Leverkusen","Abwehrspieler",685,14739206,-6.0000000000000001E-3,-92361]
["Louis Schaub","1. FC Köln","Mittelfeldspieler",240,945719,-0.09,-93200]
["Davie Selke","Hertha BSC","Stürmer",44,2882922,-3.2000000000000001E-2,-94964]
["Marcel Halstenberg","RB Leipzig","Abwehrspieler",0,3282556,-2.8000000000000001E-2,-95061]
["Kevin-Prince Boateng","Hertha BSC","Mittelfeldspieler",158,2843351,-3.3000000000000002E-2,-95568]
["Giovanni Reyna","Borussia Dortmund","Mittelfeldspieler",435,23188136,-4.0000000000000001E-3,-96606]
["Benjamin Hübner","TSG 1899 Hoffenheim","Abwehrspieler",0,3043757,-3.1E-2,-97435]
["Danny da Costa","Eintracht Frankfurt","Abwehrspieler",117,4212986,-2.3E-2,-97686]
["Timo Hübers","1. FC Köln","Abwehrspieler",62,1867379,-0.05,-97863]
["Tony Jantschke","Borussia Mönchengladbach","Abwehrspieler",123,4201871,-2.3E-2,-98011]
["Robin Hack","Arminia Bielefeld","Mittelfeldspieler",302,4695631,-2.1000000000000001E-2,-98519]
["Arne Maier","FC Augsburg","Mittelfeldspieler",130,3353379,-2.9000000000000001E-2,-99155]
["Patrick Wimmer","Arminia Bielefeld","Mittelfeldspieler",300,3055839,-3.2000000000000001E-2,-99453]
["Amos Pieper","Arminia Bielefeld","Abwehrspieler",591,8943069,-1.0999999999999999E-2,-99750]
["Maximilian Philipp","VfL Wolfsburg","Stürmer",423,9697141,-0.01,-99887]
["Bryan Lasme","Arminia Bielefeld","Stürmer",82,667571,-0.13,-100109]
["Nikolas Nartey","VfB Stuttgart","Mittelfeldspieler",80,4685402,-2.1000000000000001E-2,-100495]
["Raphael Framberger","FC Augsburg","Abwehrspieler",96,2605821,-3.7999999999999999E-2,-101703]
["Anton Stach","1. FSV Mainz 05","Mittelfeldspieler",186,2660388,-3.6999999999999998E-2,-101916]
["Tim Lemperle","1. FC Köln","Stürmer",111,1391704,-6.8000000000000005E-2,-102246]
["Cedric Teuchert","1. FC Union Berlin","Stürmer",45,1687324,-5.7000000000000002E-2,-102830]
["Ömer Faruk Beyaz","VfB Stuttgart","Mittelfeldspieler",25,1310287,-7.2999999999999995E-2,-103804]
["Dickson Abiama","SpVgg Greuther Fürth","Stürmer",135,727947,-0.125,-104133]
["Sargis Adamyan","TSG 1899 Hoffenheim","Stürmer",175,4331555,-2.4E-2,-104411]
["Kingsley Ehizibue","1. FC Köln","Abwehrspieler",287,2478707,-0.04,-104415]
["Stefan Ilsanker","Eintracht Frankfurt","Mittelfeldspieler",72,3205049,-3.2000000000000001E-2,-105317]
["Felix Uduokhai","FC Augsburg","Abwehrspieler",190,4467430,-2.3E-2,-105507]
["Janik Haberer","SC Freiburg","Mittelfeldspieler",167,2086259,-4.8000000000000001E-2,-106119]
["Reinier","Borussia Dortmund","Mittelfeldspieler",61,4100741,-2.5000000000000001E-2,-106985]
["Marco Meyerhöfer","SpVgg Greuther Fürth","Abwehrspieler",425,7072878,-1.4999999999999999E-2,-106990]
["Justin Hoogma","SpVgg Greuther Fürth","Abwehrspieler",151,823246,-0.11600000000000001,-108289]
["Roberto Massimo","VfB Stuttgart","Mittelfeldspieler",341,4296278,-2.5000000000000001E-2,-109350]
["Levin Öztunali","1. FC Union Berlin","Mittelfeldspieler",175,1891006,-5.5E-2,-109399]
["Konstantinos Stafylidis","VfL Bochum","Abwehrspieler",102,1982596,-5.2999999999999999E-2,-111186]
["Erik Thommy","VfB Stuttgart","Mittelfeldspieler",85,3050104,-3.5000000000000003E-2,-111322]
["Ilaix Moriba","RB Leipzig","Mittelfeldspieler",23,5547471,-0.02,-111604]
["Edimilson Fernandes","Arminia Bielefeld","Mittelfeldspieler",74,2778591,-3.9E-2,-111929]
["Daley Sinkgraven","Bayer 04 Leverkusen","Abwehrspieler",61,4218230,-2.5999999999999999E-2,-112813]
["Brian Brobbey","RB Leipzig","Stürmer",47,3555841,-3.1E-2,-113152]
["John Anthony Brooks","VfL Wolfsburg","Abwehrspieler",546,17442059,-6.0000000000000001E-3,-113303]
["Pascal Stenzel","VfB Stuttgart","Abwehrspieler",6,2272982,-4.8000000000000001E-2,-113843]
["Daniel Brosinski","1. FSV Mainz 05","Abwehrspieler",80,3575110,-3.1E-2,-113884]
["Ragnar Ache","Eintracht Frankfurt","Stürmer",45,2159164,-5.0999999999999997E-2,-116001]
["Timothy Tillman","SpVgg Greuther Fürth","Mittelfeldspieler",216,4801325,-2.4E-2,-116767]
["Dan-Axel Zagadou","Borussia Dortmund","Abwehrspieler",0,5032915,-2.3E-2,-117266]
["Timothy Chandler","Eintracht Frankfurt","Abwehrspieler",66,4311573,-2.7E-2,-118141]
["Admir Mehmedi","VfL Wolfsburg","Stürmer",17,632585,-0.158,-118258]
["Håvard Nielsen","SpVgg Greuther Fürth","Stürmer",162,1227510,-8.8999999999999996E-2,-119258]
["Angeliño","RB Leipzig","Mittelfeldspieler",563,27323168,-4.0000000000000001E-3,-120028]
["Felix Nmecha","VfL Wolfsburg","Mittelfeldspieler",-35,4074700,-2.9000000000000001E-2,-120512]
["Aymen Barkok","Eintracht Frankfurt","Mittelfeldspieler",28,3267990,-3.5999999999999997E-2,-122282]
["Jonas Hector","1. FC Köln","Mittelfeldspieler",845,17697278,-7.0000000000000001E-3,-122386]
["Dennis Jastrzembski","Hertha BSC","Stürmer",48,1196922,-9.4E-2,-123868]
["Nick Viergever","SpVgg Greuther Fürth","Abwehrspieler",189,4617608,-2.5999999999999999E-2,-124593]
["Kingsley Schindler","1. FC Köln","Mittelfeldspieler",25,3370759,-3.5999999999999997E-2,-125078]
["Jeremy Dudziak","SpVgg Greuther Fürth","Mittelfeldspieler",123,3214651,-3.7999999999999999E-2,-126669]
["Christopher Antwi-Adjei","VfL Bochum","Mittelfeldspieler",88,3886543,-3.3000000000000002E-2,-131203]
["Sebastiaan Bornauw","VfL Wolfsburg","Abwehrspieler",211,7096950,-1.7999999999999999E-2,-131841]
["Maxim Leitsch","VfL Bochum","Abwehrspieler",29,2283678,-5.5E-2,-133675]
["Florian Schock","VfB Stuttgart","Torhüter",0,536630,-0.20899999999999999,-141582]
["Andreas Voglsammer","1. FC Union Berlin","Stürmer",448,5083122,-2.8000000000000001E-2,-147737]
["Thomas Meunier","Borussia Dortmund","Abwehrspieler",577,11405102,-1.2999999999999999E-2,-150056]
["Dejan Ljubičić","1. FC Köln","Mittelfeldspieler",307,5307769,-2.8000000000000001E-2,-150901]
["Renato Steffen","VfL Wolfsburg","Mittelfeldspieler",366,9758675,-1.6E-2,-154451]
["Alessandro Schöpf","Arminia Bielefeld","Mittelfeldspieler",481,4962847,-0.03,-154545]
["Mark Uth","1. FC Köln","Stürmer",479,9172748,-1.7000000000000001E-2,-162576]
["Fabian Klos","Arminia Bielefeld","Stürmer",635,8748882,-1.7999999999999999E-2,-163160]
["Timo Horn","1. FC Köln","Torhüter",662,7759476,-2.1999999999999999E-2,-172912]
["Dodi Lukébakio","VfL Wolfsburg","Stürmer",272,9451564,-1.9E-2,-181454]
["Roland Sallai","SC Freiburg","Mittelfeldspieler",463,6252376,-2.8000000000000001E-2,-182937]
["Robin Zentner","1. FSV Mainz 05","Torhüter",796,8722050,-2.1000000000000001E-2,-184200]
["Jens Petter Hauge","Eintracht Frankfurt","Mittelfeldspieler",417,7246798,-2.5000000000000001E-2,-187564]
["Niklas Dorsch","FC Augsburg","Mittelfeldspieler",267,4957206,-3.7999999999999999E-2,-193282]
["Krzysztof Piątek","Hertha BSC","Stürmer",215,6130316,-3.1E-2,-197101]
["Tuta","Eintracht Frankfurt","Abwehrspieler",67,5279204,-3.6999999999999998E-2,-200495]
["Kevin Vogt","TSG 1899 Hoffenheim","Abwehrspieler",500,7891136,-2.5000000000000001E-2,-203977]
["Axel Witsel","Borussia Dortmund","Mittelfeldspieler",577,19375031,-1.0999999999999999E-2,-209206]
["Maximilian Eggestein","SC Freiburg","Mittelfeldspieler",473,8031876,-2.5999999999999999E-2,-210298]
["Sebastian Rudy","TSG 1899 Hoffenheim","Mittelfeldspieler",389,6860866,-3.1E-2,-219505]
["Jeremiah St. Juste","1. FSV Mainz 05","Abwehrspieler",486,7418270,-2.9000000000000001E-2,-221968]
["Xaver Schlager","VfL Wolfsburg","Mittelfeldspieler",321,7955793,-0.03,-242028]
["Niko Gießelmann","1. FC Union Berlin","Abwehrspieler",791,11605163,-2.1000000000000001E-2,-249383]
["Anderson Lucoqui","1. FSV Mainz 05","Abwehrspieler",398,6469782,-3.7999999999999999E-2,-253349]
["Ridle Baku","VfL Wolfsburg","Mittelfeldspieler",695,24882972,-0.01,-260557]
["Manuel Gulde","SC Freiburg","Abwehrspieler",445,6216088,-4.2000000000000003E-2,-274143]
["Almamy Touré","Eintracht Frankfurt","Abwehrspieler",50,5181316,-0.05,-275137]
["Ondrej Duda","1. FC Köln","Mittelfeldspieler",373,6913145,-3.9E-2,-277313]
["Piero Hincapié","Bayer 04 Leverkusen","Abwehrspieler",146,6078788,-4.3999999999999997E-2,-278341]
["Nico Schulz","Borussia Dortmund","Abwehrspieler",187,7267447,-3.7999999999999999E-2,-286658]
["Mark Flekken","SC Freiburg","Torhüter",893,10243302,-2.8000000000000001E-2,-296821]
["Christopher Lenz","Eintracht Frankfurt","Abwehrspieler",342,4933533,-5.7000000000000002E-2,-298093]
["Wout Weghorst","VfL Wolfsburg","Stürmer",739,32896826,-8.9999999999999993E-3,-298634]
["Nils Petersen","SC Freiburg","Stürmer",194,4872415,-5.8999999999999997E-2,-306508]
["Lukas Kübler","SC Freiburg","Abwehrspieler",664,8028252,-3.6999999999999998E-2,-306542]
["Luca Waldschmidt","VfL Wolfsburg","Stürmer",308,10280849,-2.9000000000000001E-2,-306866]
["Rafael Czichos","1. FC Köln","Abwehrspieler",480,7891546,-3.7999999999999999E-2,-312037]
["Sebastian Andersson","1. FC Köln","Stürmer",326,8916695,-3.4000000000000002E-2,-315781]
["Marvin Friedrich","1. FC Union Berlin","Abwehrspieler",524,14858534,-2.1000000000000001E-2,-320051]
["Christopher Trimmel","1. FC Union Berlin","Abwehrspieler",393,11735566,-2.7E-2,-327412]
["Alphonso Davies","FC Bayern München","Abwehrspieler",1184,31875876,-0.01,-330181]
["Jacob Bruun Larsen","TSG 1899 Hoffenheim","Mittelfeldspieler",523,10350385,-3.2000000000000001E-2,-336950]
["Pavel Kadeřábek","TSG 1899 Hoffenheim","Abwehrspieler",351,8026856,-4.1000000000000002E-2,-345626]
["Raphaël Guerreiro","Borussia Dortmund","Abwehrspieler",966,31131240,-1.2E-2,-394055]
["Florian Kainz","1. FC Köln","Mittelfeldspieler",844,13094149,-0.03,-398795]
["Anthony Modeste","1. FC Köln","Stürmer",752,14171053,-2.9000000000000001E-2,-424564]
["Amadou Haidara","RB Leipzig","Mittelfeldspieler",864,16590297,-2.5999999999999999E-2,-442758]
["Ellyes Skhiri","1. FC Köln","Mittelfeldspieler",958,11741340,-3.7999999999999999E-2,-460203]
["Charles Aránguiz","Bayer 04 Leverkusen","Mittelfeldspieler",568,12177996,-4.3999999999999997E-2,-561452]
["Lukas Klostermann","RB Leipzig","Abwehrspieler",698,16637130,-3.3000000000000002E-2,-569424]
["Erling Braut Haaland","Borussia Dortmund","Stürmer",1606,58371229,-1.2E-2,-683376]

{"sheet":"Marktwertgewinner","index":2,"n_rows":195,"n_cols":7,"rows_kept":195,"cut":false,"hidden":false,"merged":[]}
["Spieler","Verein","Position","Punkte Gesamt","Marktwert","Wachstum","Differenz"]
["Linus Gechter","Hertha BSC","Abwehrspieler",141,1914204,0.34300000000000003,489079]
["Kiliann Sildillia","SC Freiburg","Abwehrspieler",63,3557765,0.154,474279]
["Jonathan Burkardt","1. FSV Mainz 05","Stürmer",758,8882540,5.0999999999999997E-2,432177]
["Karim Onisiwo","1. FSV Mainz 05","Stürmer",566,5214397,8.7999999999999995E-2,422748]
["Kevin Möhwald","1. FC Union Berlin","Mittelfeldspieler",39,3648974,0.11700000000000001,382002]
["Janni Serra","Arminia Bielefeld","Stürmer",37,1617862,0.30099999999999999,374176]
["Peter Pekarík","Hertha BSC","Abwehrspieler",273,3774008,0.109,369917]
["Dominik Kohr","1. FSV Mainz 05","Mittelfeldspieler",425,5299574,7.4999999999999997E-2,369009]
["Vasilios Lampropoulos","VfL Bochum","Abwehrspieler",329,4706076,8.3000000000000004E-2,361358]
["Aarón","1. FSV Mainz 05","Abwehrspieler",332,1643103,0.26900000000000002,348344]
["Kevin Akpoguma","TSG 1899 Hoffenheim","Abwehrspieler",487,9833929,3.5999999999999997E-2,342051]
["Jacob Laursen","Arminia Bielefeld","Abwehrspieler",495,4975382,7.3999999999999996E-2,340719]
["Miloš Pantović","VfL Bochum","Mittelfeldspieler",167,3180080,0.115,327943]
["Alfreð Finnbogason","FC Augsburg","Stürmer",5,3034885,0.12,326016]
["Genki Haraguchi","1. FC Union Berlin","Mittelfeldspieler",408,5123997,6.8000000000000005E-2,325722]
["Andi Zeqiri","FC Augsburg","Stürmer",249,6338510,5.2999999999999999E-2,317253]
["Alexander Hack","1. FSV Mainz 05","Abwehrspieler",434,4839556,7.0000000000000007E-2,315548]
["Makoto Hasebe","Eintracht Frankfurt","Abwehrspieler",36,3961354,8.5999999999999993E-2,314028]
["Timo Baumgartl","1. FC Union Berlin","Abwehrspieler",301,6606108,4.9000000000000002E-2,308027]
["Jurgen Ekkelenkamp","Hertha BSC","Mittelfeldspieler",294,6838503,4.7E-2,304044]
["Stefan Posch","TSG 1899 Hoffenheim","Abwehrspieler",487,6971887,4.4999999999999998E-2,302827]
["Robert Andrich","Bayer 04 Leverkusen","Mittelfeldspieler",230,6760398,4.5999999999999999E-2,298587]
["Daniel Caligiuri","FC Augsburg","Mittelfeldspieler",565,8201403,3.7999999999999999E-2,298501]
["Exequiel Palacios","Bayer 04 Leverkusen","Mittelfeldspieler",254,8474100,3.5999999999999997E-2,293874]
["Daichi Kamada","Eintracht Frankfurt","Mittelfeldspieler",250,9271216,3.3000000000000002E-2,292453]
["Fabian Kunze","Arminia Bielefeld","Mittelfeldspieler",248,1656749,0.214,291539]
["Tobias Strobl","FC Augsburg","Mittelfeldspieler",90,1399635,0.26100000000000001,289456]
["Konrad Laimer","RB Leipzig","Mittelfeldspieler",242,6684428,4.2999999999999997E-2,275875]
["Niklas Stark","Hertha BSC","Abwehrspieler",430,7434155,3.7999999999999999E-2,272822]
["Josip Stanišić","FC Bayern München","Abwehrspieler",460,8801824,3.2000000000000001E-2,270676]
["Taiwo Awoniyi","1. FC Union Berlin","Stürmer",928,18597989,1.4E-2,260855]
["Cristian Gamboa","VfL Bochum","Abwehrspieler",187,3378759,8.3000000000000004E-2,260002]
["Mohamed Simakan","RB Leipzig","Abwehrspieler",789,16797573,1.4999999999999999E-2,256035]
["Benjamin Pavard","FC Bayern München","Abwehrspieler",186,15963508,1.6E-2,251855]
["Maximilian Mittelstädt","Hertha BSC","Abwehrspieler",314,5399355,4.9000000000000002E-2,251100]
["Vladimír Darida","Hertha BSC","Mittelfeldspieler",323,6046474,4.2999999999999997E-2,249808]
["Gonçalo Paciência","Eintracht Frankfurt","Stürmer",152,5234475,0.05,249685]
["Santiago Ascacibar","Hertha BSC","Mittelfeldspieler",281,2557883,0.108,249261]
["Jean-Paul Boëtius","1. FSV Mainz 05","Mittelfeldspieler",476,5822484,4.4999999999999998E-2,248562]
["Ihlas Bebou","TSG 1899 Hoffenheim","Stürmer",367,11383859,2.1999999999999999E-2,245009]
["Kristijan Jakić","Eintracht Frankfurt","Mittelfeldspieler",257,6571091,3.7999999999999999E-2,240773]
["Jeffrey Gouweleeuw","FC Augsburg","Abwehrspieler",364,6256055,0.04,239886]
["André Hahn","FC Augsburg","Stürmer",341,4622339,5.3999999999999999E-2,238256]
["Fabian Bredlow","VfB Stuttgart","Torhüter",92,4428107,5.6000000000000001E-2,233806]
["Kingsley Coman","FC Bayern München","Mittelfeldspieler",270,23291574,0.01,231769]
["Woo-yeong Jeong","SC Freiburg","Mittelfeldspieler",734,9642592,2.4E-2,228449]
["Orel Mangala","VfB Stuttgart","Mittelfeldspieler",226,7427768,3.1E-2,226373]
["Silas","VfB Stuttgart","Mittelfeldspieler",0,9932247,2.3E-2,223897]
["Jonathan Schmid","SC Freiburg","Abwehrspieler",162,6209881,3.6999999999999998E-2,223643]
["Nadiem Amiri","Bayer 04 Leverkusen","Mittelfeldspieler",326,7816757,2.9000000000000001E-2,218801]
["Corentin Tolisso","FC Bayern München","Mittelfeldspieler",49,2548458,9.2999999999999999E-2,217659]
["Daniel Didavi","VfB Stuttgart","Mittelfeldspieler",91,988683,0.27800000000000002,215346]
["Stefan Bell","1. FSV Mainz 05","Abwehrspieler",829,8685513,2.5000000000000001E-2,213566]
["Lukas Nmecha","VfL Wolfsburg","Stürmer",415,12236517,1.7999999999999999E-2,213489]
["Sebastian Vasiliadis","Arminia Bielefeld","Mittelfeldspieler",0,3451305,6.6000000000000003E-2,212867]
["Mateu Morey","Borussia Dortmund","Abwehrspieler",0,3446225,6.3E-2,202819]
["Steffen Tigges","Borussia Dortmund","Stürmer",51,705930,0.40100000000000002,202225]
["Marvin Plattenhardt","Hertha BSC","Abwehrspieler",358,5189597,0.04,199137]
["Mahmoud Dahoud","Borussia Dortmund","Mittelfeldspieler",411,14018572,1.4E-2,192837]
["Alassane Pléa","Borussia Mönchengladbach","Stürmer",436,15734342,1.2E-2,191624]
["Jordan Beyer","Borussia Mönchengladbach","Abwehrspieler",486,11846667,1.6E-2,187865]
["Keven Schlotterbeck","SC Freiburg","Abwehrspieler",0,3130465,6.3E-2,186477]
["Marin Pongračić","Borussia Dortmund","Abwehrspieler",274,6172476,3.1E-2,185535]
["Maxence Lacroix","VfL Wolfsburg","Abwehrspieler",699,23552924,8.0000000000000002E-3,182927]
["Dominik Szoboszlai","RB Leipzig","Mittelfeldspieler",999,21312088,8.9999999999999993E-3,182546]
["Dennis Geiger","TSG 1899 Hoffenheim","Mittelfeldspieler",367,6470370,2.9000000000000001E-2,180120]
["Myziane Maolida","Hertha BSC","Stürmer",200,6776587,2.7E-2,175889]
["Aster Vranckx","VfL Wolfsburg","Mittelfeldspieler",46,803174,0.27800000000000002,174777]
["Rani Khedira","1. FC Union Berlin","Mittelfeldspieler",522,6765661,2.5999999999999999E-2,170403]
["Atakan Karazor","VfB Stuttgart","Mittelfeldspieler",388,8987092,1.9E-2,169069]
["Marcel Sabitzer","FC Bayern München","Mittelfeldspieler",393,21464183,8.0000000000000002E-3,168678]
["Marco Richter","Hertha BSC","Mittelfeldspieler",421,5244009,3.3000000000000002E-2,166085]
["Sergio Córdova","FC Augsburg","Stürmer",-30,2807324,6.3E-2,165218]
["Breel Embolo","Borussia Mönchengladbach","Stürmer",450,15579169,1.0999999999999999E-2,164625]
["Edmond Tapsoba","Bayer 04 Leverkusen","Abwehrspieler",1,12438615,1.2999999999999999E-2,164228]
["Stefan Lainer","Borussia Mönchengladbach","Abwehrspieler",103,3014786,5.7000000000000002E-2,162409]
["Ramy Bensebaini","Borussia Mönchengladbach","Abwehrspieler",162,8278771,0.02,161817]
["Suat Serdar","Hertha BSC","Mittelfeldspieler",672,10285997,1.4999999999999999E-2,156455]
["Rafael Santos Borré","Eintracht Frankfurt","Stürmer",295,9430375,1.7000000000000001E-2,154602]
["Wahid Faghir","VfB Stuttgart","Stürmer",-2,972774,0.189,154600]
["Paulinho","Bayer 04 Leverkusen","Mittelfeldspieler",307,7480398,2.1000000000000001E-2,151394]
["Emre Can","Borussia Dortmund","Abwehrspieler",403,13567962,1.0999999999999999E-2,147987]
["Marc Oliver Kempf","VfB Stuttgart","Abwehrspieler",922,21559430,7.0000000000000001E-3,143643]
["Sebastian Rode","Eintracht Frankfurt","Mittelfeldspieler",0,5819771,2.5000000000000001E-2,143089]
["Andreas Luthe","1. FC Union Berlin","Torhüter",724,8880564,1.6E-2,142516]
["Julian Brandt","Borussia Dortmund","Mittelfeldspieler",734,16990163,8.0000000000000002E-3,142202]
["Denis Zakaria","Borussia Mönchengladbach","Mittelfeldspieler",787,18728951,8.0000000000000002E-3,139911]
["Silvan Widmer","1. FSV Mainz 05","Abwehrspieler",672,7955301,1.7999999999999999E-2,138427]
["Moussa Niakhaté","1. FSV Mainz 05","Abwehrspieler",569,12206123,1.0999999999999999E-2,136189]
["Dedryck Boyata","Hertha BSC","Abwehrspieler",466,10080500,1.4E-2,136091]
["Carlos Gruezo","FC Augsburg","Mittelfeldspieler",81,4014049,3.5000000000000003E-2,136008]
["Leandro Barreiro","1. FSV Mainz 05","Mittelfeldspieler",526,7208538,1.9E-2,135576]
["Anthony Losilla","VfL Bochum","Mittelfeldspieler",625,7896151,1.7000000000000001E-2,133832]
["Jesper Lindstrøm","Eintracht Frankfurt","Mittelfeldspieler",324,8371594,1.6E-2,133724]
["Matthias Ginter","Borussia Mönchengladbach","Abwehrspieler",638,24146789,5.0000000000000001E-3,128909]
["Dayot Upamecano","FC Bayern München","Abwehrspieler",1056,31589233,4.0000000000000001E-3,128869]
["Konstantinos Mavropanos","VfB Stuttgart","Abwehrspieler",1141,19997030,6.0000000000000001E-3,128151]
["Tomas Ostrak","1. FC Köln","Mittelfeldspieler",88,624969,0.248,124039]
["Eduard Löwen","VfL Bochum","Mittelfeldspieler",338,5406879,2.3E-2,123963]
["Martin Hinteregger","Eintracht Frankfurt","Abwehrspieler",665,20452522,6.0000000000000001E-3,122846]
["Stefan Ortega Moreno","Arminia Bielefeld","Torhüter",745,10633072,1.0999999999999999E-2,116961]
["Lars Stindl","Borussia Mönchengladbach","Mittelfeldspieler",536,21872541,5.0000000000000001E-3,116931]
["Niklas Tauer","1. FSV Mainz 05","Stürmer",108,667518,0.21,115800]
["Nicolas Höfler","SC Freiburg","Mittelfeldspieler",668,12767695,8.9999999999999993E-3,115499]
["Manuel Akanji","Borussia Dortmund","Abwehrspieler",898,24689538,5.0000000000000001E-3,115068]
["Alexander Schwolow","Hertha BSC","Torhüter",444,5478068,2.1000000000000001E-2,114068]
["Elvis Rexhbeçaj","VfL Bochum","Mittelfeldspieler",414,6110811,1.7999999999999999E-2,109567]
["Thorgan Hazard","Borussia Dortmund","Mittelfeldspieler",415,14637615,7.0000000000000001E-3,106880]
["Evan N'Dicka","Eintracht Frankfurt","Abwehrspieler",490,13463530,8.0000000000000002E-3,105463]
["Serge Gnabry","FC Bayern München","Mittelfeldspieler",1387,45052522,2E-3,103577]
["Kerem Demirbay","Bayer 04 Leverkusen","Mittelfeldspieler",979,23263078,4.0000000000000001E-3,102991]
["Willi Orbán","RB Leipzig","Abwehrspieler",897,24500238,4.0000000000000001E-3,102334]
["Danilo Soares","VfL Bochum","Abwehrspieler",610,7846476,1.2999999999999999E-2,102050]
["Jude Bellingham","Borussia Dortmund","Mittelfeldspieler",1134,31290931,3.0000000000000001E-3,97502]
["Manu Koné","Borussia Mönchengladbach","Mittelfeldspieler",296,11665945,8.0000000000000002E-3,96988]
["André Silva","RB Leipzig","Stürmer",527,38128115,3.0000000000000001E-3,96919]
["Reece Oxford","FC Augsburg","Abwehrspieler",795,10323533,8.9999999999999993E-3,95634]
["Donyell Malen","Borussia Dortmund","Stürmer",581,26064377,4.0000000000000001E-3,94234]
["Leroy Sané","FC Bayern München","Mittelfeldspieler",1230,35684784,3.0000000000000001E-3,93704]
["Marco Reus","Borussia Dortmund","Mittelfeldspieler",1244,39913612,2E-3,93414]
["Filip Kostić","Eintracht Frankfurt","Mittelfeldspieler",763,29931632,3.0000000000000001E-3,92301]
["Jérôme Roussillon","VfL Wolfsburg","Abwehrspieler",423,10668703,8.9999999999999993E-3,91817]
["Erik Durm","Eintracht Frankfurt","Abwehrspieler",316,6337041,1.4999999999999999E-2,91559]
["Marcus Thuram","Borussia Mönchengladbach","Stürmer",3,12864312,7.0000000000000001E-3,90934]
["Manuel Riemann","VfL Bochum","Torhüter",814,9728327,8.9999999999999993E-3,90006]
["Hans Nunoo Sarpei","SpVgg Greuther Fürth","Mittelfeldspieler",66,590801,0.17499999999999999,87947]
["Luca Netz","Borussia Mönchengladbach","Abwehrspieler",285,9607396,8.9999999999999993E-3,87284]
["Jonas Hofmann","Borussia Mönchengladbach","Mittelfeldspieler",950,25491937,3.0000000000000001E-3,83271]
["Joe Scally","Borussia Mönchengladbach","Abwehrspieler",740,15472201,5.0000000000000001E-3,82451]
["Lucas Höler","SC Freiburg","Stürmer",976,15257750,5.0000000000000001E-3,81849]
["Patrik Schick","Bayer 04 Leverkusen","Stürmer",1054,32502376,3.0000000000000001E-3,81667]
["Christopher Nkunku","RB Leipzig","Mittelfeldspieler",1293,33210081,2E-3,80233]
["Jae-sung Lee","1. FSV Mainz 05","Mittelfeldspieler",213,2175052,3.6999999999999998E-2,76714]
["Salih Özcan","1. FC Köln","Mittelfeldspieler",192,5253729,1.4E-2,74601]
["Lucas Hernández","FC Bayern München","Abwehrspieler",660,22631764,3.0000000000000001E-3,74394]
["Jamal Musiala","FC Bayern München","Mittelfeldspieler",853,25150634,3.0000000000000001E-3,74282]
["Nico Schlotterbeck","SC Freiburg","Abwehrspieler",1148,20600371,4.0000000000000001E-3,71850]
["Robin Knoche","1. FC Union Berlin","Abwehrspieler",756,15830094,4.0000000000000001E-3,70257]
["Thomas Müller","FC Bayern München","Mittelfeldspieler",1447,49160948,1E-3,69274]
["Manuel Neuer","FC Bayern München","Torhüter",945,23325409,3.0000000000000001E-3,68483]
["Andrej Kramarić","TSG 1899 Hoffenheim","Stürmer",1291,40437231,2E-3,67510]
["Florian Neuhaus","Borussia Mönchengladbach","Mittelfeldspieler",314,18877922,4.0000000000000001E-3,66623]
["Nico Elvedi","Borussia Mönchengladbach","Abwehrspieler",665,19623955,3.0000000000000001E-3,64036]
["Robert Gumny","FC Augsburg","Abwehrspieler",300,3821680,1.7000000000000001E-2,63632]
["Amine Adli","Bayer 04 Leverkusen","Stürmer",223,10225188,6.0000000000000001E-3,63165]
["Emil Forsberg","RB Leipzig","Mittelfeldspieler",993,26053407,2E-3,62813]
["Jeremie Frimpong","Bayer 04 Leverkusen","Abwehrspieler",864,17836181,3.0000000000000001E-3,62173]
["Dani Olmo","RB Leipzig","Mittelfeldspieler",63,23574269,3.0000000000000001E-3,61483]
["Oliver Baumann","TSG 1899 Hoffenheim","Torhüter",763,10080792,6.0000000000000001E-3,61361]
["Niklas Süle","FC Bayern München","Abwehrspieler",1081,25727064,2E-3,61127]
["David Raum","TSG 1899 Hoffenheim","Abwehrspieler",819,14967434,4.0000000000000001E-3,59828]
["Jonathan Tah","Bayer 04 Leverkusen","Abwehrspieler",876,20705634,3.0000000000000001E-3,58711]
["Diadié Samassékou","TSG 1899 Hoffenheim","Mittelfeldspieler",341,8437118,7.0000000000000001E-3,58173]
["Mats Hummels","Borussia Dortmund","Abwehrspieler",695,28963544,2E-3,56966]
["Tyler Adams","RB Leipzig","Mittelfeldspieler",322,10963869,5.0000000000000001E-3,56888]
["Philipp Lienhart","SC Freiburg","Abwehrspieler",1148,19134450,3.0000000000000001E-3,55910]
["Gregor Kobel","Borussia Dortmund","Torhüter",686,14356603,4.0000000000000001E-3,55498]
["Kevin Kampl","RB Leipzig","Mittelfeldspieler",570,15103206,4.0000000000000001E-3,55270]
["Paulo Otávio","VfL Wolfsburg","Abwehrspieler",22,6895953,8.0000000000000002E-3,53688]
["Florian Wirtz","Bayer 04 Leverkusen","Mittelfeldspieler",1243,33402284,2E-3,51409]
["Max Kruse","1. FC Union Berlin","Stürmer",864,29793652,2E-3,51339]
["Kevin Mbabu","VfL Wolfsburg","Abwehrspieler",650,14943535,3.0000000000000001E-3,50664]
["Lukáš Hrádecký","Bayer 04 Leverkusen","Torhüter",952,18003670,3.0000000000000001E-3,50606]
["Julian Ryerson","1. FC Union Berlin","Abwehrspieler",318,5801484,8.9999999999999993E-3,50499]
["Christian Günter","SC Freiburg","Abwehrspieler",886,19564412,3.0000000000000001E-3,50383]
["Josuha Guilavogui","VfL Wolfsburg","Mittelfeldspieler",498,6974077,7.0000000000000001E-3,49390]
["Felix Passlack","Borussia Dortmund","Abwehrspieler",124,1004835,5.0999999999999997E-2,48932]
["Marius Wolf","Borussia Dortmund","Mittelfeldspieler",272,4620154,0.01,44812]
["Joško Gvardiol","RB Leipzig","Abwehrspieler",772,15738823,3.0000000000000001E-3,44678]
["Timothy Fosu-Mensah","Bayer 04 Leverkusen","Abwehrspieler",0,910472,5.0999999999999997E-2,44327]
["Florian Grillitsch","TSG 1899 Hoffenheim","Mittelfeldspieler",437,11327462,4.0000000000000001E-3,43743]
["Djibril Sow","Eintracht Frankfurt","Mittelfeldspieler",614,13527397,3.0000000000000001E-3,43230]
["Márton Dárdai","Hertha BSC","Abwehrspieler",372,4046172,0.01,40427]
["Cédric Brunner","Arminia Bielefeld","Abwehrspieler",473,6288703,6.0000000000000001E-3,37223]
["Sheraldo Becker","1. FC Union Berlin","Stürmer",192,5426175,7.0000000000000001E-3,35869]
["Chris Richards","TSG 1899 Hoffenheim","Abwehrspieler",583,12035317,3.0000000000000001E-3,34814]
["Omar Richards","FC Bayern München","Abwehrspieler",279,3496588,0.01,33125]
["Vincenzo Grifo","SC Freiburg","Mittelfeldspieler",987,25954661,1E-3,28415]
["Odilon Kossounou","Bayer 04 Leverkusen","Abwehrspieler",649,16418070,2E-3,27728]
["Tanguy Coulibaly","VfB Stuttgart","Mittelfeldspieler",232,7929806,3.0000000000000001E-3,23536]
["Benno Schmitz","1. FC Köln","Abwehrspieler",678,12727451,2E-3,22336]
["Moussa Diaby","Bayer 04 Leverkusen","Stürmer",998,33616513,1E-3,20414]
["Joshua Kimmich","FC Bayern München","Mittelfeldspieler",1845,54129912,0,20181]
["Kevin Trapp","Eintracht Frankfurt","Torhüter",557,11459674,2E-3,19204]
["Borna Sosa","VfB Stuttgart","Abwehrspieler",689,17573762,1E-3,16516]
["Nordi Mukiele","RB Leipzig","Abwehrspieler",455,12154778,1E-3,15328]
["Robert Lewandowski","FC Bayern München","Stürmer",1802,63069004,0,14965]
["Maximilian Arnold","VfL Wolfsburg","Mittelfeldspieler",831,26899679,1E-3,14335]
["Yann Sommer","Borussia Mönchengladbach","Torhüter",596,12949659,1E-3,13972]
["Marius Funk","SpVgg Greuther Fürth","Torhüter",180,6350756,2E-3,12189]
["Armel Bella-Kotchap","VfL Bochum","Abwehrspieler",342,6848242,1E-3,8628]
["Chris Führich","VfB Stuttgart","Mittelfeldspieler",198,7244634,1E-3,5142]
["Youssoufa Moukoko","Borussia Dortmund","Stürmer",38,5543609,1E-3,3157]
["Leon Goretzka","FC Bayern München","Mittelfeldspieler",1194,43274279,0,2018]

{"sheet":"Marktwertverlierer","index":3,"n_rows":185,"n_cols":7,"rows_kept":185,"cut":false,"hidden":false,"merged":[]}
["Spieler","Verein","Position","Punkte Gesamt","Marktwert","Wachstum","Differenz"]
["Erling Braut Haaland","Borussia Dortmund","Stürmer",1606,58371229,-1.2E-2,-683376]
["Lukas Klostermann","RB Leipzig","Abwehrspieler",698,16637130,-3.3000000000000002E-2,-569424]
["Charles Aránguiz","Bayer 04 Leverkusen","Mittelfeldspieler",568,12177996,-4.3999999999999997E-2,-561452]
["Ellyes Skhiri","1. FC Köln","Mittelfeldspieler",958,11741340,-3.7999999999999999E-2,-460203]
["Amadou Haidara","RB Leipzig","Mittelfeldspieler",864,16590297,-2.5999999999999999E-2,-442758]
["Anthony Modeste","1. FC Köln","Stürmer",752,14171053,-2.9000000000000001E-2,-424564]
["Florian Kainz","1. FC Köln","Mittelfeldspieler",844,13094149,-0.03,-398795]
["Raphaël Guerreiro","Borussia Dortmund","Abwehrspieler",966,31131240,-1.2E-2,-394055]
["Pavel Kadeřábek","TSG 1899 Hoffenheim","Abwehrspieler",351,8026856,-4.1000000000000002E-2,-345626]
["Jacob Bruun Larsen","TSG 1899 Hoffenheim","Mittelfeldspieler",523,10350385,-3.2000000000000001E-2,-336950]
["Alphonso Davies","FC Bayern München","Abwehrspieler",1184,31875876,-0.01,-330181]
["Christopher Trimmel","1. FC Union Berlin","Abwehrspieler",393,11735566,-2.7E-2,-327412]
["Marvin Friedrich","1. FC Union Berlin","Abwehrspieler",524,14858534,-2.1000000000000001E-2,-320051]
["Sebastian Andersson","1. FC Köln","Stürmer",326,8916695,-3.4000000000000002E-2,-315781]
["Rafael Czichos","1. FC Köln","Abwehrspieler",480,7891546,-3.7999999999999999E-2,-312037]
["Luca Waldschmidt","VfL Wolfsburg","Stürmer",308,10280849,-2.9000000000000001E-2,-306866]
["Lukas Kübler","SC Freiburg","Abwehrspieler",664,8028252,-3.6999999999999998E-2,-306542]
["Nils Petersen","SC Freiburg","Stürmer",194,4872415,-5.8999999999999997E-2,-306508]
["Wout Weghorst","VfL Wolfsburg","Stürmer",739,32896826,-8.9999999999999993E-3,-298634]
["Christopher Lenz","Eintracht Frankfurt","Abwehrspieler",342,4933533,-5.7000000000000002E-2,-298093]
["Mark Flekken","SC Freiburg","Torhüter",893,10243302,-2.8000000000000001E-2,-296821]
["Nico Schulz","Borussia Dortmund","Abwehrspieler",187,7267447,-3.7999999999999999E-2,-286658]
["Piero Hincapié","Bayer 04 Leverkusen","Abwehrspieler",146,6078788,-4.3999999999999997E-2,-278341]
["Ondrej Duda","1. FC Köln","Mittelfeldspieler",373,6913145,-3.9E-2,-277313]
["Almamy Touré","Eintracht Frankfurt","Abwehrspieler",50,5181316,-0.05,-275137]
["Manuel Gulde","SC Freiburg","Abwehrspieler",445,6216088,-4.2000000000000003E-2,-274143]
["Ridle Baku","VfL Wolfsburg","Mittelfeldspieler",695,24882972,-0.01,-260557]
["Anderson Lucoqui","1. FSV Mainz 05","Abwehrspieler",398,6469782,-3.7999999999999999E-2,-253349]
["Niko Gießelmann","1. FC Union Berlin","Abwehrspieler",791,11605163,-2.1000000000000001E-2,-249383]
["Xaver Schlager","VfL Wolfsburg","Mittelfeldspieler",321,7955793,-0.03,-242028]
["Jeremiah St. Juste","1. FSV Mainz 05","Abwehrspieler",486,7418270,-2.9000000000000001E-2,-221968]
["Sebastian Rudy","TSG 1899 Hoffenheim","Mittelfeldspieler",389,6860866,-3.1E-2,-219505]
["Maximilian Eggestein","SC Freiburg","Mittelfeldspieler",473,8031876,-2.5999999999999999E-2,-210298]
["Axel Witsel","Borussia Dortmund","Mittelfeldspieler",577,19375031,-1.0999999999999999E-2,-209206]
["Kevin Vogt","TSG 1899 Hoffenheim","Abwehrspieler",500,7891136,-2.5000000000000001E-2,-203977]
["Tuta","Eintracht Frankfurt","Abwehrspieler",67,5279204,-3.6999999999999998E-2,-200495]
["Krzysztof Piątek","Hertha BSC","Stürmer",215,6130316,-3.1E-2,-197101]
["Niklas Dorsch","FC Augsburg","Mittelfeldspieler",267,4957206,-3.7999999999999999E-2,-193282]
["Jens Petter Hauge","Eintracht Frankfurt","Mittelfeldspieler",417,7246798,-2.5000000000000001E-2,-187564]
["Robin Zentner","1. FSV Mainz 05","Torhüter",796,8722050,-2.1000000000000001E-2,-184200]
["Roland Sallai","SC Freiburg","Mittelfeldspieler",463,6252376,-2.8000000000000001E-2,-182937]
["Dodi Lukébakio","VfL Wolfsburg","Stürmer",272,9451564,-1.9E-2,-181454]
["Timo Horn","1. FC Köln","Torhüter",662,7759476,-2.1999999999999999E-2,-172912]
["Fabian Klos","Arminia Bielefeld","Stürmer",635,8748882,-1.7999999999999999E-2,-163160]
["Mark Uth","1. FC Köln","Stürmer",479,9172748,-1.7000000000000001E-2,-162576]
["Alessandro Schöpf","Arminia Bielefeld","Mittelfeldspieler",481,4962847,-0.03,-154545]
["Renato Steffen","VfL Wolfsburg","Mittelfeldspieler",366,9758675,-1.6E-2,-154451]
["Dejan Ljubičić","1. FC Köln","Mittelfeldspieler",307,5307769,-2.8000000000000001E-2,-150901]
["Thomas Meunier","Borussia Dortmund","Abwehrspieler",577,11405102,-1.2999999999999999E-2,-150056]
["Andreas Voglsammer","1. FC Union Berlin","Stürmer",448,5083122,-2.8000000000000001E-2,-147737]
["Florian Schock","VfB Stuttgart","Torhüter",0,536630,-0.20899999999999999,-141582]
["Maxim Leitsch","VfL Bochum","Abwehrspieler",29,2283678,-5.5E-2,-133675]
["Sebastiaan Bornauw","VfL Wolfsburg","Abwehrspieler",211,7096950,-1.7999999999999999E-2,-131841]
["Christopher Antwi-Adjei","VfL Bochum","Mittelfeldspieler",88,3886543,-3.3000000000000002E-2,-131203]
["Jeremy Dudziak","SpVgg Greuther Fürth","Mittelfeldspieler",123,3214651,-3.7999999999999999E-2,-126669]
["Kingsley Schindler","1. FC Köln","Mittelfeldspieler",25,3370759,-3.5999999999999997E-2,-125078]
["Nick Viergever","SpVgg Greuther Fürth","Abwehrspieler",189,4617608,-2.5999999999999999E-2,-124593]
["Dennis Jastrzembski","Hertha BSC","Stürmer",48,1196922,-9.4E-2,-123868]
["Jonas Hector","1. FC Köln","Mittelfeldspieler",845,17697278,-7.0000000000000001E-3,-122386]
["Aymen Barkok","Eintracht Frankfurt","Mittelfeldspieler",28,3267990,-3.5999999999999997E-2,-122282]
["Felix Nmecha","VfL Wolfsburg","Mittelfeldspieler",-35,4074700,-2.9000000000000001E-2,-120512]
["Angeliño","RB Leipzig","Mittelfeldspieler",563,27323168,-4.0000000000000001E-3,-120028]
["Håvard Nielsen","SpVgg Greuther Fürth","Stürmer",162,1227510,-8.8999999999999996E-2,-119258]
["Admir Mehmedi","VfL Wolfsburg","Stürmer",17,632585,-0.158,-118258]
["Timothy Chandler","Eintracht Frankfurt","Abwehrspieler",66,4311573,-2.7E-2,-118141]
["Dan-Axel Zagadou","Borussia Dortmund","Abwehrspieler",0,5032915,-2.3E-2,-117266]
["Timothy Tillman","SpVgg Greuther Fürth","Mittelfeldspieler",216,4801325,-2.4E-2,-116767]
["Ragnar Ache","Eintracht Frankfurt","Stürmer",45,2159164,-5.0999999999999997E-2,-116001]
["Daniel Brosinski","1. FSV Mainz 05","Abwehrspieler",80,3575110,-3.1E-2,-113884]
["Pascal Stenzel","VfB Stuttgart","Abwehrspieler",6,2272982,-4.8000000000000001E-2,-113843]
["John Anthony Brooks","VfL Wolfsburg","Abwehrspieler",546,17442059,-6.0000000000000001E-3,-113303]
["Brian Brobbey","RB Leipzig","Stürmer",47,3555841,-3.1E-2,-113152]
["Daley Sinkgraven","Bayer 04 Leverkusen","Abwehrspieler",61,4218230,-2.5999999999999999E-2,-112813]
["Edimilson Fernandes","Arminia Bielefeld","Mittelfeldspieler",74,2778591,-3.9E-2,-111929]
["Ilaix Moriba","RB Leipzig","Mittelfeldspieler",23,5547471,-0.02,-111604]
["Erik Thommy","VfB Stuttgart","Mittelfeldspieler",85,3050104,-3.5000000000000003E-2,-111322]
["Konstantinos Stafylidis","VfL Bochum","Abwehrspieler",102,1982596,-5.2999999999999999E-2,-111186]
["Levin Öztunali","1. FC Union Berlin","Mittelfeldspieler",175,1891006,-5.5E-2,-109399]
["Roberto Massimo","VfB Stuttgart","Mittelfeldspieler",341,4296278,-2.5000000000000001E-2,-109350]
["Justin Hoogma","SpVgg Greuther Fürth","Abwehrspieler",151,823246,-0.11600000000000001,-108289]
["Marco Meyerhöfer","SpVgg Greuther Fürth","Abwehrspieler",425,7072878,-1.4999999999999999E-2,-106990]
["Reinier","Borussia Dortmund","Mittelfeldspieler",61,4100741,-2.5000000000000001E-2,-106985]
["Janik Haberer","SC Freiburg","Mittelfeldspieler",167,2086259,-4.8000000000000001E-2,-106119]
["Felix Uduokhai","FC Augsburg","Abwehrspieler",190,4467430,-2.3E-2,-105507]
["Stefan Ilsanker","Eintracht Frankfurt","Mittelfeldspieler",72,3205049,-3.2000000000000001E-2,-105317]
["Kingsley Ehizibue","1. FC Köln","Abwehrspieler",287,2478707,-0.04,-104415]
["Sargis Adamyan","TSG 1899 Hoffenheim","Stürmer",175,4331555,-2.4E-2,-104411]
["Dickson Abiama","SpVgg Greuther Fürth","Stürmer",135,727947,-0.125,-104133]
["Ömer Faruk Beyaz","VfB Stuttgart","Mittelfeldspieler",25,1310287,-7.2999999999999995E-2,-103804]
["Cedric Teuchert","1. FC Union Berlin","Stürmer",45,1687324,-5.7000000000000002E-2,-102830]
["Tim Lemperle","1. FC Köln","Stürmer",111,1391704,-6.8000000000000005E-2,-102246]
["Anton Stach","1. FSV Mainz 05","Mittelfeldspieler",186,2660388,-3.6999999999999998E-2,-101916]
["Raphael Framberger","FC Augsburg","Abwehrspieler",96,2605821,-3.7999999999999999E-2,-101703]
["Nikolas Nartey","VfB Stuttgart","Mittelfeldspieler",80,4685402,-2.1000000000000001E-2,-100495]
["Bryan Lasme","Arminia Bielefeld","Stürmer",82,667571,-0.13,-100109]
["Maximilian Philipp","VfL Wolfsburg","Stürmer",423,9697141,-0.01,-99887]
["Amos Pieper","Arminia Bielefeld","Abwehrspieler",591,8943069,-1.0999999999999999E-2,-99750]
["Patrick Wimmer","Arminia Bielefeld","Mittelfeldspieler",300,3055839,-3.2000000000000001E-2,-99453]
["Arne Maier","FC Augsburg","Mittelfeldspieler",130,3353379,-2.9000000000000001E-2,-99155]
["Robin Hack","Arminia Bielefeld","Mittelfeldspieler",302,4695631,-2.1000000000000001E-2,-98519]
["Tony Jantschke","Borussia Mönchengladbach","Abwehrspieler",123,4201871,-2.3E-2,-98011]
["Timo Hübers","1. FC Köln","Abwehrspieler",62,1867379,-0.05,-97863]
["Danny da Costa","Eintracht Frankfurt","Abwehrspieler",117,4212986,-2.3E-2,-97686]
["Benjamin Hübner","TSG 1899 Hoffenheim","Abwehrspieler",0,3043757,-3.1E-2,-97435]
["Giovanni Reyna","Borussia Dortmund","Mittelfeldspieler",435,23188136,-4.0000000000000001E-3,-96606]
["Kevin-Prince Boateng","Hertha BSC","Mittelfeldspieler",158,2843351,-3.3000000000000002E-2,-95568]
["Marcel Halstenberg","RB Leipzig","Abwehrspieler",0,3282556,-2.8000000000000001E-2,-95061]
["Davie Selke","Hertha BSC","Stürmer",44,2882922,-3.2000000000000001E-2,-94964]
["Louis Schaub","1. FC Köln","Mittelfeldspieler",240,945719,-0.09,-93200]
["Mitchel Bakker","Bayer 04 Leverkusen","Abwehrspieler",685,14739206,-6.0000000000000001E-3,-92361]
["Kevin Stöger","1. FSV Mainz 05","Mittelfeldspieler",156,794460,-0.104,-92194]
["Paul Seguin","SpVgg Greuther Fürth","Mittelfeldspieler",332,3166306,-2.8000000000000001E-2,-91782]
["Hannes Wolf","Borussia Mönchengladbach","Mittelfeldspieler",193,2798754,-3.2000000000000001E-2,-91582]
["Noah Weißhaupt","SC Freiburg","Stürmer",35,2528758,-3.5000000000000003E-2,-91561]
["Luca Kilian","1. FC Köln","Abwehrspieler",209,4160455,-2.1000000000000001E-2,-91046]
["Paul Jaeckel","1. FC Union Berlin","Abwehrspieler",404,6443056,-1.4E-2,-90070]
["Simon Zoller","VfL Bochum","Stürmer",431,3474602,-2.5000000000000001E-2,-90004]
["Masaya Okugawa","Arminia Bielefeld","Mittelfeldspieler",223,2961338,-2.9000000000000001E-2,-89614]
["Lucas Alario","Bayer 04 Leverkusen","Stürmer",-5,4028242,-2.1999999999999999E-2,-89371]
["Florian Niederlechner","FC Augsburg","Stürmer",243,4144112,-2.1000000000000001E-2,-88927]
["Munas Dabbur","TSG 1899 Hoffenheim","Stürmer",140,2041947,-4.2000000000000003E-2,-88463]
["Jorge Meré","1. FC Köln","Abwehrspieler",354,4731255,-1.7999999999999999E-2,-88301]
["Sebastian Polter","VfL Bochum","Stürmer",284,4613150,-1.9E-2,-88000]
["Saša Kalajdžić","VfB Stuttgart","Stürmer",-23,5658210,-1.4999999999999999E-2,-87119]
["Maximilian Bauer","SpVgg Greuther Fürth","Abwehrspieler",274,2241772,-3.6999999999999998E-2,-86655]
["Christoph Kramer","Borussia Mönchengladbach","Mittelfeldspieler",134,2745181,-3.1E-2,-86629]
["Yannik Keitel","SC Freiburg","Mittelfeldspieler",225,3175517,-2.7E-2,-86534]
["Cedric Itten","SpVgg Greuther Fürth","Stürmer",88,2003588,-4.1000000000000002E-2,-85762]
["Benjamin Henrichs","RB Leipzig","Abwehrspieler",95,3868297,-2.1999999999999999E-2,-85687]
["László Bénes","Borussia Mönchengladbach","Mittelfeldspieler",58,3128887,-2.7E-2,-85405]
["Florian Müller","VfB Stuttgart","Torhüter",528,6230907,-1.2999999999999999E-2,-84882]
["Sascha Burchert","SpVgg Greuther Fürth","Torhüter",361,2872127,-2.8000000000000001E-2,-83803]
["Kevin Behrens","1. FC Union Berlin","Stürmer",361,4788760,-1.7000000000000001E-2,-82181]
["Deyovaisio Zeefuik","Hertha BSC","Abwehrspieler",124,1323730,-5.8000000000000003E-2,-80850]
["Grischa Prömel","1. FC Union Berlin","Mittelfeldspieler",226,4492804,-1.7000000000000001E-2,-76279]
["Koen Casteels","VfL Wolfsburg","Torhüter",777,17646694,-4.0000000000000001E-3,-75055]
["Ishak Belfodil","Hertha BSC","Stürmer",135,1638753,-4.3999999999999997E-2,-74557]
["Wataru Endo","VfB Stuttgart","Mittelfeldspieler",858,22223617,-3.0000000000000001E-3,-74302]
["Jetro Willems","SpVgg Greuther Fürth","Abwehrspieler",175,2863238,-2.5000000000000001E-2,-73652]
["Mateo Klimowicz","VfB Stuttgart","Mittelfeldspieler",272,3427963,-2.1000000000000001E-2,-72831]
["Bouna Sarr","FC Bayern München","Abwehrspieler",115,3436031,-2.1000000000000001E-2,-72650]
["Stevan Jovetić","Hertha BSC","Stürmer",140,4427929,-1.6E-2,-71547]
["Waldemar Anton","VfB Stuttgart","Abwehrspieler",356,6579575,-1.0999999999999999E-2,-70645]
["Lucas Tousart","Hertha BSC","Mittelfeldspieler",361,4015629,-1.7000000000000001E-2,-68292]
["Mads Pedersen","FC Augsburg","Abwehrspieler",171,1743168,-3.6999999999999998E-2,-66722]
["Ajdin Hrustić","Eintracht Frankfurt","Mittelfeldspieler",299,3442436,-1.7999999999999999E-2,-64865]
["Hiroki Ito","VfB Stuttgart","Abwehrspieler",95,2970875,-2.1000000000000001E-2,-63628]
["Philipp Klement","VfB Stuttgart","Mittelfeldspieler",458,4598386,-1.2999999999999999E-2,-62666]
["Angelo Stiller","TSG 1899 Hoffenheim","Mittelfeldspieler",236,4134932,-1.4999999999999999E-2,-61783]
["Georginio Rutter","TSG 1899 Hoffenheim","Stürmer",302,3069363,-1.9E-2,-60632]
["Patrick Herrmann","Borussia Mönchengladbach","Mittelfeldspieler",370,4797947,-1.2E-2,-57457]
["Sam Lammers","Eintracht Frankfurt","Stürmer",243,7703391,-7.0000000000000001E-3,-55712]
["Yannick Gerhardt","VfL Wolfsburg","Mittelfeldspieler",258,4445548,-1.2E-2,-55176]
["Sebastian Griesbeck","SpVgg Greuther Fürth","Mittelfeldspieler",19,2182273,-2.4E-2,-54779]
["Erhan Mašović","VfL Bochum","Abwehrspieler",250,3984206,-1.4E-2,-54574]
["Tanguy Nianzou","FC Bayern München","Abwehrspieler",232,4092044,-1.2999999999999999E-2,-54325]
["Lennart Czyborra","Arminia Bielefeld","Abwehrspieler",-53,1850056,-2.8000000000000001E-2,-52939]
["Ádám Szalai","1. FSV Mainz 05","Stürmer",240,2200367,-2.3E-2,-50876]
["Kevin Schade","SC Freiburg","Stürmer",133,2848199,-1.7000000000000001E-2,-50362]
["Gerrit Holtmann","VfL Bochum","Mittelfeldspieler",360,3867418,-1.2999999999999999E-2,-49789]
["Yussuf Poulsen","RB Leipzig","Stürmer",563,11952800,-4.0000000000000001E-3,-49625]
["Karim Bellarabi","Bayer 04 Leverkusen","Mittelfeldspieler",176,4568384,-0.01,-47959]
["Rafał Gikiewicz","FC Augsburg","Torhüter",731,7905238,-6.0000000000000001E-3,-47452]
["Philipp Förster","VfB Stuttgart","Mittelfeldspieler",288,4150974,-1.0999999999999999E-2,-47373]
["Marcus Ingvartsen","1. FSV Mainz 05","Mittelfeldspieler",315,7445980,-6.0000000000000001E-3,-45509]
["Péter Gulácsi","RB Leipzig","Torhüter",841,16654980,-3.0000000000000001E-3,-43210]
["Branimir Hrgota","SpVgg Greuther Fürth","Stürmer",401,4561172,-8.9999999999999993E-3,-42971]
["Clinton Mola","VfB Stuttgart","Mittelfeldspieler",20,3923651,-1.0999999999999999E-2,-41938]
["Manuel Prietl","Arminia Bielefeld","Mittelfeldspieler",495,4142955,-0.01,-41667]
["Christoph Baumgartner","TSG 1899 Hoffenheim","Mittelfeldspieler",699,15269110,-3.0000000000000001E-3,-39193]
["Ansgar Knauff","Borussia Dortmund","Mittelfeldspieler",-15,1445002,-2.4E-2,-35789]
["Ermedin Demirović","SC Freiburg","Stürmer",96,1402098,-2.3E-2,-33005]
["Dominique Heintz","SC Freiburg","Abwehrspieler",15,4175215,-8.0000000000000002E-3,-32924]
["E. Choupo-Moting","FC Bayern München","Stürmer",438,6811391,-5.0000000000000001E-3,-31027]
["Jan Thielmann","1. FC Köln","Mittelfeldspieler",256,3948072,-7.0000000000000001E-3,-27715]
["Hamadi Al Ghaddioui","VfB Stuttgart","Stürmer",356,4456968,-6.0000000000000001E-3,-24867]
["Ruben Vargas","FC Augsburg","Mittelfeldspieler",374,6117069,-3.0000000000000001E-3,-16725]
["Mijat Gaćinović","TSG 1899 Hoffenheim","Mittelfeldspieler",67,3490592,-4.0000000000000001E-3,-12337]
["Omar Marmoush","VfB Stuttgart","Stürmer",505,11383022,-1E-3,-10923]
["Joakim Nilsson","Arminia Bielefeld","Abwehrspieler",541,4611517,-2E-3,-8655]
["Iago","FC Augsburg","Abwehrspieler",218,5087977,-1E-3,-7089]
["Jordan Torunarigha","Hertha BSC","Abwehrspieler",47,2704661,-1E-3,-3502]
["Julian Green","SpVgg Greuther Fürth","Mittelfeldspieler",120,500000,-3.0000000000000001E-3,-1589]
["Robert Skov","TSG 1899 Hoffenheim","Mittelfeldspieler",50,662520,-1E-3,-922]